Department,Entity,Transaction Date,Supplier Name ,Amount ,Expense Type,Expense Area,Expense description
DFID,DFID,05-Mar-12,HOPE INTERNATIONAL DEVELOPMENT AGENCY.,"570,391",Aid Programme - Accountable Grant Payments,"Asia, Caribbean and Overseas Territories",
DFID,DFID,01-Mar-12,Population Services Internation (usa),"778,932",Aid Programme - Accountable Grant Payments,"Asia, Caribbean and Overseas Territories",
DFID,DFID,05-Mar-12,"Clinton Health Access Initiative, Inc","839,454",Aid Programme - Accountable Grant Payments,"Asia, Caribbean and Overseas Territories",
DFID,DFID,06-Mar-12,WaterAid  (INDIA),"44,470",Aid Programme - Accountable Grant Payments,"Asia, Caribbean and Overseas Territories",
DFID,DFID,05-Mar-12,CHRISTIAN AID,"96,271",Aid Programme - Accountable Grant Payments,"Asia, Caribbean and Overseas Territories",
DFID,DFID,06-Mar-12,THE ASIA FOUNDATION,"48,522",Aid Programme - Accountable Grant Payments,"Asia, Caribbean and Overseas Territories",
DFID,DFID,06-Mar-12,OXFAM,"1,633,787",Aid Programme - Accountable Grant Payments,"Asia, Caribbean and Overseas Territories",
DFID,DFID,06-Mar-12,OXFAM,"406,292",Aid Programme - Accountable Grant Payments,"Asia, Caribbean and Overseas Territories",
DFID,DFID,06-Mar-12,CHRISTIAN AID,"60,929",Aid Programme - Accountable Grant Payments,"Asia, Caribbean and Overseas Territories",
DFID,DFID,07-Mar-12,supplier name witheld,"475,000",Aid Programme - Accountable Grant Payments,"Asia, Caribbean and Overseas Territories",
DFID,DFID,09-Mar-12,RBG KEW ENTERPRISES LTD,"15,677",Aid Programme - Accountable Grant Payments,"Asia, Caribbean and Overseas Territories",
DFID,DFID,12-Mar-12,Institute for Financial Management and Research.,"10,650",Aid Programme - Accountable Grant Payments,"Asia, Caribbean and Overseas Territories",
DFID,DFID,14-Mar-12,GVEP INTERNATIONAL LTD,"69,890",Aid Programme - Accountable Grant Payments,"Asia, Caribbean and Overseas Territories",
DFID,DFID,16-Mar-12,IUCN,"29,984",Aid Programme - Accountable Grant Payments,"Asia, Caribbean and Overseas Territories",
DFID,DFID,19-Mar-12,Nepal Institute for Policy Studies,"22,663",Aid Programme - Accountable Grant Payments,"Asia, Caribbean and Overseas Territories",
DFID,DFID,26-Mar-12,IPRCC,"4,327",Aid Programme - Accountable Grant Payments,"Asia, Caribbean and Overseas Territories",
DFID,DFID,20-Mar-12,Sahayog Society for Participatory Rural Development,"2,271",Aid Programme - Accountable Grant Payments,"Asia, Caribbean and Overseas Territories",
DFID,DFID,20-Mar-12,The Prince's Youth Business International,"18,000",Aid Programme - Accountable Grant Payments,"Asia, Caribbean and Overseas Territories",
DFID,DFID,22-Mar-12,UK OVERSEAS TERRITORIES CONSERVATION,"11,973",Aid Programme - Accountable Grant Payments,"Asia, Caribbean and Overseas Territories",
DFID,DFID,23-Mar-12,Sahayog Society for Participatory Rural Development,"1,780",Aid Programme - Accountable Grant Payments,"Asia, Caribbean and Overseas Territories",
DFID,DFID,27-Mar-12,The Energy and Resources Institute (TERI),"71,334",Aid Programme - Accountable Grant Payments,"Asia, Caribbean and Overseas Territories",
DFID,DFID,27-Mar-12,The Energy and Resources Institute (TERI),"9,314",Aid Programme - Accountable Grant Payments,"Asia, Caribbean and Overseas Territories",
DFID,DFID,30-Mar-12,THE ASIA FOUNDATION,"48,491",Aid Programme - Accountable Grant Payments,"Asia, Caribbean and Overseas Territories",
DFID,DFID,06-Mar-12,ECGD ACCOUNT,"5,248",Aid Programme - Aid and Trade Provision,"Asia, Caribbean and Overseas Territories",
DFID,DFID,21-Mar-12,ECGD ACCOUNT,"57,414",Aid Programme - Aid and Trade Provision,"Asia, Caribbean and Overseas Territories",
DFID,DFID,30-Mar-12,ECGD ACCOUNT,"264,077",Aid Programme - Aid and Trade Provision,"Asia, Caribbean and Overseas Territories",
DFID,DFID,06-Mar-12,Haroon Engineering Limited,530,Building Plant - Air Conditioners,"Asia, Caribbean and Overseas Territories",
DFID,DFID,13-Mar-12,Haroon Engineering Limited,"2,049",Building Plant - Air Conditioners,"Asia, Caribbean and Overseas Territories",
DFID,DFID,28-Mar-12,Haroon Engineering Limited,528,Building Plant - Air Conditioners,"Asia, Caribbean and Overseas Territories",
DFID,DFID,16-Mar-12,Harewelle International Limited.,"265,150",Aid Programme - Challenge Fund payments,"Asia, Caribbean and Overseas Territories",
DFID,DFID,30-Mar-12,Government Procurement Card,880,Computer Consumables,"Asia, Caribbean and Overseas Territories",
DFID,DFID,20-Mar-12,WIREWORKS,740,Computer hardware maintenance,"Asia, Caribbean and Overseas Territories",
DFID,DFID,30-Mar-12,Government Procurement Card,596,"Conferences, Seminars & Meeting/Event Resource","Asia, Caribbean and Overseas Territories",
DFID,DFID,06-Mar-12,Anti-Slavery International,"18,466",Technical and Advisory Services,"Asia, Caribbean and Overseas Territories",
DFID,DFID,21-Mar-12,Global Health Strategies Emerging Economies Private Limited,"2,773",Technical and Advisory Services,"Asia, Caribbean and Overseas Territories",
DFID,DFID,21-Mar-12,Foreign & Commonwealth Office,"1,208",Technical and Advisory Services,"Asia, Caribbean and Overseas Territories",
DFID,DFID,22-Mar-12,Global Health Strategies Emerging Economies Private Limited,"4,160",Technical and Advisory Services,"Asia, Caribbean and Overseas Territories",
DFID,DFID,26-Mar-12,Amarchand & Mangaldas & Suresh A Shroff & Co.,"10,726",Technical and Advisory Services,"Asia, Caribbean and Overseas Territories",
DFID,DFID,28-Mar-12,"M. Khanal & Co., Chartered Accountants",639,Consultancy Services,"Asia, Caribbean and Overseas Territories",
DFID,DFID,09-Mar-12,THE GOURMET FACTORY,"2,065",Contract Catering Services,"Asia, Caribbean and Overseas Territories",
DFID,DFID,27-Mar-12,NARINDER PAL SINGH,611,Contract Catering Services,"Asia, Caribbean and Overseas Territories",
DFID,DFID,16-Mar-12,USAID Washington,"3,200,000",Aid Programme - Core contributions,"Asia, Caribbean and Overseas Territories",
DFID,DFID,29-Mar-12,FOREIGN AND COMMONWEALTH OFFICE (FCO),659,Data Network - land lines,"Asia, Caribbean and Overseas Territories",
DFID,DFID,21-Mar-12,Dhaka Electric Supply Company Ltd,672,Electricity,"Asia, Caribbean and Overseas Territories",
DFID,DFID,22-Mar-12,Foreign & Commonwealth Office,569,Electricity,"Asia, Caribbean and Overseas Territories",
DFID,DFID,23-Mar-12,Hongkong Land Company,575,Electricity,"Asia, Caribbean and Overseas Territories",
DFID,DFID,26-Mar-12,BSES RAJDHANI POWER LIMITED,"3,330",Electricity,"Asia, Caribbean and Overseas Territories",
DFID,DFID,27-Mar-12,Neptune Properties,"1,100",Electricity,"Asia, Caribbean and Overseas Territories",
DFID,DFID,29-Mar-12,The British Embassy,809,FCO shared service charges,"Asia, Caribbean and Overseas Territories",
DFID,DFID,13-Mar-12,CHOYONIKA TAILORS,"1,423",Furniture & Fittings,"Asia, Caribbean and Overseas Territories",
DFID,DFID,28-Mar-12,Foreign & Commonwealth Office,"1,023",Furniture & Fittings,"Asia, Caribbean and Overseas Territories",
DFID,DFID,29-Mar-12,Foreign & Commonwealth Office,519,Government Car Scheme UK,"Asia, Caribbean and Overseas Territories",
DFID,DFID,27-Mar-12,Pilgrims Group,"1,503",Hostile Environment Training,"Asia, Caribbean and Overseas Territories",
DFID,DFID,30-Mar-12,Corporate Travel Provider,977,Hotels - Accommodation only,"Asia, Caribbean and Overseas Territories",
DFID,DFID,30-Mar-12,Corporate Travel Provider,783,Hotels - Accommodation only,"Asia, Caribbean and Overseas Territories",
DFID,DFID,30-Mar-12,Corporate Travel Provider,"1,054",Hotels - Accommodation only,"Asia, Caribbean and Overseas Territories",
DFID,DFID,30-Mar-12,Corporate Travel Provider,609,Hotels - Accommodation only,"Asia, Caribbean and Overseas Territories",
DFID,DFID,05-Mar-12,Summit Hotel Pvt Ltd,"1,148",Hotels - Accommodation only,"Asia, Caribbean and Overseas Territories",
DFID,DFID,14-Mar-12,Recipient name withheld,538,Hotels - Accommodation only,"Asia, Caribbean and Overseas Territories",
DFID,DFID,13-Mar-12,Recipient name withheld,564,Hotels - Accommodation only,"Asia, Caribbean and Overseas Territories",
DFID,DFID,13-Mar-12,Recipient name withheld,613,Hotels - Accommodation only,"Asia, Caribbean and Overseas Territories",
DFID,DFID,15-Mar-12,THE INDIAN HOTELS COM. LTD,584,Hotels - Accommodation only,"Asia, Caribbean and Overseas Territories",
DFID,DFID,16-Mar-12,Recipient name withheld,835,Hotels - Accommodation only,"Asia, Caribbean and Overseas Territories",
DFID,DFID,22-Mar-12,Ruposhi Bangla Hotel,"1,401",Hotels - Accommodation only,"Asia, Caribbean and Overseas Territories",
DFID,DFID,22-Mar-12,Ruposhi Bangla Hotel,"1,912",Hotels - Accommodation only,"Asia, Caribbean and Overseas Territories",
DFID,DFID,21-Mar-12,Foreign & Commonwealth Office,939,Hotels - Accommodation only,"Asia, Caribbean and Overseas Territories",
DFID,DFID,21-Mar-12,Foreign & Commonwealth Office,"1,041",Hotels - Accommodation only,"Asia, Caribbean and Overseas Territories",
DFID,DFID,28-Mar-12,Lake Shore Hotel & Apartments,580,Hotels - Accommodation only,"Asia, Caribbean and Overseas Territories",
DFID,DFID,28-Mar-12,Lake Shore Hotel & Apartments,696,Hotels - Accommodation only,"Asia, Caribbean and Overseas Territories",
DFID,DFID,12-Mar-12,Supplier Name withheld,526,House rentals,"Asia, Caribbean and Overseas Territories",
DFID,DFID,12-Mar-12,Supplier Name withheld,"45,741",House rentals,"Asia, Caribbean and Overseas Territories",Secure staff accommodation: Afghanistan April 2011 � March 2012
DFID,DFID,12-Mar-12,Supplier Name withheld,"15,118",House rentals,"Asia, Caribbean and Overseas Territories",
DFID,DFID,12-Mar-12,Supplier Name withheld,"7,753",House rentals,"Asia, Caribbean and Overseas Territories",
DFID,DFID,13-Mar-12,Supplier Name withheld,"2,290",House rentals,"Asia, Caribbean and Overseas Territories",
DFID,DFID,13-Mar-12,Supplier Name withheld,"1,923",House rentals,"Asia, Caribbean and Overseas Territories",
DFID,DFID,13-Mar-12,Supplier Name withheld,"2,404",House rentals,"Asia, Caribbean and Overseas Territories",
DFID,DFID,13-Mar-12,Supplier Name withheld,"3,205",House rentals,"Asia, Caribbean and Overseas Territories",
DFID,DFID,13-Mar-12,Supplier Name withheld,"1,603",House rentals,"Asia, Caribbean and Overseas Territories",
DFID,DFID,13-Mar-12,Supplier Name withheld,"1,191",House rentals,"Asia, Caribbean and Overseas Territories",
DFID,DFID,13-Mar-12,Supplier Name withheld,"1,259",House rentals,"Asia, Caribbean and Overseas Territories",
DFID,DFID,13-Mar-12,Supplier Name withheld,"4,808",House rentals,"Asia, Caribbean and Overseas Territories",
DFID,DFID,13-Mar-12,Supplier Name withheld,702,House rentals,"Asia, Caribbean and Overseas Territories",
DFID,DFID,13-Mar-12,Supplier Name withheld,"3,701",House rentals,"Asia, Caribbean and Overseas Territories",
DFID,DFID,13-Mar-12,Supplier Name withheld,"2,061",House rentals,"Asia, Caribbean and Overseas Territories",
DFID,DFID,13-Mar-12,Supplier Name withheld,"2,290",House rentals,"Asia, Caribbean and Overseas Territories",
DFID,DFID,13-Mar-12,Supplier Name withheld,"1,805",House rentals,"Asia, Caribbean and Overseas Territories",
DFID,DFID,13-Mar-12,Supplier Name withheld,"5,342",House rentals,"Asia, Caribbean and Overseas Territories",
DFID,DFID,13-Mar-12,Supplier Name withheld,"3,701",House rentals,"Asia, Caribbean and Overseas Territories",
DFID,DFID,13-Mar-12,Supplier Name withheld,"2,063",House rentals,"Asia, Caribbean and Overseas Territories",
DFID,DFID,13-Mar-12,Supplier Name withheld,"2,290",House rentals,"Asia, Caribbean and Overseas Territories",
DFID,DFID,13-Mar-12,Supplier Name withheld,"2,290",House rentals,"Asia, Caribbean and Overseas Territories",
DFID,DFID,22-Mar-12,Supplier Name withheld,"14,628",House rentals,"Asia, Caribbean and Overseas Territories",
DFID,DFID,22-Mar-12,Supplier Name withheld,"7,862",House rentals,"Asia, Caribbean and Overseas Territories",
DFID,DFID,22-Mar-12,Supplier Name withheld,"8,228",House rentals,"Asia, Caribbean and Overseas Territories",
DFID,DFID,27-Mar-12,Supplier Name withheld,"29,534",House rentals,"Asia, Caribbean and Overseas Territories",Secure staff accommodation India -  April 2012 � March 2013
DFID,DFID,30-Mar-12,Supplier Name withheld,"3,093",House rentals,"Asia, Caribbean and Overseas Territories",
DFID,DFID,12-Mar-12,THE INTERNATIONAL COMMITTEE OF THE RED CROSS (ICRC),"700,000",Aid Programme - Joint programme contribution,"Asia, Caribbean and Overseas Territories",
DFID,DFID,09-Mar-12,UNDP CONTRIBUTIONS GBP,"85,000",Aid Programme - Joint programme contribution,"Asia, Caribbean and Overseas Territories",
DFID,DFID,21-Mar-12,Foreign & Commonwealth Office,"1,328",Aid Programme - Joint programme contribution,"Asia, Caribbean and Overseas Territories",
DFID,DFID,21-Mar-12,Foreign & Commonwealth Office,"4,811",Aid Programme - Joint programme contribution,"Asia, Caribbean and Overseas Territories",
DFID,DFID,21-Mar-12,Foreign & Commonwealth Office,"1,867",Aid Programme - Joint programme contribution,"Asia, Caribbean and Overseas Territories",
DFID,DFID,21-Mar-12,Foreign & Commonwealth Office,"6,110",Aid Programme - Joint programme contribution,"Asia, Caribbean and Overseas Territories",
DFID,DFID,22-Mar-12,Foreign & Commonwealth Office,"1,961",Aid Programme - Joint programme contribution,"Asia, Caribbean and Overseas Territories",
DFID,DFID,29-Mar-12,Foreign & Commonwealth Office,"2,801",Aid Programme - Joint programme contribution,"Asia, Caribbean and Overseas Territories",
DFID,DFID,29-Mar-12,Foreign & Commonwealth Office,"6,809",Aid Programme - Joint programme contribution,"Asia, Caribbean and Overseas Territories",
DFID,DFID,29-Mar-12,Foreign & Commonwealth Office,"3,111",Aid Programme - Joint programme contribution,"Asia, Caribbean and Overseas Territories",
DFID,DFID,29-Mar-12,Foreign & Commonwealth Office,"2,503",Aid Programme - Joint programme contribution,"Asia, Caribbean and Overseas Territories",
DFID,DFID,29-Mar-12,Foreign & Commonwealth Office,"4,811",Aid Programme - Joint programme contribution,"Asia, Caribbean and Overseas Territories",
DFID,DFID,29-Mar-12,Foreign & Commonwealth Office,"5,250",Aid Programme - Joint programme contribution,"Asia, Caribbean and Overseas Territories",
DFID,DFID,29-Mar-12,Foreign & Commonwealth Office,"4,384",Aid Programme - Joint programme contribution,"Asia, Caribbean and Overseas Territories",
DFID,DFID,29-Mar-12,Foreign & Commonwealth Office,"4,811",Aid Programme - Joint programme contribution,"Asia, Caribbean and Overseas Territories",
DFID,DFID,29-Mar-12,Foreign & Commonwealth Office,"4,384",Aid Programme - Joint programme contribution,"Asia, Caribbean and Overseas Territories",
DFID,DFID,29-Mar-12,FUTURE GENERALI INDIA INSURANCE CO.,"59,496",Medical/Health Services,"Asia, Caribbean and Overseas Territories",DFID INDIA Staff MEDICAL INSURANCE PREMIUM 2012-13
DFID,DFID,13-Mar-12,Grameen Phone,595,Mobile telephones & accessories,"Asia, Caribbean and Overseas Territories",
DFID,DFID,27-Mar-12,Novel International Pvt. Ltd.,"6,825",Office Equipment - Purchases,"Asia, Caribbean and Overseas Territories",
DFID,DFID,27-Mar-12,Neptune Properties,"18,298",Operating Lease rental of buildings,"Asia, Caribbean and Overseas Territories",
DFID,DFID,27-Mar-12,Neptune Properties,"18,298",Operating Lease rental of buildings,"Asia, Caribbean and Overseas Territories",
DFID,DFID,13-Mar-12,Recipient name withheld,"2,747",Other Admin Costs,"Asia, Caribbean and Overseas Territories",
DFID,DFID,13-Mar-12,Recipient name withheld,"1,717",Other Admin Costs,"Asia, Caribbean and Overseas Territories",
DFID,DFID,13-Mar-12,Recipient name withheld,"1,832",Other Admin Costs,"Asia, Caribbean and Overseas Territories",
DFID,DFID,21-Mar-12,Foreign & Commonwealth Office,584,Other Admin Costs,"Asia, Caribbean and Overseas Territories",
DFID,DFID,21-Mar-12,Foreign & Commonwealth Office,"1,150",Other Admin Costs,"Asia, Caribbean and Overseas Territories",
DFID,DFID,21-Mar-12,Jamaica Constabulary Force,"1,400,000",Aid Programme - Other Financial Aid to Government,"Asia, Caribbean and Overseas Territories",
DFID,DFID,14-Mar-12,G4S FACILITY SERVICES (INDIA) PVT. L,"3,499",Other non-passenger transportation,"Asia, Caribbean and Overseas Territories",
DFID,DFID,26-Mar-12,INTERNATIONAL COMPUTER RESOURCES,644,Printer Consumables,"Asia, Caribbean and Overseas Territories",
DFID,DFID,13-Mar-12,AUSAID,"29,426",Aid Programme - Programme Contribution,"Asia, Caribbean and Overseas Territories",
DFID,DFID,27-Mar-12,Transearch Consultants Private Limited,"1,586",Recruitment costs,"Asia, Caribbean and Overseas Territories",
DFID,DFID,27-Mar-12,Human Capital Solutions,"2,225",Recruitment costs,"Asia, Caribbean and Overseas Territories",
DFID,DFID,27-Mar-12,Thompson Nepal Pvt Ltd,948,Recruitment costs,"Asia, Caribbean and Overseas Territories",
DFID,DFID,27-Mar-12,Human Capital Solutions,"1,332",Recruitment costs,"Asia, Caribbean and Overseas Territories",
DFID,DFID,28-Mar-12,Foreign & Commonwealth Office,"4,145",Relocation costs,"Asia, Caribbean and Overseas Territories",
DFID,DFID,05-Mar-12,R M B Engineers and Builders Pvt Ltd,665,Facilities Management payments,"Asia, Caribbean and Overseas Territories",
DFID,DFID,05-Mar-12,R M B Engineers and Builders Pvt Ltd,"3,287",Facilities Management payments,"Asia, Caribbean and Overseas Territories",
DFID,DFID,14-Mar-12,ALPHA PACIFIC SYSTEM,847,Facilities Management payments,"Asia, Caribbean and Overseas Territories",
DFID,DFID,14-Mar-12,CB RICHARD ELLIS SOUTH ASIA PVT LTD,"14,880",Facilities Management payments,"Asia, Caribbean and Overseas Territories",
DFID,DFID,14-Mar-12,CB RICHARD ELLIS SOUTH ASIA PVT LTD,"1,135",Facilities Management payments,"Asia, Caribbean and Overseas Territories",
DFID,DFID,19-Mar-12,John Sanday Associates Pvt. Ltd,839,Facilities Management payments,"Asia, Caribbean and Overseas Territories",
DFID,DFID,20-Mar-12,SSD ELECTRO-MECH PRIVATE LIMITED,"2,879",Facilities Management payments,"Asia, Caribbean and Overseas Territories",
DFID,DFID,23-Mar-12,CB RICHARD ELLIS SOUTH ASIA PVT LTD,"14,294",Facilities Management payments,"Asia, Caribbean and Overseas Territories",
DFID,DFID,23-Mar-12,CB RICHARD ELLIS SOUTH ASIA PVT LTD,"1,763",Facilities Management payments,"Asia, Caribbean and Overseas Territories",
DFID,DFID,23-Mar-12,R M B Engineers and Builders Pvt Ltd,"1,486",Facilities Management payments,"Asia, Caribbean and Overseas Territories",
DFID,DFID,23-Mar-12,R M B Engineers and Builders Pvt Ltd,881,Facilities Management payments,"Asia, Caribbean and Overseas Territories",
DFID,DFID,30-Mar-12,Corporate Travel Provider,722,Air fares,"Asia, Caribbean and Overseas Territories",
DFID,DFID,30-Mar-12,Corporate Travel Provider,737,Air fares,"Asia, Caribbean and Overseas Territories",
DFID,DFID,30-Mar-12,Corporate Travel Provider,"1,020",Air fares,"Asia, Caribbean and Overseas Territories",
DFID,DFID,30-Mar-12,Corporate Travel Provider,722,Air fares,"Asia, Caribbean and Overseas Territories",
DFID,DFID,30-Mar-12,Corporate Travel Provider,989,Air fares,"Asia, Caribbean and Overseas Territories",
DFID,DFID,30-Mar-12,Corporate Travel Provider,617,Air fares,"Asia, Caribbean and Overseas Territories",
DFID,DFID,30-Mar-12,Corporate Travel Provider,732,Air fares,"Asia, Caribbean and Overseas Territories",
DFID,DFID,30-Mar-12,Corporate Travel Provider,643,Air fares,"Asia, Caribbean and Overseas Territories",
DFID,DFID,30-Mar-12,Corporate Travel Provider,"1,106",Air fares,"Asia, Caribbean and Overseas Territories",
DFID,DFID,30-Mar-12,Corporate Travel Provider,506,Air fares,"Asia, Caribbean and Overseas Territories",
DFID,DFID,30-Mar-12,Corporate Travel Provider,740,Air fares,"Asia, Caribbean and Overseas Territories",
DFID,DFID,30-Mar-12,Corporate Travel Provider,"1,012",Air fares,"Asia, Caribbean and Overseas Territories",
DFID,DFID,30-Mar-12,Corporate Travel Provider,514,Air fares,"Asia, Caribbean and Overseas Territories",
DFID,DFID,30-Mar-12,Corporate Travel Provider,529,Air fares,"Asia, Caribbean and Overseas Territories",
DFID,DFID,30-Mar-12,Corporate Travel Provider,732,Air fares,"Asia, Caribbean and Overseas Territories",
DFID,DFID,30-Mar-12,Corporate Travel Provider,523,Air fares,"Asia, Caribbean and Overseas Territories",
DFID,DFID,30-Mar-12,Corporate Travel Provider,671,Air fares,"Asia, Caribbean and Overseas Territories",
DFID,DFID,30-Mar-12,Corporate Travel Provider,744,Air fares,"Asia, Caribbean and Overseas Territories",
DFID,DFID,05-Mar-12,Saimon Overseas Ltd,929,Air fares,"Asia, Caribbean and Overseas Territories",
DFID,DFID,05-Mar-12,Saimon Overseas Ltd,975,Air fares,"Asia, Caribbean and Overseas Territories",
DFID,DFID,15-Mar-12,Recipient name withheld,882,Air fares,"Asia, Caribbean and Overseas Territories",
DFID,DFID,09-Mar-12,KUONI BUSINESS TRAVEL INDIA PVT LTD,"1,436",Air fares,"Asia, Caribbean and Overseas Territories",
DFID,DFID,09-Mar-12,KUONI BUSINESS TRAVEL INDIA PVT LTD,954,Air fares,"Asia, Caribbean and Overseas Territories",
DFID,DFID,09-Mar-12,KUONI BUSINESS TRAVEL INDIA PVT LTD,"2,812",Air fares,"Asia, Caribbean and Overseas Territories",
DFID,DFID,09-Mar-12,KUONI BUSINESS TRAVEL INDIA PVT LTD,"1,392",Air fares,"Asia, Caribbean and Overseas Territories",
DFID,DFID,09-Mar-12,KUONI BUSINESS TRAVEL INDIA PVT LTD,"2,327",Air fares,"Asia, Caribbean and Overseas Territories",
DFID,DFID,09-Mar-12,KUONI BUSINESS TRAVEL INDIA PVT LTD,858,Air fares,"Asia, Caribbean and Overseas Territories",
DFID,DFID,13-Mar-12,Saimon Overseas Ltd,957,Air fares,"Asia, Caribbean and Overseas Territories",
DFID,DFID,13-Mar-12,Saimon Overseas Ltd,"1,778",Air fares,"Asia, Caribbean and Overseas Territories",
DFID,DFID,13-Mar-12,Saimon Overseas Ltd,847,Air fares,"Asia, Caribbean and Overseas Territories",
DFID,DFID,12-Mar-12,Saimon Overseas Ltd,747,Air fares,"Asia, Caribbean and Overseas Territories",
DFID,DFID,12-Mar-12,Jaya Travels & Tours Ltd,"1,176",Air fares,"Asia, Caribbean and Overseas Territories",
DFID,DFID,12-Mar-12,Jaya Travels & Tours Ltd,"1,261",Air fares,"Asia, Caribbean and Overseas Territories",
DFID,DFID,13-Mar-12,Hanoi Toserco,521,Air fares,"Asia, Caribbean and Overseas Territories",
DFID,DFID,14-Mar-12,Jaya Travels & Tours Ltd,"1,261",Air fares,"Asia, Caribbean and Overseas Territories",
DFID,DFID,19-Mar-12,Jaya Travels & Tours Ltd,729,Air fares,"Asia, Caribbean and Overseas Territories",
DFID,DFID,19-Mar-12,Jaya Travels & Tours Ltd,600,Air fares,"Asia, Caribbean and Overseas Territories",
DFID,DFID,20-Mar-12,Saimon Overseas Ltd,728,Air fares,"Asia, Caribbean and Overseas Territories",
DFID,DFID,21-Mar-12,Foreign & Commonwealth Office,"1,116",Air fares,"Asia, Caribbean and Overseas Territories",
DFID,DFID,23-Mar-12,KUONI BUSINESS TRAVEL INDIA PVT LTD,536,Air fares,"Asia, Caribbean and Overseas Territories",
DFID,DFID,26-Mar-12,KUONI BUSINESS TRAVEL INDIA PVT LTD,"1,180",Air fares,"Asia, Caribbean and Overseas Territories",
DFID,DFID,26-Mar-12,KUONI BUSINESS TRAVEL INDIA PVT LTD,"1,624",Air fares,"Asia, Caribbean and Overseas Territories",
DFID,DFID,26-Mar-12,KUONI BUSINESS TRAVEL INDIA PVT LTD,"2,148",Air fares,"Asia, Caribbean and Overseas Territories",
DFID,DFID,26-Mar-12,KUONI BUSINESS TRAVEL INDIA PVT LTD,829,Air fares,"Asia, Caribbean and Overseas Territories",
DFID,DFID,28-Mar-12,Hanoi Toserco,"1,711",Air fares,"Asia, Caribbean and Overseas Territories",
DFID,DFID,27-Mar-12,KUONI BUSINESS TRAVEL INDIA PVT LTD,669,Air fares,"Asia, Caribbean and Overseas Territories",
DFID,DFID,27-Mar-12,KUONI BUSINESS TRAVEL INDIA PVT LTD,"2,965",Air fares,"Asia, Caribbean and Overseas Territories",
DFID,DFID,28-Mar-12,Foreign & Commonwealth Office,"7,436",Air fares,"Asia, Caribbean and Overseas Territories",
DFID,DFID,28-Mar-12,Foreign & Commonwealth Office,611,Air fares,"Asia, Caribbean and Overseas Territories",
DFID,DFID,05-Mar-12,Datanet India Pvt Ltd,521,Subscriptions,"Asia, Caribbean and Overseas Territories",
DFID,DFID,22-Mar-12,BRITISH HIGH COMMISSION,975,Subscriptions,"Asia, Caribbean and Overseas Territories",
DFID,DFID,08-Mar-12,Stockholm International Water Institute,"1,705",Technical and Advisory Services,"Asia, Caribbean and Overseas Territories",
DFID,DFID,02-Mar-12,Gozde Avci,"1,812",Technical and Advisory Services,"Asia, Caribbean and Overseas Territories",
DFID,DFID,08-Mar-12,Mid Century Design Ltd,"6,375",Technical and Advisory Services,"Asia, Caribbean and Overseas Territories",
DFID,DFID,08-Mar-12,COFFEY INTERNATIONAL DEVELOPMENT LTD,"18,957",Technical and Advisory Services,"Asia, Caribbean and Overseas Territories",
DFID,DFID,01-Mar-12,SPC MANAGEMENT SERVICES PRIVATE LIMI,"2,378",Technical and Advisory Services,"Asia, Caribbean and Overseas Territories",
DFID,DFID,01-Mar-12,SPC MANAGEMENT SERVICES PRIVATE LIMI,"1,065",Technical and Advisory Services,"Asia, Caribbean and Overseas Territories",
DFID,DFID,05-Mar-12,OPTIONS CONSULTANCY SERVICES LIMITED,"136,746",Technical and Advisory Services,"Asia, Caribbean and Overseas Territories",
DFID,DFID,01-Mar-12,CHRISTIAN AID,"45,927",Technical and Advisory Services,"Asia, Caribbean and Overseas Territories",
DFID,DFID,02-Mar-12,IMC Worldwide Ltd,"11,597",Technical and Advisory Services,"Asia, Caribbean and Overseas Territories",
DFID,DFID,05-Mar-12,Scott Baum,"3,314",Technical and Advisory Services,"Asia, Caribbean and Overseas Territories",
DFID,DFID,06-Mar-12,OPTIONS CONSULTANCY SERVICES LIMITED,"73,622",Technical and Advisory Services,"Asia, Caribbean and Overseas Territories",
DFID,DFID,05-Mar-12,CAPITA HELM CORPORATION LTD,"200,886",Technical and Advisory Services,"Asia, Caribbean and Overseas Territories",
DFID,DFID,05-Mar-12,INFRASTRUCTURE PROFESSIONALS ENTERPRISE,"96,332",Technical and Advisory Services,"Asia, Caribbean and Overseas Territories",
DFID,DFID,05-Mar-12,DELOITTE TOUCHE TOHMATSU INDIA PRIVA,"1,203",Technical and Advisory Services,"Asia, Caribbean and Overseas Territories",
DFID,DFID,05-Mar-12,DELOITTE TOUCHE TOHMATSU INDIA PRIVA,"4,010",Technical and Advisory Services,"Asia, Caribbean and Overseas Territories",
DFID,DFID,06-Mar-12,ICRA MANAGEMENT CONSULTING SERVICES,"9,428",Technical and Advisory Services,"Asia, Caribbean and Overseas Territories",
DFID,DFID,06-Mar-12,ICRA MANAGEMENT CONSULTING SERVICES,"7,071",Technical and Advisory Services,"Asia, Caribbean and Overseas Territories",
DFID,DFID,05-Mar-12,IMC Worldwide Ltd,"61,886",Technical and Advisory Services,"Asia, Caribbean and Overseas Territories",
DFID,DFID,05-Mar-12,IOD PARC,"2,640",Technical and Advisory Services,"Asia, Caribbean and Overseas Territories",
DFID,DFID,05-Mar-12,IMC Worldwide Ltd,"57,024",Technical and Advisory Services,"Asia, Caribbean and Overseas Territories",
DFID,DFID,05-Mar-12,IMC Worldwide Ltd,"1,097,280",Technical and Advisory Services,"Asia, Caribbean and Overseas Territories",
DFID,DFID,05-Mar-12,ASSOCIATES FOR INTERNATIONAL DEVELOPMENT (AID INC),"29,358",Technical and Advisory Services,"Asia, Caribbean and Overseas Territories",
DFID,DFID,06-Mar-12,JOHN WARWICK,"2,025",Technical and Advisory Services,"Asia, Caribbean and Overseas Territories",
DFID,DFID,06-Mar-12,Teraquad Limited,"6,720",Technical and Advisory Services,"Asia, Caribbean and Overseas Territories",
DFID,DFID,08-Mar-12,ERNST &  YOUNG PRIVATE LTD,"34,943",Technical and Advisory Services,"Asia, Caribbean and Overseas Territories",
DFID,DFID,08-Mar-12,ERNST &  YOUNG PRIVATE LTD,"34,943",Technical and Advisory Services,"Asia, Caribbean and Overseas Territories",
DFID,DFID,08-Mar-12,recipient withheld,"8,611",Technical and Advisory Services,"Asia, Caribbean and Overseas Territories",
DFID,DFID,11-Mar-12,A S Mohammad Nurullah Awal,727,Technical and Advisory Services,"Asia, Caribbean and Overseas Territories",
DFID,DFID,08-Mar-12,Coffey International Development (Do not use),"22,335",Technical and Advisory Services,"Asia, Caribbean and Overseas Territories",
DFID,DFID,08-Mar-12,N D Hearnden,"5,925",Technical and Advisory Services,"Asia, Caribbean and Overseas Territories",
DFID,DFID,08-Mar-12,N D Hearnden,"12,766",Technical and Advisory Services,"Asia, Caribbean and Overseas Territories",
DFID,DFID,09-Mar-12,IMC Worldwide Ltd,"4,833",Technical and Advisory Services,"Asia, Caribbean and Overseas Territories",
DFID,DFID,09-Mar-12,MAXWELL STAMP PLC,"22,260",Technical and Advisory Services,"Asia, Caribbean and Overseas Territories",
DFID,DFID,13-Mar-12,Foreign & Commonwealth Office,"2,839",Technical and Advisory Services,"Asia, Caribbean and Overseas Territories",
DFID,DFID,13-Mar-12,Foreign & Commonwealth Office,"8,225",Technical and Advisory Services,"Asia, Caribbean and Overseas Territories",
DFID,DFID,16-Mar-12, Yin Yongyuan,"7,529",Technical and Advisory Services,"Asia, Caribbean and Overseas Territories",
DFID,DFID,13-Mar-12,SIDBI FOUNDATION,"510,773",Technical and Advisory Services,"Asia, Caribbean and Overseas Territories",
DFID,DFID,12-Mar-12,Rajendra Niraula,"3,528",Technical and Advisory Services,"Asia, Caribbean and Overseas Territories",
DFID,DFID,13-Mar-12,DELOITTE TOUCHE TOHAMATSU INDIA PRIVATE LTD (DTTIPL),"52,154",Technical and Advisory Services,"Asia, Caribbean and Overseas Territories",
DFID,DFID,13-Mar-12,DELOITTE TOUCHE TOHAMATSU INDIA PRIVATE LTD (DTTIPL),"280,758",Technical and Advisory Services,"Asia, Caribbean and Overseas Territories",
DFID,DFID,14-Mar-12,ERNST &  YOUNG PRIVATE LTD,"49,635",Technical and Advisory Services,"Asia, Caribbean and Overseas Territories",
DFID,DFID,16-Mar-12,ERNST &  YOUNG PRIVATE LTD,"15,515",Technical and Advisory Services,"Asia, Caribbean and Overseas Territories",
DFID,DFID,16-Mar-12,ERNST &  YOUNG PRIVATE LTD,"11,985",Technical and Advisory Services,"Asia, Caribbean and Overseas Territories",
DFID,DFID,14-Mar-12,COFFEY INTERNATIONAL DEVELOPMENT LTD,"21,960",Technical and Advisory Services,"Asia, Caribbean and Overseas Territories",
DFID,DFID,13-Mar-12,CAMBRIDGE EDUCATION LTD,"118,409",Technical and Advisory Services,"Asia, Caribbean and Overseas Territories",
DFID,DFID,13-Mar-12,GRM INTERNATIONAL LTD,"760,089",Technical and Advisory Services,"Asia, Caribbean and Overseas Territories",
DFID,DFID,13-Mar-12,TURNER & TOWNSEND,"14,652",Technical and Advisory Services,"Asia, Caribbean and Overseas Territories",
DFID,DFID,13-Mar-12,PKF (UK) LLP,"20,132",Technical and Advisory Services,"Asia, Caribbean and Overseas Territories",
DFID,DFID,13-Mar-12,PKF (UK) LLP,"20,260",Technical and Advisory Services,"Asia, Caribbean and Overseas Territories",
DFID,DFID,13-Mar-12,PKF (UK) LLP,"22,190",Technical and Advisory Services,"Asia, Caribbean and Overseas Territories",
DFID,DFID,13-Mar-12,CAMBRIDGE EDUCATION LTD,"9,630",Technical and Advisory Services,"Asia, Caribbean and Overseas Territories",
DFID,DFID,14-Mar-12,Crisil Risk and Infrastructure Solutions Limited,"7,087",Technical and Advisory Services,"Asia, Caribbean and Overseas Territories",
DFID,DFID,14-Mar-12,DELOITTE TOUCHE TOHMATSU INDIA PRIVA,"32,991",Technical and Advisory Services,"Asia, Caribbean and Overseas Territories",
DFID,DFID,14-Mar-12,DELOITTE TOUCHE TOHMATSU INDIA PRIVA,"11,773",Technical and Advisory Services,"Asia, Caribbean and Overseas Territories",
DFID,DFID,14-Mar-12,DELOITTE TOUCHE TOHMATSU INDIA PRIVA,"14,906",Technical and Advisory Services,"Asia, Caribbean and Overseas Territories",
DFID,DFID,14-Mar-12,SPC MANAGEMENT SERVICES PRIVATE LIMI,"2,558",Technical and Advisory Services,"Asia, Caribbean and Overseas Territories",
DFID,DFID,19-Mar-12,TURNER & TOWNSEND,"14,652",Technical and Advisory Services,"Asia, Caribbean and Overseas Territories",
DFID,DFID,15-Mar-12,ERNST &  YOUNG PRIVATE LTD,"44,120",Technical and Advisory Services,"Asia, Caribbean and Overseas Territories",
DFID,DFID,14-Mar-12,Shiva Raj Adhikary,789,Technical and Advisory Services,"Asia, Caribbean and Overseas Territories",
DFID,DFID,14-Mar-12,MARINE CONSERVATION INTERNATIONAL,"10,121",Technical and Advisory Services,"Asia, Caribbean and Overseas Territories",
DFID,DFID,14-Mar-12,MOTT MACDONALD LTD,"19,477",Technical and Advisory Services,"Asia, Caribbean and Overseas Territories",
DFID,DFID,15-Mar-12,CARE INTERNATIONAL,"22,806",Technical and Advisory Services,"Asia, Caribbean and Overseas Territories",
DFID,DFID,14-Mar-12,Nimbus Social Enterprise Consulting Ltd,"50,000",Technical and Advisory Services,"Asia, Caribbean and Overseas Territories",
DFID,DFID,15-Mar-12,SHEENA ADVERTISING,"4,144",Technical and Advisory Services,"Asia, Caribbean and Overseas Territories",
DFID,DFID,16-Mar-12,Trinh Tien Dung,"2,839",Technical and Advisory Services,"Asia, Caribbean and Overseas Territories",
DFID,DFID,16-Mar-12,TURNER & TOWNSEND,"31,491",Technical and Advisory Services,"Asia, Caribbean and Overseas Territories",
DFID,DFID,19-Mar-12,PRICEWATERHOUSECOOPERS PRIVATE LTD,"240,021",Technical and Advisory Services,"Asia, Caribbean and Overseas Territories",
DFID,DFID,16-Mar-12,GHK CONSULTING LTD,"4,183",Technical and Advisory Services,"Asia, Caribbean and Overseas Territories",
DFID,DFID,16-Mar-12,GHK CONSULTING LTD,"15,255",Technical and Advisory Services,"Asia, Caribbean and Overseas Territories",
DFID,DFID,20-Mar-12,BMB MOTT  MACDONALD,"496,832",Technical and Advisory Services,"Asia, Caribbean and Overseas Territories",
DFID,DFID,19-Mar-12,CARE INTERNATIONAL,"44,860",Technical and Advisory Services,"Asia, Caribbean and Overseas Territories",
DFID,DFID,19-Mar-12,Futures Group International India Pvt Ltd,"135,218",Technical and Advisory Services,"Asia, Caribbean and Overseas Territories",
DFID,DFID,16-Mar-12,BRITISH COUNCIL,"72,982",Technical and Advisory Services,"Asia, Caribbean and Overseas Territories",
DFID,DFID,16-Mar-12,Harewelle International Limited.,"89,796",Technical and Advisory Services,"Asia, Caribbean and Overseas Territories",
DFID,DFID,19-Mar-12,Gozde Avci,"6,117",Technical and Advisory Services,"Asia, Caribbean and Overseas Territories",
DFID,DFID,19-Mar-12,Trinh Tien Dung,"3,526",Technical and Advisory Services,"Asia, Caribbean and Overseas Territories",
DFID,DFID,19-Mar-12,PRICEWATERHOUSECOOPERS DEVELOPMENT,"38,045",Technical and Advisory Services,"Asia, Caribbean and Overseas Territories",
DFID,DFID,19-Mar-12,MAXWELL STAMP PLC,"725,445",Technical and Advisory Services,"Asia, Caribbean and Overseas Territories",
DFID,DFID,19-Mar-12,MAXWELL STAMP PLC,"200,000",Technical and Advisory Services,"Asia, Caribbean and Overseas Territories",
DFID,DFID,19-Mar-12,PRICEWATERHOUSECOOPERS DEVELOPMENT,"12,855",Technical and Advisory Services,"Asia, Caribbean and Overseas Territories",
DFID,DFID,19-Mar-12,PRICEWATERHOUSECOOPERS DEVELOPMENT,"30,458",Technical and Advisory Services,"Asia, Caribbean and Overseas Territories",
DFID,DFID,20-Mar-12,MAXWELL STAMP PLC,"322,568",Technical and Advisory Services,"Asia, Caribbean and Overseas Territories",
DFID,DFID,19-Mar-12,GHK CONSULTING LTD,"119,276",Technical and Advisory Services,"Asia, Caribbean and Overseas Territories",
DFID,DFID,19-Mar-12,Mr Gyanendra Karki,"1,904",Technical and Advisory Services,"Asia, Caribbean and Overseas Territories",
DFID,DFID,19-Mar-12,Bibek Raj Kandel,"1,430",Technical and Advisory Services,"Asia, Caribbean and Overseas Territories",
DFID,DFID,19-Mar-12,ADAM SMITH INTERNATIONAL  LTD,"304,567",Technical and Advisory Services,"Asia, Caribbean and Overseas Territories",
DFID,DFID,22-Mar-12,OXFORD POLICY MANAGEMENT,"22,191",Technical and Advisory Services,"Asia, Caribbean and Overseas Territories",
DFID,DFID,21-Mar-12,OXFORD POLICY MANAGEMENT,"21,453",Technical and Advisory Services,"Asia, Caribbean and Overseas Territories",
DFID,DFID,19-Mar-12,PRICEWATERHOUSECOOPERS DEVELOPMENT,"12,855",Technical and Advisory Services,"Asia, Caribbean and Overseas Territories",
DFID,DFID,20-Mar-12,SIDBI MUMBAI,"18,447",Technical and Advisory Services,"Asia, Caribbean and Overseas Territories",
DFID,DFID,19-Mar-12,HTSPE LTD,"14,666",Technical and Advisory Services,"Asia, Caribbean and Overseas Territories",
DFID,DFID,20-Mar-12,Dr Ferdous Jahan,"2,869",Technical and Advisory Services,"Asia, Caribbean and Overseas Territories",
DFID,DFID,20-Mar-12,MAXWELL STAMP PLC,"170,322",Technical and Advisory Services,"Asia, Caribbean and Overseas Territories",
DFID,DFID,20-Mar-12,Crisil Risk and Infrastructure Solutions Limited,"3,974",Technical and Advisory Services,"Asia, Caribbean and Overseas Territories",
DFID,DFID,20-Mar-12,OPTIONS CONSULTANCY SERVICES LIMITED,"70,847",Technical and Advisory Services,"Asia, Caribbean and Overseas Territories",
DFID,DFID,21-Mar-12,OVERSEAS DEVELOPMENT INSTITUTE,"9,127",Technical and Advisory Services,"Asia, Caribbean and Overseas Territories",
DFID,DFID,23-Mar-12,BMB MOTT  MACDONALD,"87,287",Technical and Advisory Services,"Asia, Caribbean and Overseas Territories",
DFID,DFID,22-Mar-12,ERNST &  YOUNG PRIVATE LTD,"4,833",Technical and Advisory Services,"Asia, Caribbean and Overseas Territories",
DFID,DFID,22-Mar-12,ERNST &  YOUNG PRIVATE LTD,"77,892",Technical and Advisory Services,"Asia, Caribbean and Overseas Territories",
DFID,DFID,21-Mar-12,Foreign & Commonwealth Office,"4,229",Technical and Advisory Services,"Asia, Caribbean and Overseas Territories",
DFID,DFID,21-Mar-12,Foreign & Commonwealth Office,"18,841",Technical and Advisory Services,"Asia, Caribbean and Overseas Territories",
DFID,DFID,21-Mar-12,Foreign & Commonwealth Office,"27,047",Technical and Advisory Services,"Asia, Caribbean and Overseas Territories",
DFID,DFID,22-Mar-12,PRICEWATERHOUSECOOPERS DEVELOPMENT,"38,442",Technical and Advisory Services,"Asia, Caribbean and Overseas Territories",
DFID,DFID,21-Mar-12,HAREWELLE INTERNATIONAL LIMITED,"29,084",Technical and Advisory Services,"Asia, Caribbean and Overseas Territories",
DFID,DFID,21-Mar-12,IMC Worldwide Ltd,"28,500",Technical and Advisory Services,"Asia, Caribbean and Overseas Territories",
DFID,DFID,21-Mar-12,IMC Worldwide Ltd,"503,082",Technical and Advisory Services,"Asia, Caribbean and Overseas Territories",
DFID,DFID,21-Mar-12,IMC Worldwide Ltd,"58,587",Technical and Advisory Services,"Asia, Caribbean and Overseas Territories",
DFID,DFID,21-Mar-12,IMC Worldwide Ltd,"630,784",Technical and Advisory Services,"Asia, Caribbean and Overseas Territories",
DFID,DFID,21-Mar-12,PRICEWATERHOUSECOOPERS,"25,570",Technical and Advisory Services,"Asia, Caribbean and Overseas Territories",
DFID,DFID,21-Mar-12,HTSPE LTD,"47,629",Technical and Advisory Services,"Asia, Caribbean and Overseas Territories",
DFID,DFID,21-Mar-12,COFFEY INTERNATIONAL DEVELOPMENT LTD,"2,175",Contract & Agency Staff,"Asia, Caribbean and Overseas Territories",
DFID,DFID,21-Mar-12,IMC Worldwide Ltd,"8,410",Technical and Advisory Services,"Asia, Caribbean and Overseas Territories",
DFID,DFID,21-Mar-12,MOTT MACDONALD LTD,"16,410",Technical and Advisory Services,"Asia, Caribbean and Overseas Territories",
DFID,DFID,22-Mar-12,DELOITTE TOUCHE TOHMATSU INDIA PRIVA,"51,532",Technical and Advisory Services,"Asia, Caribbean and Overseas Territories",
DFID,DFID,22-Mar-12,ASSOCIATES FOR INTERNATIONAL DEVELOPMENT (AID INC),"22,612",Technical and Advisory Services,"Asia, Caribbean and Overseas Territories",
DFID,DFID,22-Mar-12,COFFEY INTERNATIONAL DEVELOPMENT LTD,"5,416",Contract & Agency Staff,"Asia, Caribbean and Overseas Territories",
DFID,DFID,22-Mar-12,Nicholas Russell,"11,934",Technical and Advisory Services,"Asia, Caribbean and Overseas Territories",
DFID,DFID,27-Mar-12,MARINE CONSERVATION INTERNATIONAL,"7,231",Technical and Advisory Services,"Asia, Caribbean and Overseas Territories",
DFID,DFID,22-Mar-12,IMC Worldwide Ltd,"47,472",Technical and Advisory Services,"Asia, Caribbean and Overseas Territories",
DFID,DFID,23-Mar-12,DELOITTE TOUCHE TOHMATSU INDIA PRIVA,"13,893",Technical and Advisory Services,"Asia, Caribbean and Overseas Territories",
DFID,DFID,23-Mar-12,ICRA MANAGEMENT CONSULTING SERVICES,"6,808",Technical and Advisory Services,"Asia, Caribbean and Overseas Territories",
DFID,DFID,23-Mar-12,Infrastructure Professionals Enterprise (P) Ltd.,"8,675",Technical and Advisory Services,"Asia, Caribbean and Overseas Territories",
DFID,DFID,23-Mar-12,DELOITTE TOUCHE TOHMATSU INDIA PRIVA,"16,878",Technical and Advisory Services,"Asia, Caribbean and Overseas Territories",
DFID,DFID,23-Mar-12,DELOITTE TOUCHE TOHMATSU INDIA PRIVA,"13,198",Technical and Advisory Services,"Asia, Caribbean and Overseas Territories",
DFID,DFID,26-Mar-12,ERNST &  YOUNG PRIVATE LTD,"21,583",Technical and Advisory Services,"Asia, Caribbean and Overseas Territories",
DFID,DFID,26-Mar-12,Julia Loureiro,"8,021",Technical and Advisory Services,"Asia, Caribbean and Overseas Territories",
DFID,DFID,23-Mar-12,N D Hearnden,"3,244",Technical and Advisory Services,"Asia, Caribbean and Overseas Territories",
DFID,DFID,23-Mar-12,N D Hearnden,"9,875",Technical and Advisory Services,"Asia, Caribbean and Overseas Territories",
DFID,DFID,26-Mar-12,OPTIONS CONSULTANCY SERVICES LIMITED,"4,737",Technical and Advisory Services,"Asia, Caribbean and Overseas Territories",
DFID,DFID,27-Mar-12,OPTIONS CONSULTANCY SERVICES LIMITED,"38,208",Technical and Advisory Services,"Asia, Caribbean and Overseas Territories",
DFID,DFID,27-Mar-12,OPTIONS CONSULTANCY SERVICES LIMITED,"55,189",Technical and Advisory Services,"Asia, Caribbean and Overseas Territories",
DFID,DFID,26-Mar-12,OPTIONS CONSULTANCY SERVICES LIMITED,"120,064",Technical and Advisory Services,"Asia, Caribbean and Overseas Territories",
DFID,DFID,27-Mar-12,Pricewaterhousecoopers Pvt. Ltd.,"4,664",Technical and Advisory Services,"Asia, Caribbean and Overseas Territories",
DFID,DFID,27-Mar-12,Crisil Risk and Infrastructure Solutions Limited,"9,689",Technical and Advisory Services,"Asia, Caribbean and Overseas Territories",
DFID,DFID,27-Mar-12,Madhushree Banerjee,"1,198",Technical and Advisory Services,"Asia, Caribbean and Overseas Territories",
DFID,DFID,28-Mar-12,Price Waterhouse,"7,902",Technical and Advisory Services,"Asia, Caribbean and Overseas Territories",
DFID,DFID,28-Mar-12,Re-emerging World Consulting Private Limited,"37,587",Technical and Advisory Services,"Asia, Caribbean and Overseas Territories",
DFID,DFID,28-Mar-12,CARE INTERNATIONAL,"134,580",Technical and Advisory Services,"Asia, Caribbean and Overseas Territories",
DFID,DFID,28-Mar-12,Shuva Kantha Sharma,"9,223",Technical and Advisory Services,"Asia, Caribbean and Overseas Territories",
DFID,DFID,28-Mar-12,CHRISTIAN AID,"39,662",Technical and Advisory Services,"Asia, Caribbean and Overseas Territories",
DFID,DFID,28-Mar-12,JOHN WARWICK,"7,638",Technical and Advisory Services,"Asia, Caribbean and Overseas Territories",
DFID,DFID,30-Mar-12,Poyry Management Consulting Oy,"100,903",Technical and Advisory Services,"Asia, Caribbean and Overseas Territories",
DFID,DFID,28-Mar-12,Foreign & Commonwealth Office,"25,129",Technical and Advisory Services,"Asia, Caribbean and Overseas Territories",
DFID,DFID,28-Mar-12,Foreign & Commonwealth Office,"4,724",Technical and Advisory Services,"Asia, Caribbean and Overseas Territories",
DFID,DFID,28-Mar-12,Foreign & Commonwealth Office,"1,387",Technical and Advisory Services,"Asia, Caribbean and Overseas Territories",
DFID,DFID,28-Mar-12,JOHN WARWICK,"19,163",Technical and Advisory Services,"Asia, Caribbean and Overseas Territories",
DFID,DFID,28-Mar-12,PRICEWATERHOUSECOOPERS,"24,538",Technical and Advisory Services,"Asia, Caribbean and Overseas Territories",
DFID,DFID,29-Mar-12,ERM India Private Limited,"6,717",Technical and Advisory Services,"Asia, Caribbean and Overseas Territories",
DFID,DFID,29-Mar-12,IMC Worldwide Ltd,"26,315",Technical and Advisory Services,"Asia, Caribbean and Overseas Territories",
DFID,DFID,30-Mar-12,TURNER & TOWNSEND,"37,059",Technical and Advisory Services,"Asia, Caribbean and Overseas Territories",
DFID,DFID,30-Mar-12,Ann-Marie Nichols,"9,078",Technical and Advisory Services,"Asia, Caribbean and Overseas Territories",
DFID,DFID,30-Mar-12,Foreign & Commonwealth Office,641,Recruitment costs,"Asia, Caribbean and Overseas Territories",
DFID,DFID,19-Mar-12,BHARTI AIRTEL LIMITED,553,Telephone Usage & services,"Asia, Caribbean and Overseas Territories",
DFID,DFID,21-Mar-12,Foreign & Commonwealth Office,742,Telephone Usage & services,"Asia, Caribbean and Overseas Territories",
DFID,DFID,05-Mar-12,Cross Cultural Learning Point,669,Training - Course Fees,"Asia, Caribbean and Overseas Territories",
DFID,DFID,14-Mar-12,Right Time Limited,847,Training - Course Fees,"Asia, Caribbean and Overseas Territories",
DFID,DFID,14-Mar-12,CFVG,572,Training - Course Fees,"Asia, Caribbean and Overseas Territories",
DFID,DFID,30-Mar-12,THE UNIVERSITY OF MANCHESTER,525,Training - Course Fees,"Asia, Caribbean and Overseas Territories",
DFID,DFID,26-Mar-12,Recipient name withheld,502,Training - Travel & Subsistence,"Asia, Caribbean and Overseas Territories",
DFID,DFID,21-Mar-12,CRANFIELD MANAGEMENT DEVELOPMENT LTD,"5,250",Training - Course Fees,"Asia, Caribbean and Overseas Territories",
DFID,DFID,21-Mar-12,NATIONAL SCHOOL OF GOVERNMENT,"1,180",Training - Course Fees,"Asia, Caribbean and Overseas Territories",
DFID,DFID,22-Mar-12,Partnership Brokers Association,"3,000",Training - Course Fees,"Asia, Caribbean and Overseas Territories",
DFID,DFID,28-Mar-12,Truong DH KT- �HQGHN,963,Training - Course Fees,"Asia, Caribbean and Overseas Territories",
DFID,DFID,29-Mar-12,NATIONAL SCHOOL OF GOVERNMENT,925,Training - Course Fees,"Asia, Caribbean and Overseas Territories",
DFID,DFID,30-Mar-12,Corporate Travel Provider,801,Training - Travel & Subsistence,"Asia, Caribbean and Overseas Territories",
DFID,DFID,30-Mar-12,Corporate Travel Provider,711,Training - Travel & Subsistence,"Asia, Caribbean and Overseas Territories",
DFID,DFID,09-Mar-12,KUONI BUSINESS TRAVEL INDIA PVT LTD,"1,332",Training - Travel & Subsistence,"Asia, Caribbean and Overseas Territories",
DFID,DFID,09-Mar-12,KUONI BUSINESS TRAVEL INDIA PVT LTD,901,Training - Travel & Subsistence,"Asia, Caribbean and Overseas Territories",
DFID,DFID,13-Mar-12,Hanoi Toserco,"1,255",Training - Travel & Subsistence,"Asia, Caribbean and Overseas Territories",
DFID,DFID,13-Mar-12,Hanoi Toserco,697,Training - Travel & Subsistence,"Asia, Caribbean and Overseas Territories",
DFID,DFID,29-Mar-12,FOREIGN AND COMMONWEALTH OFFICE (FCO),"2,177",Training - Travel & Subsistence,"Asia, Caribbean and Overseas Territories",
DFID,DFID,22-Mar-12,Foreign & Commonwealth Office,927,Training - Travel & Subsistence,"Asia, Caribbean and Overseas Territories",
DFID,DFID,26-Mar-12,KUONI BUSINESS TRAVEL INDIA PVT LTD,838,Training - Travel & Subsistence,"Asia, Caribbean and Overseas Territories",
DFID,DFID,27-Mar-12,KUONI BUSINESS TRAVEL INDIA PVT LTD,885,Training - Travel & Subsistence,"Asia, Caribbean and Overseas Territories",
DFID,DFID,28-Mar-12,Hanoi Toserco,"1,819",Training - Travel & Subsistence,"Asia, Caribbean and Overseas Territories",
DFID,DFID,27-Mar-12,KUONI BUSINESS TRAVEL INDIA PVT LTD,644,Training - Travel & Subsistence,"Asia, Caribbean and Overseas Territories",
DFID,DFID,27-Mar-12,KUONI BUSINESS TRAVEL INDIA PVT LTD,590,Training - Travel & Subsistence,"Asia, Caribbean and Overseas Territories",
DFID,DFID,01-Mar-12,ILLUMINE LIMITED,"1,050",Training Providers/Facilitation Services,"Asia, Caribbean and Overseas Territories",
DFID,DFID,14-Mar-12,PRERNA CENTRE FOR LEARNING AND DEVELOPMENT PRIVATE LIMITED,695,Training Providers/Facilitation Services,"Asia, Caribbean and Overseas Territories",
DFID,DFID,13-Mar-12,"PAN PACIFIC SONARGAON, DHAKA",859,Travel - Subsistence,"Asia, Caribbean and Overseas Territories",
DFID,DFID,21-Mar-12,Foreign & Commonwealth Office,820,Travel - Subsistence,"Asia, Caribbean and Overseas Territories",
DFID,DFID,05-Mar-12,ASIAN DEVELOPMENT.BANK,"395,000",Aid Programme - Trust Funds contributions,"Asia, Caribbean and Overseas Territories",
DFID,DFID,13-Mar-12,IBRD HSBC T,"3,500,000",Aid Programme - Trust Funds contributions,"Asia, Caribbean and Overseas Territories",
DFID,DFID,21-Mar-12,UNDP MULTI-PARTNER TRUST FUND OFFICE (USD) ACCOUNT,"1,000,000",Aid Programme - Trust Funds contributions,"Asia, Caribbean and Overseas Territories",
DFID,DFID,21-Mar-12,IBRD HSBC T,"400,000",Aid Programme - Trust Funds contributions,"Asia, Caribbean and Overseas Territories",
DFID,DFID,21-Mar-12,IBRD HSBC T,"1,450,000",Aid Programme - Trust Funds contributions,"Asia, Caribbean and Overseas Territories",
DFID,DFID,01-Mar-12,GARTH ARMSTRONG,545,Other travel costs,"Asia, Caribbean and Overseas Territories",
DFID,DFID,23-Mar-12,Nepal Oil Corporation,"2,849",Vehicle Petrol & Oil,"Asia, Caribbean and Overseas Territories",
DFID,DFID,23-Mar-12,Nepal Oil Corporation,"1,534",Vehicle Petrol & Oil,"Asia, Caribbean and Overseas Territories",
DFID,DFID,28-Mar-12,Sikder Filling and Serivce Station,715,Vehicle Petrol & Oil,"Asia, Caribbean and Overseas Territories",
DFID,DFID,15-Mar-12,QUTAB SERVICE STATION,"1,614",Vehicle Repairs & Maintenance,"Asia, Caribbean and Overseas Territories",
DFID,DFID,13-Mar-12,The World Bank (EFO),"100,000",Aid Programme - Voluntary contributions,"Asia, Caribbean and Overseas Territories",
DFID,DFID,15-Mar-12,UNDP CONTRIBUTIONS GBP,"2,542,936",Aid Programme - Voluntary contributions,"Asia, Caribbean and Overseas Territories",
DFID,DFID,15-Mar-12,UNDP CONTRIBUTIONS GBP,"2,405,893",Aid Programme - Voluntary contributions,"Asia, Caribbean and Overseas Territories",
DFID,DFID,19-Mar-12,Caribbean Export Development Agency,"200,000",Aid Programme - Voluntary contributions,"Asia, Caribbean and Overseas Territories",
DFID,DFID,20-Mar-12,CARIBBEAN DEVELOPMENT BANK,"1,500,000",Aid Programme - Voluntary contributions,"Asia, Caribbean and Overseas Territories",
DFID,DFID,20-Mar-12,IBRD (HSBC)  C/O THE WORLD BANK,"100,000",Aid Programme - Voluntary contributions,"Asia, Caribbean and Overseas Territories",
DFID,DFID,21-Mar-12,The World Bank (EFO),"50,000",Aid Programme - Voluntary contributions,"Asia, Caribbean and Overseas Territories",
DFID,DFID,27-Mar-12,Pan American Health Organisation,"240,000",Aid Programme - Voluntary contributions,"Asia, Caribbean and Overseas Territories",
DFID,DFID,29-Mar-12,THE BRITISH RED CROSS SOCIETY,"245,000",Aid Programme - Voluntary contributions,"Asia, Caribbean and Overseas Territories",
DFID,DFID,06-Mar-12,DELHI JAL BOARD,587,Water charges,"Asia, Caribbean and Overseas Territories",
DFID,DFID,14-Mar-12,Bal Krishna Dahal,667,Water charges,"Asia, Caribbean and Overseas Territories",
DFID,DFID,30-Mar-12,Government Procurement Card,"1,428",Computer Consumables,Business Solutions Division Level,
DFID,DFID,20-Mar-12,Rufus Leonard Ltd,"1,020",Computer hardware maintenance,Business Solutions Division Level,
DFID,DFID,08-Mar-12,TRUSTMARQUE SOLUTIONS LTD,"1,199",Computer Software Licenses,Business Solutions Division Level,
DFID,DFID,21-Mar-12,RICOH UK LTD,"57,052",Computer Software Licenses,Business Solutions Division Level,
DFID,DFID,26-Mar-12,THE CLOUD NETWORKS LTD,"9,886",Computer Software Licenses,Business Solutions Division Level,
DFID,DFID,21-Mar-12,RICOH UK LTD,"6,860",Computer software maintenance,Business Solutions Division Level,
DFID,DFID,29-Mar-12,NORTHGATE HR LIMITED,"2,761",Computer software maintenance,Business Solutions Division Level,
DFID,DFID,30-Mar-12,Government Procurement Card,550,"Conferences, Seminars & Meeting/Event Resource",Business Solutions Division Level,
DFID,DFID,28-Mar-12,MTI Technology Ltd,"2,850",Technical and Advisory Services,Business Solutions Division Level,
DFID,DFID,05-Mar-12,Subisu Cable Net Pvt Ltd,729,Data Network - land lines,Business Solutions Division Level,
DFID,DFID,08-Mar-12,Agni Systems Limited,863,Data Network - land lines,Business Solutions Division Level,
DFID,DFID,13-Mar-12,VERIZON UK LIMITED,"4,373",Data Network - land lines,Business Solutions Division Level,
DFID,DFID,19-Mar-12,GLOBAL CROSSING (UK) TELECOMMS LTD,516,Data Network - land lines,Business Solutions Division Level,
DFID,DFID,20-Mar-12,Subisu Cable Net Pvt Ltd,724,Data Network - land lines,Business Solutions Division Level,
DFID,DFID,21-Mar-12,Foreign & Commonwealth Office,"2,593",Data Network - land lines,Business Solutions Division Level,
DFID,DFID,26-Mar-12,CABLE & WIRELESS COMMUN,"7,974",Data Network - land lines,Business Solutions Division Level,
DFID,DFID,26-Mar-12,CABLE & WIRELESS COMMUN,"186,506",Data Network - land lines,Business Solutions Division Level,Cable & wireless  Rental - Overseas 2011/12
DFID,DFID,27-Mar-12,Sify Technologies Ltd,"1,067",Data Network - land lines,Business Solutions Division Level,
DFID,DFID,28-Mar-12,Agni Systems Limited,850,Data Network - land lines,Business Solutions Division Level,
DFID,DFID,30-Mar-12,Foreign & Commonwealth Office,"1,102",Data Network - land lines,Business Solutions Division Level,
DFID,DFID,30-Mar-12,GLOBAL CROSSING (UK) TELECOMMS LTD,516,Data Network - land lines,Business Solutions Division Level,
DFID,DFID,19-Mar-12,IPNX Nigeria Ltd,"1,771",Data network- remote working,Business Solutions Division Level,
DFID,DFID,19-Mar-12,Suburban Broadband Ltd,"2,155",Data network- remote working,Business Solutions Division Level,
DFID,DFID,21-Mar-12,Networkshop Limited,950,Data network- remote working,Business Solutions Division Level,
DFID,DFID,21-Mar-12,SKYVISION GLOBAL NETWORKS LLC,"4,693",Data network- remote working,Business Solutions Division Level,
DFID,DFID,29-Mar-12,Foreign & Commonwealth Office,556,Data network- remote working,Business Solutions Division Level,
DFID,DFID,14-Mar-12,VIZADA NETWORKS,"2,177",Data Network -Satellite,Business Solutions Division Level,
DFID,DFID,28-Mar-12,FCO RECOVERIES UNIT,"495,658",Data Network -Satellite,Business Solutions Division Level,Overseas Satellite costs Jan to Mar 2012
DFID,DFID,30-Mar-12,COLT TELECOMMUNICATIONS,"1,125",Data Network -Satellite,Business Solutions Division Level,
DFID,DFID,22-Mar-12,Agni Systems Limited,760,Hardware - networking equipment,Business Solutions Division Level,
DFID,DFID,26-Mar-12,CABLE & WIRELESS COMMUN,"41,283",Hardware - networking equipment,Business Solutions Division Level,
DFID,DFID,30-Mar-12,Government Procurement Card,656,Hardware - servers & storage,Business Solutions Division Level,
DFID,DFID,30-Mar-12,Government Procurement Card,552,Hardware -Laptop PCs,Business Solutions Division Level,
DFID,DFID,30-Mar-12,Government Procurement Card,552,Hardware -Laptop PCs,Business Solutions Division Level,
DFID,DFID,30-Mar-12,Government Procurement Card,"3,954",Hardware -Laptop PCs,Business Solutions Division Level,
DFID,DFID,30-Mar-12,Corporate Travel Provider,527,Hotels - Accommodation only,Business Solutions Division Level,
DFID,DFID,16-Mar-12,TREASURY SOLICITORS CASH ACC,"1,046",Legal costs,Business Solutions Division Level,
DFID,DFID,27-Mar-12,Foreign & Commonwealth Office,554,Office Equipment - Purchases,Business Solutions Division Level,
DFID,DFID,23-Mar-12,GDC Building Services Ltd,"4,907",Other Building Products,Business Solutions Division Level,
DFID,DFID,14-Mar-12,NAYATEL (PVT) LTD,552,other information and communication technologies,Business Solutions Division Level,
DFID,DFID,14-Mar-12,NAYATEL (PVT) LTD,552,other information and communication technologies,Business Solutions Division Level,
DFID,DFID,22-Mar-12,EQUANET LTD,"15,419",Printer Consumables,Business Solutions Division Level,
DFID,DFID,28-Mar-12,GARTNERGROUP UK LTD,"63,360",Professional member subscriptions,Business Solutions Division Level,Annual subscription for Information Technology Research Service April 2012 - March 2013
DFID,DFID,23-Mar-12,SAFECON Electro Mechanical Works PLC,"8,559","Repairs, Maint, Alter - Property & Constrct. Services",Business Solutions Division Level,
DFID,DFID,05-Mar-12,Saimon Overseas Ltd,615,Air fares,Business Solutions Division Level,
DFID,DFID,12-Mar-12,Saimon Overseas Ltd,"2,907",Air fares,Business Solutions Division Level,
DFID,DFID,23-Mar-12,KUONI BUSINESS TRAVEL INDIA PVT LTD,681,Air fares,Business Solutions Division Level,
DFID,DFID,06-Mar-12,TNT Express (UK) Ltd,"4,549",Storage & Distribution costs,Business Solutions Division Level,
DFID,DFID,06-Mar-12,ALLEGIS GROUP LIMITED,925,Technical and Advisory Services,Business Solutions Division Level,
DFID,DFID,06-Mar-12,ALLEGIS GROUP LIMITED,"2,340",Technical and Advisory Services,Business Solutions Division Level,
DFID,DFID,06-Mar-12,ALLEGIS GROUP LIMITED,"5,850",Technical and Advisory Services,Business Solutions Division Level,
DFID,DFID,13-Mar-12,Parity Resources,"10,752",Technical and Advisory Services,Business Solutions Division Level,
DFID,DFID,16-Mar-12,OPIN SYSTEMS LIMITED,"7,400",Technical and Advisory Services,Business Solutions Division Level,
DFID,DFID,16-Mar-12,OPIN SYSTEMS LIMITED,"9,282",Technical and Advisory Services,Business Solutions Division Level,
DFID,DFID,21-Mar-12,OXFORD COMPUTER GROUP,"4,794",Technical and Advisory Services,Business Solutions Division Level,
DFID,DFID,26-Mar-12,CABLE & WIRELESS COMMUN,"51,449",Technical and Advisory Services,Business Solutions Division Level,Monthly Service Management Charges 2011/12
DFID,DFID,26-Mar-12,CABLE & WIRELESS COMMUN,"125,748",Technical and Advisory Services,Business Solutions Division Level,
DFID,DFID,05-Mar-12,d&m taxis,650,Taxi costs,Business Solutions Division Level,
DFID,DFID,26-Mar-12,CABLE & WIRELESS COMMUN,"42,382",Telephone Sys -hardware,Business Solutions Division Level,
DFID,DFID,26-Mar-12,CABLE & WIRELESS COMMUN,"2,091",Telephone Sys -hardware,Business Solutions Division Level,
DFID,DFID,05-Mar-12,BT BACS PAYMENTS,"3,132",Telephone Usage & services,Business Solutions Division Level,
DFID,DFID,12-Mar-12,Telkom SA Ltd,"1,766",Telephone Usage & services,Business Solutions Division Level,
DFID,DFID,30-Mar-12,Government Procurement Card,"1,026",Training - Course Fees,Business Solutions Division Level,
DFID,DFID,30-Mar-12,Government Procurement Card,"1,026",Training - Course Fees,Business Solutions Division Level,
DFID,DFID,02-Mar-12,BUSINESS ANALYST SOLUTIONS,695,Training - Course Fees,Business Solutions Division Level,
DFID,DFID,02-Mar-12,COMBINED KNOWLEDGE LTD,"3,645",Training - Course Fees,Business Solutions Division Level,
DFID,DFID,15-Mar-12,Phillips Consulting,604,Training - Course Fees,Business Solutions Division Level,
DFID,DFID,29-Mar-12,Golden Tulip Kumasi City,536,Other travel costs,Business Solutions Division Level,
DFID,DFID,14-Mar-12,The Ragdoll Foundation,"16,199",Aid Programme - Accountable Grant Payments,Communications Division,
DFID,DFID,30-Mar-12,Government Procurement Card,727,Contract & Agency Staff,Communications Division,
DFID,DFID,22-Mar-12,CENTRAL OFFICE OF INFORMATION,"13,829",Contract & Agency Staff,Communications Division,
DFID,DFID,30-Mar-12,Government Procurement Card,603,Data Network -Satellite,Communications Division,
DFID,DFID,30-Mar-12,Government Procurement Card,652,Data Network -Satellite,Communications Division,
DFID,DFID,19-Mar-12,TREASURY SOLICITORS CASH ACC,639,Legal costs,Communications Division,
DFID,DFID,30-Mar-12,Government Procurement Card,540,Other Professional Development,Communications Division,
DFID,DFID,13-Mar-12,COPYPRINT UK LTD,944,Print Services,Communications Division,
DFID,DFID,30-Mar-12,Corporate Travel Provider,689,Air fares,Communications Division,
DFID,DFID,05-Mar-12,CENTRE FOR GLOBAL EDUCATION,544,Technical and Advisory Services,Communications Division,
DFID,DFID,06-Mar-12,INTERN DEVEL EDUC ASSOC OF SCOTLAND,"1,938",Technical and Advisory Services,Communications Division,
DFID,DFID,19-Mar-12,Durrants lTD,"2,355",Technical and Advisory Services,Communications Division,
DFID,DFID,14-Mar-12,THE PRESS ASSOCIATION,530,Technical and Advisory Services,Communications Division,
DFID,DFID,13-Mar-12,CYFANFYD,"1,206",Technical and Advisory Services,Communications Division,
DFID,DFID,22-Mar-12,Durrants lTD,"1,939",Technical and Advisory Services,Communications Division,
DFID,DFID,23-Mar-12,TRIPLE LINE CONSULTING LTD,"10,664",Technical and Advisory Services,Communications Division,
DFID,DFID,23-Mar-12,TRIPLE LINE CONSULTING LTD,"5,000",Technical and Advisory Services,Communications Division,
DFID,DFID,28-Mar-12,Digital My Way,734,Other ICT,Communications Division,
DFID,DFID,16-Mar-12,COI - GCN,"2,016",Training Providers/Facilitation Services,Communications Division,
DFID,DFID,22-Mar-12,SCOTLAND OFFICE,"5,020",Operating Lease rental of buildings,Corporate Hub,
DFID,DFID,08-Mar-12,KPMG LLP,"64,724",Technical and Advisory Services,Corporate Hub,
DFID,DFID,09-Mar-12,NATIONAL AUDIT OFFICE,"8,936",Technical and Advisory Services,Corporate Hub,
DFID,DFID,15-Mar-12,KPMG LLP,"90,821",Technical and Advisory Services,Corporate Hub,
DFID,DFID,19-Mar-12,KPMG LLP,"66,388",Technical and Advisory Services,Corporate Hub,
DFID,DFID,19-Mar-12,HM TREASURY VOTES CASH ACCOUNT,"51,827",Technical and Advisory Services,Corporate Hub,
DFID,DFID,21-Mar-12,KPMG LLP,"26,525",Technical and Advisory Services,Corporate Hub,
DFID,DFID,07-Mar-12,Global Green Growth Institute,"263,883",Aid Programme - Accountable Grant Payments,East and Central Africa,
DFID,DFID,05-Mar-12,"Clinton Health Access Initiative, Inc","22,200",Aid Programme - Accountable Grant Payments,East and Central Africa,
DFID,DFID,07-Mar-12,POPULATION  SERVICES INTERNATIONAL,"2,054,251",Aid Programme - Accountable Grant Payments,East and Central Africa,
DFID,DFID,07-Mar-12,POPULATION  SERVICES INTERNATIONAL,"95,291",Aid Programme - Accountable Grant Payments,East and Central Africa,
DFID,DFID,07-Mar-12,GHANA CENTER FOR DEMOCRATIC DEVELOPMENT US DOLLAR ACCOUNT,"1,500,000",Aid Programme - Accountable Grant Payments,East and Central Africa,
DFID,DFID,06-Mar-12,SAFERWORLD,"126,934",Aid Programme - Accountable Grant Payments,East and Central Africa,
DFID,DFID,06-Mar-12,SAFERWORLD,"98,293",Aid Programme - Accountable Grant Payments,East and Central Africa,
DFID,DFID,08-Mar-12,IPAS,"1,661,400",Aid Programme - Accountable Grant Payments,East and Central Africa,
DFID,DFID,08-Mar-12,MERCY CORPS,"194,759",Aid Programme - Accountable Grant Payments,East and Central Africa,
DFID,DFID,09-Mar-12,PACT INC,"350,000",Aid Programme - Accountable Grant Payments,East and Central Africa,
DFID,DFID,09-Mar-12,AGRA in AFRICA,"40,746",Aid Programme - Accountable Grant Payments,East and Central Africa,
DFID,DFID,09-Mar-12,The Centre for Humanitarian Dialogue,"75,762",Aid Programme - Accountable Grant Payments,East and Central Africa,
DFID,DFID,15-Mar-12,ACTION AGAINST HUNGER UK,"556,215",Aid Programme - Accountable Grant Payments,East and Central Africa,
DFID,DFID,09-Mar-12, Overseas Development Institute,"45,707",Aid Programme - Accountable Grant Payments,East and Central Africa,
DFID,DFID,12-Mar-12,TRADEMARK EAST AFRICA,"211,125",Aid Programme - Accountable Grant Payments,East and Central Africa,
DFID,DFID,09-Mar-12,OXFAM INSTITUTIONAL INCOME ACCOUNT,"82,315",Aid Programme - Accountable Grant Payments,East and Central Africa,
DFID,DFID,09-Mar-12,OXFAM INSTITUTIONAL INCOME ACCOUNT,"27,284",Aid Programme - Accountable Grant Payments,East and Central Africa,
DFID,DFID,14-Mar-12,THE SAVE THE CHILDREN FUND,"200,000",Aid Programme - Accountable Grant Payments,East and Central Africa,
DFID,DFID,15-Mar-12,ALLIANCE FOR A GREEN REVOLUTION IN AFRICA,"980,000",Aid Programme - Accountable Grant Payments,East and Central Africa,
DFID,DFID,14-Mar-12,LIGHT YEARS IP,"35,349",Aid Programme - Accountable Grant Payments,East and Central Africa,
DFID,DFID,15-Mar-12,VSO,"70,325",Aid Programme - Accountable Grant Payments,East and Central Africa,
DFID,DFID,16-Mar-12,AGRA IN AFRICA (NO2),"400,000",Aid Programme - Accountable Grant Payments,East and Central Africa,
DFID,DFID,16-Mar-12,AGRA IN AFRICA (NO2),"400,000",Aid Programme - Accountable Grant Payments,East and Central Africa,
DFID,DFID,19-Mar-12, HANDICAP INTERNATIONAL,"73,137",Aid Programme - Accountable Grant Payments,East and Central Africa,
DFID,DFID,16-Mar-12,DANISH REFUGEE COUNCIL,"326,488",Aid Programme - Accountable Grant Payments,East and Central Africa,
DFID,DFID,15-Mar-12,SAVE THE CHILDREN,"1,540,865",Aid Programme - Accountable Grant Payments,East and Central Africa,
DFID,DFID,21-Mar-12,PACT KENYA - NSA NRM SUPPORT,"175,175",Aid Programme - Accountable Grant Payments,East and Central Africa,
DFID,DFID,21-Mar-12,CONFLICT DYNAMICS INTERNATIONAL INC,"31,208",Aid Programme - Accountable Grant Payments,East and Central Africa,
DFID,DFID,21-Mar-12,CONFLICT DYNAMICS INTERNATIONAL INC,"20,806",Aid Programme - Accountable Grant Payments,East and Central Africa,
DFID,DFID,16-Mar-12,ACTION AGAINST HUNGER UK,"725,952",Aid Programme - Accountable Grant Payments,East and Central Africa,
DFID,DFID,16-Mar-12,THE MENTOR INITIATIVE,"93,799",Aid Programme - Accountable Grant Payments,East and Central Africa,
DFID,DFID,20-Mar-12,Gatsby Charitable Foundation UK,"865,441",Aid Programme - Accountable Grant Payments,East and Central Africa,
DFID,DFID,20-Mar-12,INUKA KENYA TRUST,"212,798",Aid Programme - Accountable Grant Payments,East and Central Africa,
DFID,DFID,20-Mar-12,Tanzania Private Sector Foundation,"1,402,701",Aid Programme - Accountable Grant Payments,East and Central Africa,
DFID,DFID,20-Mar-12,AFRICAN MEDICAL RESEARCH FOUNDATION,"423,778",Aid Programme - Accountable Grant Payments,East and Central Africa,
DFID,DFID,20-Mar-12,OXFAM,"412,280",Aid Programme - Accountable Grant Payments,East and Central Africa,
DFID,DFID,22-Mar-12,CARE INTERNATIONAL,"58,081",Aid Programme - Accountable Grant Payments,East and Central Africa,
DFID,DFID,27-Mar-12,SAVE THE CHILDREN,"683,026",Aid Programme - Accountable Grant Payments,East and Central Africa,
DFID,DFID,28-Mar-12,Action Against Hunger - USA,"81,865",Aid Programme - Accountable Grant Payments,East and Central Africa,
DFID,DFID,30-Mar-12,WaterAid Tanzania,"218,000",Aid Programme - Accountable Grant Payments,East and Central Africa,
DFID,DFID,12-Mar-12,MONITOR PUBLICATIONS LIMITED,878,Books & Publications,East and Central Africa,
DFID,DFID,12-Mar-12,NATION MEDIA GROUP,922,Books & Publications,East and Central Africa,
DFID,DFID,12-Mar-12,New Vision,931,Books & Publications,East and Central Africa,
DFID,DFID,30-Mar-12,Government Procurement Card,"4,095",Computer Consumables,East and Central Africa,
DFID,DFID,28-Mar-12,Circuit Business Systems (K) Limited,"1,071",Computer Consumables,East and Central Africa,
DFID,DFID,28-Mar-12,Luziki Communications Ltd,"2,099",Computer Consumables,East and Central Africa,
DFID,DFID,28-Mar-12,Virtual Sat Ltd,"4,771",Computer Software Licenses,East and Central Africa,
DFID,DFID,05-Mar-12, ACCESS TO FINANCE RWANDA,"1,500,000",Aid Programme - Core contributions,East and Central Africa,
DFID,DFID,09-Mar-12,FINANCIAL SECTOR DEEPENING,"1,500,000",Aid Programme - Core contributions,East and Central Africa,
DFID,DFID,20-Mar-12,NEPAD (International Partnership for Africa Fisheries),"856,539",Aid Programme - Core contributions,East and Central Africa,
DFID,DFID,01-Mar-12,ELECTROGAZ,980,Electricity,East and Central Africa,
DFID,DFID,16-Mar-12,Joshi Electrical & General Services,574,Electricity,East and Central Africa,
DFID,DFID,21-Mar-12,UMEME Ltd,"1,001",Electricity,East and Central Africa,
DFID,DFID,22-Mar-12,FOREIGN AND COMMONWEALTH OFFICE (FCO),"1,062",Electricity,East and Central Africa,
DFID,DFID,21-Mar-12,Foreign & Commonwealth Office,519,Electricity,East and Central Africa,
DFID,DFID,23-Mar-12,BRITISH HIGH COMMISSION KLA,"3,988",Electricity,East and Central Africa,
DFID,DFID,23-Mar-12,BRITISH HIGH COMMISSION KLA,"7,742",Electricity,East and Central Africa,
DFID,DFID,26-Mar-12,Joshi Electrical & General Services,556,Electricity,East and Central Africa,
DFID,DFID,30-Mar-12,Foreign & Commonwealth Office,641,Electricity,East and Central Africa,
DFID,DFID,22-Mar-12,Adanech Readymade Clothes Import P.L.C,"2,893",Uniforms,East and Central Africa,
DFID,DFID,15-Mar-12, FCO SERVICES,"1,700",Entertainment & Hospitality,East and Central Africa,
DFID,DFID,08-Mar-12,JMC Umoja House,"8,476",FCO shared service charges,East and Central Africa,
DFID,DFID,21-Mar-12,British High Commission(Tsh),"5,289",FCO shared service charges,East and Central Africa,
DFID,DFID,21-Mar-12,Foreign & Commonwealth Office,"3,362",FCO shared service charges,East and Central Africa,
DFID,DFID,21-Mar-12,Foreign & Commonwealth Office,"1,736",FCO shared service charges,East and Central Africa,
DFID,DFID,21-Mar-12,Foreign & Commonwealth Office,"5,207",FCO shared service charges,East and Central Africa,
DFID,DFID,21-Mar-12,Foreign & Commonwealth Office,"10,086",FCO shared service charges,East and Central Africa,
DFID,DFID,28-Mar-12,Foreign & Commonwealth Office,605,FCO shared service charges,East and Central Africa,
DFID,DFID,28-Mar-12,Foreign & Commonwealth Office,759,FCO shared service charges,East and Central Africa,
DFID,DFID,08-Mar-12,Foreign & Commonwealth Office,599,Furniture & Fittings,East and Central Africa,
DFID,DFID,08-Mar-12,Foreign & Commonwealth Office,"2,122",UK Staff overseas - Transfer costs,East and Central Africa,
DFID,DFID,08-Mar-12,Foreign & Commonwealth Office,"1,095",Furniture & Fittings,East and Central Africa,
DFID,DFID,08-Mar-12,Foreign & Commonwealth Office,519,Furniture & Fittings,East and Central Africa,
DFID,DFID,08-Mar-12,Foreign & Commonwealth Office,"1,038",Furniture & Fittings,East and Central Africa,
DFID,DFID,08-Mar-12,Foreign & Commonwealth Office,"1,038",Furniture & Fittings,East and Central Africa,
DFID,DFID,08-Mar-12,Foreign & Commonwealth Office,825,Furniture & Fittings,East and Central Africa,
DFID,DFID,08-Mar-12,Foreign & Commonwealth Office,"1,240",Furniture & Fittings,East and Central Africa,
DFID,DFID,08-Mar-12,Freedom Electronics,"1,126",Furniture & Fittings,East and Central Africa,
DFID,DFID,12-Mar-12,KOIZA INTERNATIONAL LTD,"25,000",Furniture & Fittings,East and Central Africa,
DFID,DFID,12-Mar-12,KOIZA INTERNATIONAL LTD,"6,913",Furniture & Fittings,East and Central Africa,
DFID,DFID,14-Mar-12,Crown Relocations Tanzania Ltd (USD) TZ,"4,309",UK Staff overseas - Transfer costs,East and Central Africa,
DFID,DFID,14-Mar-12,CENTRE MULTI TECHNIQUES,"2,760",Furniture & Fittings,East and Central Africa,
DFID,DFID,16-Mar-12,BRICOTECH SARL,"1,667",Furniture & Fittings,East and Central Africa,
DFID,DFID,16-Mar-12,UBM Overseas Ltd,"2,548",Furniture & Fittings,East and Central Africa,
DFID,DFID,21-Mar-12,Foreign & Commonwealth Office,"3,610",Furniture & Fittings,East and Central Africa,
DFID,DFID,21-Mar-12,Foreign & Commonwealth Office,"2,914",Furniture & Fittings,East and Central Africa,
DFID,DFID,23-Mar-12,FOREIGN AND COMMONWEALTH OFFICE (FCO),"13,724",Furniture & Fittings,East and Central Africa,
DFID,DFID,27-Mar-12,Foreign & Commonwealth Office,"3,791",Furniture & Fittings,East and Central Africa,
DFID,DFID,28-Mar-12,Foreign & Commonwealth Office,900,Furniture & Fittings,East and Central Africa,
DFID,DFID,28-Mar-12,Foreign & Commonwealth Office,"3,257",Furniture & Fittings,East and Central Africa,
DFID,DFID,28-Mar-12,Foreign & Commonwealth Office,"1,128",Furniture & Fittings,East and Central Africa,
DFID,DFID,28-Mar-12,Foreign & Commonwealth Office,678,Furniture & Fittings,East and Central Africa,
DFID,DFID,29-Mar-12,WESTBURY ESTATE SERVICES LTD,"39,500",Furniture & Fittings,East and Central Africa,
DFID,DFID,30-Mar-12,Foreign & Commonwealth Office,"4,532",Furniture & Fittings,East and Central Africa,
DFID,DFID,30-Mar-12,Foreign & Commonwealth Office,954,Furniture & Fittings,East and Central Africa,
DFID,DFID,30-Mar-12,Foreign & Commonwealth Office,"4,532",Furniture & Fittings,East and Central Africa,
DFID,DFID,23-Mar-12,BRITISH HIGH COMMISSION KLA,"4,494",Gas,East and Central Africa,
DFID,DFID,23-Mar-12,BRITISH HIGH COMMISSION KLA,"8,724",Gas,East and Central Africa,
DFID,DFID,26-Mar-12,Kobil Petroleum Rwanda SARL,"6,277",Generators & spares,East and Central Africa,
DFID,DFID,28-Mar-12,Foreign & Commonwealth Office,"14,833",Generators & spares,East and Central Africa,
DFID,DFID,29-Mar-12,Phoenix Diesel Power  Ltd,"31,437",Generators & spares,East and Central Africa,
DFID,DFID,30-Mar-12,Phoenix Diesel Power  Ltd,"15,728",Generators & spares,East and Central Africa,
DFID,DFID,28-Mar-12,Luziki Communications Ltd,947,Hardware - desktop PCs,East and Central Africa,
DFID,DFID,28-Mar-12,Luziki Communications Ltd,"7,003",Hardware - printers,East and Central Africa,
DFID,DFID,30-Mar-12,Government Procurement Card,750,Hardware - Scanners,East and Central Africa,
DFID,DFID,28-Mar-12,Luziki Communications Ltd,"2,194",Hardware -Laptop PCs,East and Central Africa,
DFID,DFID,30-Mar-12,Government Procurement Card,630,Hardware -monitors,East and Central Africa,
DFID,DFID,28-Mar-12,Circuit Business Systems (K) Limited,"1,046",Hardware -monitors,East and Central Africa,
DFID,DFID,28-Mar-12,Luziki Communications Ltd,875,Hardware -monitors,East and Central Africa,
DFID,DFID,30-Mar-12,"LOCKING CENTRE LTD,","5,754",Heating boilers & spares,East and Central Africa,
DFID,DFID,30-Mar-12,"LOCKING CENTRE LTD,","2,335",Heating boilers & spares,East and Central Africa,
DFID,DFID,30-Mar-12,Corporate Travel Provider,528,Hotels - Accommodation only,East and Central Africa,
DFID,DFID,30-Mar-12,Corporate Travel Provider,609,Hotels - Accommodation only,East and Central Africa,
DFID,DFID,30-Mar-12,Corporate Travel Provider,711,Hotels - Accommodation only,East and Central Africa,
DFID,DFID,30-Mar-12,Corporate Travel Provider,703,Hotels - Accommodation only,East and Central Africa,
DFID,DFID,30-Mar-12,Corporate Travel Provider,"1,366",Hotels - Accommodation only,East and Central Africa,
DFID,DFID,30-Mar-12,Corporate Travel Provider,757,Hotels - Accommodation only,East and Central Africa,
DFID,DFID,30-Mar-12,Corporate Travel Provider,777,Hotels - Accommodation only,East and Central Africa,
DFID,DFID,08-Mar-12,BCD Travel (USD),619,Hotels - Accommodation only,East and Central Africa,
DFID,DFID,08-Mar-12,BCD Travel (USD),"1,549",Hotels - Accommodation only,East and Central Africa,
DFID,DFID,06-Mar-12,BCD Travel (KSH),540,Hotels - Accommodation only,East and Central Africa,
DFID,DFID,07-Mar-12,Recipient name withheld,"1,698",Hotels - Accommodation only,East and Central Africa,
DFID,DFID,14-Mar-12,BCD Travel (USD),625,Hotels - Accommodation only,East and Central Africa,
DFID,DFID,14-Mar-12,La Palme Hotel,"1,833",Hotels - Accommodation only,East and Central Africa,
DFID,DFID,14-Mar-12,La Palme Hotel,"1,833",Hotels - Accommodation only,East and Central Africa,
DFID,DFID,16-Mar-12,Sheraton Hotel,538,Hotels - Accommodation only,East and Central Africa,
DFID,DFID,20-Mar-12,Recipient name withheld,580,Hotels - Accommodation only,East and Central Africa,
DFID,DFID,21-Mar-12,Foreign & Commonwealth Office,554,Hotels - Accommodation only,East and Central Africa,
DFID,DFID,22-Mar-12,Recipient name withheld,"2,848",Hotels - Accommodation only,East and Central Africa,
DFID,DFID,26-Mar-12,HUMURA RESORTS UGANDA LIMITED,"1,029",Hotels - Accommodation only,East and Central Africa,
DFID,DFID,26-Mar-12,Sheraton Hotel,530,Hotels - Accommodation only,East and Central Africa,
DFID,DFID,29-Mar-12,Lake Shore Hotel & Apartments,754,Hotels - Accommodation only,East and Central Africa,
DFID,DFID,28-Mar-12,Lake Shore Hotel & Apartments,696,Hotels - Accommodation only,East and Central Africa,
DFID,DFID,28-Mar-12,Lake Shore Hotel & Apartments,696,Hotels - Accommodation only,East and Central Africa,
DFID,DFID,27-Mar-12,Lake Shore Hotel & Apartments,696,Hotels - Accommodation only,East and Central Africa,
DFID,DFID,28-Mar-12,Southern Sun Hotels(T) Ltd (USD),637,Hotels - Accommodation only,East and Central Africa,
DFID,DFID,28-Mar-12,Lake Shore Hotel & Apartments,808,Hotels - Accommodation only,East and Central Africa,
DFID,DFID,28-Mar-12,Recipient name withheld,811,Hotels - Accommodation only,East and Central Africa,
DFID,DFID,31-Mar-12,Recipient name withheld,956,Hotels - Accommodation only,East and Central Africa,
DFID,DFID,08-Mar-12,Supplier Name withheld,"1,633",House rentals,East and Central Africa,
DFID,DFID,08-Mar-12,Supplier Name withheld,"9,421",House rentals,East and Central Africa,
DFID,DFID,08-Mar-12,Supplier Name withheld,"15,073",House rentals,East and Central Africa,
DFID,DFID,08-Mar-12,Supplier Name withheld,"2,638",House rentals,East and Central Africa,
DFID,DFID,08-Mar-12,Supplier Name withheld,"1,633",House rentals,East and Central Africa,
DFID,DFID,08-Mar-12,Supplier Name withheld,"1,918",House rentals,East and Central Africa,
DFID,DFID,08-Mar-12,Supplier Name withheld,"3,404",House rentals,East and Central Africa,
DFID,DFID,08-Mar-12,Supplier Name withheld,"3,768",House rentals,East and Central Africa,
DFID,DFID,08-Mar-12,Supplier Name withheld,"15,073",House rentals,East and Central Africa,
DFID,DFID,08-Mar-12,Supplier Name withheld,"6,971",House rentals,East and Central Africa,
DFID,DFID,08-Mar-12,Supplier Name withheld,"1,633",House rentals,East and Central Africa,
DFID,DFID,08-Mar-12,Supplier Name withheld,"2,826",House rentals,East and Central Africa,
DFID,DFID,08-Mar-12,Supplier Name withheld,"3,391",House rentals,East and Central Africa,
DFID,DFID,08-Mar-12,Supplier Name withheld,"1,633",House rentals,East and Central Africa,
DFID,DFID,08-Mar-12,Supplier Name withheld,"15,073",House rentals,East and Central Africa,
DFID,DFID,08-Mar-12,Supplier Name withheld,"1,790",House rentals,East and Central Africa,
DFID,DFID,08-Mar-12,Supplier Name withheld,"1,918",House rentals,East and Central Africa,
DFID,DFID,13-Mar-12,Supplier Name withheld,"29,768",House rentals,East and Central Africa,Secure staff accommodation: Ethiopia - April 2011 � March 2012 
DFID,DFID,13-Mar-12,Supplier Name withheld,"11,765",House rentals,East and Central Africa,
DFID,DFID,22-Mar-12,Supplier Name withheld,"45,935",House rentals,East and Central Africa,Secure staff accommodation: Sudan  Dec 2011 -  Dec 2013
DFID,DFID,21-Mar-12,Supplier Name withheld,"4,503",House rentals,East and Central Africa,
DFID,DFID,21-Mar-12,Supplier Name withheld,"1,919",House rentals,East and Central Africa,
DFID,DFID,22-Mar-12,Supplier Name withheld,"9,986",House rentals,East and Central Africa,
DFID,DFID,22-Mar-12,Supplier Name withheld,"12,945",House rentals,East and Central Africa,
DFID,DFID,22-Mar-12,Supplier Name withheld,"9,246",House rentals,East and Central Africa,
DFID,DFID,27-Mar-12,Supplier Name withheld,"2,052",House rentals,East and Central Africa,
DFID,DFID,27-Mar-12,Supplier Name withheld,"1,952",House rentals,East and Central Africa,
DFID,DFID,28-Mar-12,Supplier Name withheld,"9,160",House rentals,East and Central Africa,
DFID,DFID,28-Mar-12,Supplier Name withheld,"9,160",House rentals,East and Central Africa,
DFID,DFID,28-Mar-12,Supplier Name withheld,"9,160",House rentals,East and Central Africa,
DFID,DFID,28-Mar-12,Supplier Name withheld,"2,227",House rentals,East and Central Africa,
DFID,DFID,28-Mar-12,Supplier Name withheld,"2,227",House rentals,East and Central Africa,
DFID,DFID,28-Mar-12,Supplier Name withheld,"2,036",House rentals,East and Central Africa,
DFID,DFID,29-Mar-12,Supplier Name withheld,"1,247",House rentals,East and Central Africa,
DFID,DFID,30-Mar-12,Supplier Name withheld,"2,227",House rentals,East and Central Africa,
DFID,DFID,30-Mar-12,Supplier Name withheld,"2,227",House rentals,East and Central Africa,
DFID,DFID,08-Mar-12,UNDP MULTI-PARTNER TRUST FUND OFFICE (USD) ACCOUNT,"15,000,000",Aid Programme - Humanitarian Material Relief Assistance and Services,East and Central Africa,
DFID,DFID,12-Mar-12,Royal Norwegian Embassy in Khartoum ,"195,785",Aid Programme - Joint programme contribution,East and Central Africa,
DFID,DFID,12-Mar-12,Royal Norwegian Embassy in Khartoum ,"190,743",Aid Programme - Joint programme contribution,East and Central Africa,
DFID,DFID,15-Mar-12,IBRD HSBC T,"500,000",Aid Programme - Joint programme contribution,East and Central Africa,
DFID,DFID,19-Mar-12,"EMBASSY OF DENMARK, NAIROBI","99,117",Aid Programme - Joint programme contribution,East and Central Africa,
DFID,DFID,29-Mar-12,The World Bank (EFO),"619,688",Aid Programme - Joint programme contribution,East and Central Africa,
DFID,DFID,30-Mar-12,Democratic Governance Facility (DGF),"2,000,000",Aid Programme - Joint programme contribution,East and Central Africa,
DFID,DFID,20-Mar-12,Kigali Allied Advocates (KAA),862,Legal costs,East and Central Africa,
DFID,DFID,15-Mar-12,M.S.MEGJI LTD,"1,301",Office Equipment - Purchases,East and Central Africa,
DFID,DFID,26-Mar-12,SVR INFO TEC,"2,471",Office Equipment - Purchases,East and Central Africa,
DFID,DFID,20-Mar-12,Pran Pen Corner Ltd,678,Office Supplies,East and Central Africa,
DFID,DFID,01-Mar-12,Ministry of Finance Tanzania,"1,115,000",Aid Programme - Other Financial Aid to Government,East and Central Africa,
DFID,DFID,29-Mar-12,Ministry of Finance Tanzania Water Supply,"6,000,000",Aid Programme - Other Financial Aid to Government,East and Central Africa,
DFID,DFID,05-Mar-12,MTN Uganda Ltd,648,other information and communication technologies,East and Central Africa,
DFID,DFID,13-Mar-12,AFSAT Communications Uganda Limited,707,other information and communication technologies,East and Central Africa,
DFID,DFID,16-Mar-12,MTN Uganda Ltd,546,other information and communication technologies,East and Central Africa,
DFID,DFID,28-Mar-12,Softlink Chain Limited,"2,492",other information and communication technologies,East and Central Africa,
DFID,DFID,23-Mar-12,IBRD (HSBC)  C/O THE WORLD BANK,"100,000",Aid Programme - Pooled/Basket funding,East and Central Africa,
DFID,DFID,30-Mar-12,Democratic Governance Facility (DGF),"500,000",Aid Programme - Pooled/Basket funding,East and Central Africa,
DFID,DFID,30-Mar-12,Democratic Governance Facility (DGF),"600,000",Aid Programme - Pooled/Basket funding,East and Central Africa,
DFID,DFID,06-Mar-12,MFI OFFICE SOLUTIONS (U) LIMITED,931,Printer Consumables,East and Central Africa,
DFID,DFID,06-Mar-12,MFI OFFICE SOLUTIONS (U) LIMITED,"2,172",Printer Consumables,East and Central Africa,
DFID,DFID,21-Mar-12,Foreign & Commonwealth Office,"1,336",Printer Consumables,East and Central Africa,
DFID,DFID,30-Mar-12,Foreign & Commonwealth Office,"1,805",Printer Consumables,East and Central Africa,
DFID,DFID,28-Mar-12,Foreign & Commonwealth Office,637,Recruitment costs,East and Central Africa,
DFID,DFID,02-Mar-12,Tanzania Electric supply company Ltd,"1,878",Facilities Management payments,East and Central Africa,
DFID,DFID,05-Mar-12,K.B.M Investments Ltd,"1,153",Facilities Management payments,East and Central Africa,
DFID,DFID,05-Mar-12,K.B.M Investments Ltd,"4,514",Facilities Management payments,East and Central Africa,
DFID,DFID,05-Mar-12,Victoria Engineering,"1,553",Facilities Management payments,East and Central Africa,
DFID,DFID,06-Mar-12,K.B.M Investments Ltd,"2,846",Facilities Management payments,East and Central Africa,
DFID,DFID,08-Mar-12,Foreign & Commonwealth Office,580,Facilities Management payments,East and Central Africa,
DFID,DFID,09-Mar-12,Nkurunziza Alpha Prosper,566,Facilities Management payments,East and Central Africa,
DFID,DFID,14-Mar-12,British High Commission(USD),"1,240",Facilities Management payments,East and Central Africa,
DFID,DFID,14-Mar-12,British High Commission(USD),"1,240",Facilities Management payments,East and Central Africa,
DFID,DFID,14-Mar-12,British High Commission(Tsh),"2,259",Facilities Management payments,East and Central Africa,
DFID,DFID,14-Mar-12,British High Commission(Tsh),502,Facilities Management payments,East and Central Africa,
DFID,DFID,14-Mar-12,RWANDA CLEANING COMPANY,691,Facilities Management payments,East and Central Africa,
DFID,DFID,19-Mar-12,ANISUMA TRADERS LTD,713,Facilities Management payments,East and Central Africa,
DFID,DFID,20-Mar-12,British High Commission(USD),"1,078",Facilities Management payments,East and Central Africa,
DFID,DFID,20-Mar-12,TURNER & TOWNSEND,"2,778",Facilities Management payments,East and Central Africa,
DFID,DFID,21-Mar-12,British High Commission(Tsh),"1,475",Facilities Management payments,East and Central Africa,
DFID,DFID,21-Mar-12,British High Commission(Tsh),718,Facilities Management payments,East and Central Africa,
DFID,DFID,21-Mar-12,Central Highway Contractors Ltd,"2,677",Facilities Management payments,East and Central Africa,
DFID,DFID,23-Mar-12,FOREIGN AND COMMONWEALTH OFFICE (FCO),"1,739",Facilities Management payments,East and Central Africa,
DFID,DFID,26-Mar-12,Nkurunziza Alpha Prosper,566,Facilities Management payments,East and Central Africa,
DFID,DFID,26-Mar-12,Nkurunziza Alpha Prosper,929,Facilities Management payments,East and Central Africa,
DFID,DFID,26-Mar-12,K.B.M Investments Ltd,"1,012",Facilities Management payments,East and Central Africa,
DFID,DFID,27-Mar-12,K.B.M Investments Ltd,"3,194",Facilities Management payments,East and Central Africa,
DFID,DFID,26-Mar-12,K.B.M Investments Ltd,"2,130",Facilities Management payments,East and Central Africa,
DFID,DFID,27-Mar-12,Future Century Ltd(USD),971,Facilities Management payments,East and Central Africa,
DFID,DFID,27-Mar-12,Future Century Ltd(USD),710,Facilities Management payments,East and Central Africa,
DFID,DFID,27-Mar-12,Future Century Ltd(USD),615,Facilities Management payments,East and Central Africa,
DFID,DFID,27-Mar-12,Future Century Ltd(USD),"3,783",Facilities Management payments,East and Central Africa,
DFID,DFID,27-Mar-12,Future Century Ltd(USD),"1,007",Facilities Management payments,East and Central Africa,
DFID,DFID,27-Mar-12,Future Century Ltd(USD),"2,342",Facilities Management payments,East and Central Africa,
DFID,DFID,27-Mar-12,Future Century Ltd(USD),892,Facilities Management payments,East and Central Africa,
DFID,DFID,27-Mar-12,Tanzania Electric supply company Ltd,"2,347",Facilities Management payments,East and Central Africa,
DFID,DFID,27-Mar-12,NPK Technologies LTD (TZ),864,Facilities Management payments,East and Central Africa,
DFID,DFID,29-Mar-12,British High Commission(Tsh),"5,134",Facilities Management payments,East and Central Africa,
DFID,DFID,29-Mar-12,British High Commission(Tsh),"1,599",Facilities Management payments,East and Central Africa,
DFID,DFID,29-Mar-12,British High Commission(Tsh),"5,008",Facilities Management payments,East and Central Africa,
DFID,DFID,29-Mar-12,British High Commission(Tsh),614,Facilities Management payments,East and Central Africa,
DFID,DFID,29-Mar-12,recipient withheld,"2,626",Facilities Management payments,East and Central Africa,
DFID,DFID,29-Mar-12,British High Commission(Tsh),"6,268",Facilities Management payments,East and Central Africa,
DFID,DFID,29-Mar-12,British High Commission(Tsh),"1,068",Facilities Management payments,East and Central Africa,
DFID,DFID,29-Mar-12,Ophono and Mutyaba,"1,404",Facilities Management payments,East and Central Africa,
DFID,DFID,30-Mar-12,Foreign & Commonwealth Office,"1,982",Facilities Management payments,East and Central Africa,
DFID,DFID,30-Mar-12,British High Commission(Tsh),517,Facilities Management payments,East and Central Africa,
DFID,DFID,30-Mar-12,British High Commission(Tsh),517,Facilities Management payments,East and Central Africa,
DFID,DFID,09-Mar-12,DMS AFRICA,"11,968","Repairs, Maint, Alter - Property & Constrct. Services",East and Central Africa,
DFID,DFID,21-Mar-12,DMS AFRICA,"18,486","Repairs, Maint, Alter - Property & Constrct. Services",East and Central Africa,
DFID,DFID,21-Mar-12,DMS AFRICA,"22,536","Repairs, Maint, Alter - Property & Constrct. Services",East and Central Africa,
DFID,DFID,08-Mar-12,WESTBURY ESTATE SERVICES LTD,"12,226","Repairs, Maint, Alter - Property & Constrct. Services",East and Central Africa,
DFID,DFID,01-Mar-12,WESTBURY ESTATE SERVICES LTD,"17,019","Repairs, Maint, Alter - Property & Constrct. Services",East and Central Africa,
DFID,DFID,06-Mar-12,IPA-International Procurement Agency (BV),"5,906","Repairs, Maint, Alter - Property & Constrct. Services",East and Central Africa,
DFID,DFID,06-Mar-12,SAFECON Electro Mechanical Works PLC,"3,804","Repairs, Maint, Alter - Property & Constrct. Services",East and Central Africa,
DFID,DFID,06-Mar-12,SAFECON Electro Mechanical Works PLC,"6,502","Repairs, Maint, Alter - Property & Constrct. Services",East and Central Africa,
DFID,DFID,06-Mar-12,SAFECON Electro Mechanical Works PLC,"4,395","Repairs, Maint, Alter - Property & Constrct. Services",East and Central Africa,
DFID,DFID,06-Mar-12,SAFECON Electro Mechanical Works PLC,"2,767","Repairs, Maint, Alter - Property & Constrct. Services",East and Central Africa,
DFID,DFID,06-Mar-12,SAFECON Electro Mechanical Works PLC,"1,143","Repairs, Maint, Alter - Property & Constrct. Services",East and Central Africa,
DFID,DFID,06-Mar-12,SAFECON Electro Mechanical Works PLC,"3,878","Repairs, Maint, Alter - Property & Constrct. Services",East and Central Africa,
DFID,DFID,12-Mar-12,DMS AFRICA,"5,965","Repairs, Maint, Alter - Property & Constrct. Services",East and Central Africa,
DFID,DFID,16-Mar-12,SAFECON Electro Mechanical Works PLC,"41,486","Repairs, Maint, Alter - Property & Constrct. Services",East and Central Africa,Upgrade to secure staff accommodation  - Ethiopia
DFID,DFID,18-Mar-12,SAFECON Electro Mechanical Works PLC,"2,037","Repairs, Maint, Alter - Property & Constrct. Services",East and Central Africa,
DFID,DFID,20-Mar-12,TURNER & TOWNSEND,"36,215","Repairs, Maint, Alter - Property & Constrct. Services",East and Central Africa,
DFID,DFID,22-Mar-12,IPA-International Procurement Agency (BV),"12,257","Repairs, Maint, Alter - Property & Constrct. Services",East and Central Africa,
DFID,DFID,21-Mar-12,Foreign & Commonwealth Office,603,"Repairs, Maint, Alter - Property & Constrct. Services",East and Central Africa,
DFID,DFID,21-Mar-12,Foreign & Commonwealth Office,"1,126","Repairs, Maint, Alter - Property & Constrct. Services",East and Central Africa,
DFID,DFID,27-Mar-12,DMS AFRICA,"4,400","Repairs, Maint, Alter - Property & Constrct. Services",East and Central Africa,
DFID,DFID,27-Mar-12,DMS AFRICA,"51,668","Repairs, Maint, Alter - Property & Constrct. Services",East and Central Africa,
DFID,DFID,28-Mar-12,Foreign & Commonwealth Office,707,"Repairs, Maint, Alter - Property & Constrct. Services",East and Central Africa,
DFID,DFID,28-Mar-12,Foreign & Commonwealth Office,619,"Repairs, Maint, Alter - Property & Constrct. Services",East and Central Africa,
DFID,DFID,28-Mar-12,Foreign & Commonwealth Office,950,"Repairs, Maint, Alter - Property & Constrct. Services",East and Central Africa,
DFID,DFID,28-Mar-12,Foreign & Commonwealth Office,"1,365","Repairs, Maint, Alter - Property & Constrct. Services",East and Central Africa,
DFID,DFID,28-Mar-12,SAFECON Electro Mechanical Works PLC,551,"Repairs, Maint, Alter - Property & Constrct. Services",East and Central Africa,
DFID,DFID,28-Mar-12,SAFECON Electro Mechanical Works PLC,"1,120","Repairs, Maint, Alter - Property & Constrct. Services",East and Central Africa,
DFID,DFID,08-Mar-12,Foreign & Commonwealth Office,839,"Repairs, Maint, Alter - Removal & waste disposal services",East and Central Africa,
DFID,DFID,28-Mar-12,Foreign & Commonwealth Office,750,"Repairs, Maint, Alter - Removal & waste disposal services",East and Central Africa,
DFID,DFID,30-Mar-12,Foreign & Commonwealth Office,"1,060","Repairs, Maint, Alter - Removal & waste disposal services",East and Central Africa,
DFID,DFID,30-Mar-12,Corporate Travel Provider,985,Air fares,East and Central Africa,
DFID,DFID,30-Mar-12,Corporate Travel Provider,"1,536",Air fares,East and Central Africa,
DFID,DFID,30-Mar-12,Corporate Travel Provider,512,Air fares,East and Central Africa,
DFID,DFID,30-Mar-12,Corporate Travel Provider,"1,106",Air fares,East and Central Africa,
DFID,DFID,30-Mar-12,Corporate Travel Provider,507,Air fares,East and Central Africa,
DFID,DFID,30-Mar-12,Corporate Travel Provider,727,Air fares,East and Central Africa,
DFID,DFID,30-Mar-12,Corporate Travel Provider,840,Air fares,East and Central Africa,
DFID,DFID,30-Mar-12,Corporate Travel Provider,"1,162",Air fares,East and Central Africa,
DFID,DFID,30-Mar-12,Corporate Travel Provider,796,Air fares,East and Central Africa,
DFID,DFID,30-Mar-12,Corporate Travel Provider,"1,624",Air fares,East and Central Africa,
DFID,DFID,30-Mar-12,Corporate Travel Provider,793,Air fares,East and Central Africa,
DFID,DFID,30-Mar-12,Corporate Travel Provider,587,Air fares,East and Central Africa,
DFID,DFID,30-Mar-12,Corporate Travel Provider,832,Air fares,East and Central Africa,
DFID,DFID,30-Mar-12,Corporate Travel Provider,"1,031",Air fares,East and Central Africa,
DFID,DFID,30-Mar-12,Corporate Travel Provider,955,Air fares,East and Central Africa,
DFID,DFID,30-Mar-12,Corporate Travel Provider,955,Air fares,East and Central Africa,
DFID,DFID,30-Mar-12,Corporate Travel Provider,746,Air fares,East and Central Africa,
DFID,DFID,30-Mar-12,Corporate Travel Provider,822,Air fares,East and Central Africa,
DFID,DFID,30-Mar-12,Corporate Travel Provider,"1,070",Air fares,East and Central Africa,
DFID,DFID,30-Mar-12,Corporate Travel Provider,"1,031",Air fares,East and Central Africa,
DFID,DFID,08-Mar-12,BCD Travel (USD),629,Air fares,East and Central Africa,
DFID,DFID,06-Mar-12,The Express Travel Group,"1,966",Air fares,East and Central Africa,
DFID,DFID,06-Mar-12,The Express Travel Group,"2,252",Air fares,East and Central Africa,
DFID,DFID,06-Mar-12,The Express Travel Group,"1,590",Air fares,East and Central Africa,
DFID,DFID,08-Mar-12,The Express Travel Group,868,Air fares,East and Central Africa,
DFID,DFID,14-Mar-12,BCD Travel (USD),"2,014",Air fares,East and Central Africa,
DFID,DFID,14-Mar-12,BCD Travel (USD),635,Air fares,East and Central Africa,
DFID,DFID,14-Mar-12,BCD Travel (USD),"3,198",Air fares,East and Central Africa,
DFID,DFID,12-Mar-12,Simbatravelcare Limited,735,Air fares,East and Central Africa,
DFID,DFID,20-Mar-12,SATGURU TRAVEL & TOURS SERVICE,945,Air fares,East and Central Africa,
DFID,DFID,21-Mar-12,Saimon Overseas Ltd,"1,188",Air fares,East and Central Africa,
DFID,DFID,22-Mar-12,Recipient name withheld,789,Air fares,East and Central Africa,
DFID,DFID,23-Mar-12,SATGURU TRAVEL & TOURS SERVICE,754,Air fares,East and Central Africa,
DFID,DFID,26-Mar-12,Brussels Airlines Rwanda,"1,779",Air fares,East and Central Africa,
DFID,DFID,26-Mar-12,Simbatravelcare Limited,"1,731",Air fares,East and Central Africa,
DFID,DFID,26-Mar-12,SATGURU TRAVEL & TOURS SERVICE,831,Air fares,East and Central Africa,
DFID,DFID,27-Mar-12,Foreign & Commonwealth Office,"1,067",Air fares,East and Central Africa,
DFID,DFID,27-Mar-12,Foreign & Commonwealth Office,587,Air fares,East and Central Africa,
DFID,DFID,29-Mar-12,BCD Travel (USD),594,Air fares,East and Central Africa,
DFID,DFID,29-Mar-12,BCD Travel (KSH),508,Air fares,East and Central Africa,
DFID,DFID,29-Mar-12,BCD Travel (USD),668,Air fares,East and Central Africa,
DFID,DFID,29-Mar-12,BCD Travel (USD),579,Air fares,East and Central Africa,
DFID,DFID,29-Mar-12,BCD Travel (USD),513,Air fares,East and Central Africa,
DFID,DFID,01-Mar-12,Pauline Akinyi Gogo,"2,350",Technical and Advisory Services,East and Central Africa,
DFID,DFID,01-Mar-12,Social Impact,"52,401",Technical and Advisory Services,East and Central Africa,
DFID,DFID,01-Mar-12,KPMG EAST AFRICA LTD,"559,332",Technical and Advisory Services,East and Central Africa,
DFID,DFID,01-Mar-12,Crown Agents Bank - Uganda,"9,216",Technical and Advisory Services,East and Central Africa,
DFID,DFID,08-Mar-12,Common Futures Consulting Limited,"13,601",Technical and Advisory Services,East and Central Africa,
DFID,DFID,13-Mar-12,KPMG EAST AFRICA LTD,"392,632",Technical and Advisory Services,East and Central Africa,
DFID,DFID,01-Mar-12,DAI Europe,"157,893",Technical and Advisory Services,East and Central Africa,
DFID,DFID,01-Mar-12,DAI Europe,"3,700",Technical and Advisory Services,East and Central Africa,
DFID,DFID,02-Mar-12,Eureka Place,"1,219",Technical and Advisory Services,East and Central Africa,
DFID,DFID,02-Mar-12,HEALTH PARTNERS INTERNATIONAL,"66,000",Technical and Advisory Services,East and Central Africa,
DFID,DFID,05-Mar-12,SAVE THE CHILDREN FUND,"420,000",Technical and Advisory Services,East and Central Africa,
DFID,DFID,06-Mar-12,COFFEY INTERNATIONAL DEVELOPMENT LTD,"24,876",Technical and Advisory Services,East and Central Africa,
DFID,DFID,06-Mar-12,HAREWELLE INTERNATIONAL LIMITED,"3,203",Technical and Advisory Services,East and Central Africa,
DFID,DFID,06-Mar-12,D T SMITH,"8,976",Technical and Advisory Services,East and Central Africa,
DFID,DFID,07-Mar-12,HAREWELLE INTERNATIONAL LIMITED,"5,857",Technical and Advisory Services,East and Central Africa,
DFID,DFID,07-Mar-12,COFFEY INTERNATIONAL DEVELOPMENT LTD,"3,166",Technical and Advisory Services,East and Central Africa,
DFID,DFID,07-Mar-12,BRITISH COUNCIL,"19,393",Technical and Advisory Services,East and Central Africa,
DFID,DFID,07-Mar-12,ITAD LTD,750,Technical and Advisory Services,East and Central Africa,
DFID,DFID,09-Mar-12,IMC Worldwide Ltd,"93,821",Technical and Advisory Services,East and Central Africa,
DFID,DFID,09-Mar-12,MOTT MACDONALD LTD,"21,642",Technical and Advisory Services,East and Central Africa,
DFID,DFID,12-Mar-12,INTERNATIONAL EDUCATION PARTNERS LTD,"27,250",Technical and Advisory Services,East and Central Africa,
DFID,DFID,13-Mar-12,KPMG EAST AFRICA LTD,"76,388",Technical and Advisory Services,East and Central Africa,
DFID,DFID,13-Mar-12,KPMG EAST AFRICA LTD,"811,495",Technical and Advisory Services,East and Central Africa,
DFID,DFID,13-Mar-12,Getahun Kassa Atey,"1,573",Technical and Advisory Services,East and Central Africa,
DFID,DFID,13-Mar-12,Mekdim Enkossa Ayana,"3,529",Technical and Advisory Services,East and Central Africa,
DFID,DFID,13-Mar-12,Recipient name withheld,"2,440",Technical and Advisory Services,East and Central Africa,
DFID,DFID,13-Mar-12,Barry Smith,"7,151",Technical and Advisory Services,East and Central Africa,
DFID,DFID,19-Mar-12,MARK MCGIVERN,"5,953",Technical and Advisory Services,East and Central Africa,
DFID,DFID,19-Mar-12,MARK MCGIVERN,"5,953",Technical and Advisory Services,East and Central Africa,
DFID,DFID,15-Mar-12,MS MARY JENNINGS,656,Technical and Advisory Services,East and Central Africa,
DFID,DFID,28-Mar-12,Die Tuin Consulting,"12,065",Technical and Advisory Services,East and Central Africa,
DFID,DFID,14-Mar-12,ADAM SMITH INTERNATIONAL  LTD,"260,967",Technical and Advisory Services,East and Central Africa,
DFID,DFID,14-Mar-12,ADAM SMITH INTERNATIONAL  LTD,"129,847",Technical and Advisory Services,East and Central Africa,
DFID,DFID,14-Mar-12,dan whitaker,"2,170",Technical and Advisory Services,East and Central Africa,
DFID,DFID,14-Mar-12,RACHEL SMITH-GOVONI,"6,506",Technical and Advisory Services,East and Central Africa,
DFID,DFID,14-Mar-12,IMC Worldwide Ltd,"14,752",Technical and Advisory Services,East and Central Africa,
DFID,DFID,14-Mar-12,MAXWELL STAMP PLC,"334,149",Technical and Advisory Services,East and Central Africa,
DFID,DFID,16-Mar-12,PRICEWATERHOUSECOOPERS,"251,430",Technical and Advisory Services,East and Central Africa,
DFID,DFID,22-Mar-12,L & A Bradgate Consulting (Ltd),"11,748",Technical and Advisory Services,East and Central Africa,
DFID,DFID,15-Mar-12,REPIM,"10,531",Technical and Advisory Services,East and Central Africa,
DFID,DFID,15-Mar-12,PRICEWATERHOUSECOOPERS,"18,865",Technical and Advisory Services,East and Central Africa,
DFID,DFID,16-Mar-12,Mzee Limited,"1,260",Technical and Advisory Services,East and Central Africa,
DFID,DFID,19-Mar-12,BMB  MOTT  MACDONALD,"83,731",Technical and Advisory Services,East and Central Africa,
DFID,DFID,19-Mar-12,Rebecca Smith,"6,793",Technical and Advisory Services,East and Central Africa,
DFID,DFID,19-Mar-12,HAREWELLE INTERNATIONAL LIMITED,"16,398",Technical and Advisory Services,East and Central Africa,
DFID,DFID,19-Mar-12,Vimak Company Limited,"3,537",Technical and Advisory Services,East and Central Africa,
DFID,DFID,20-Mar-12,ADAM SMITH INTERNATIONAL  LTD,"1,946",Technical and Advisory Services,East and Central Africa,
DFID,DFID,19-Mar-12,IOD PARC,"3,480",Technical and Advisory Services,East and Central Africa,
DFID,DFID,20-Mar-12,A.A Bromhead & Co,533,Technical and Advisory Services,East and Central Africa,
DFID,DFID,20-Mar-12,THE MEDIAE COMPANY,"239,420",Technical and Advisory Services,East and Central Africa,
DFID,DFID,21-Mar-12,SOCIAL DEVELOPMENT DIRECT LTD,"6,944",Technical and Advisory Services,East and Central Africa,
DFID,DFID,20-Mar-12,ATOS CONSULTING LIMITED,"32,723",Technical and Advisory Services,East and Central Africa,
DFID,DFID,20-Mar-12,Elizabeth Ollier (sole trader),"10,416",Technical and Advisory Services,East and Central Africa,
DFID,DFID,20-Mar-12,BRITISH COUNCIL,"30,176",Technical and Advisory Services,East and Central Africa,
DFID,DFID,20-Mar-12,Elizabeth Ollier (sole trader),"1,900",Technical and Advisory Services,East and Central Africa,
DFID,DFID,20-Mar-12,HTSPE LTD,"21,207",Technical and Advisory Services,East and Central Africa,
DFID,DFID,20-Mar-12,HTSPE LTD,"35,896",Technical and Advisory Services,East and Central Africa,
DFID,DFID,20-Mar-12,HTSPE LTD,"3,303",Technical and Advisory Services,East and Central Africa,
DFID,DFID,21-Mar-12,HLSP LTD,"12,911",Technical and Advisory Services,East and Central Africa,
DFID,DFID,21-Mar-12,HLSP LTD,"24,230",Technical and Advisory Services,East and Central Africa,
DFID,DFID,23-Mar-12,BMB  MOTT  MACDONALD,"672,257",Technical and Advisory Services,East and Central Africa,
DFID,DFID,22-Mar-12,COWI A S,"103,342",Technical and Advisory Services,East and Central Africa,
DFID,DFID,21-Mar-12,HLSP LIMITED,"17,180",Technical and Advisory Services,East and Central Africa,
DFID,DFID,21-Mar-12,HLSP LIMITED,"3,207",Technical and Advisory Services,East and Central Africa,
DFID,DFID,21-Mar-12,ATOS CONSULTING LIMITED,"268,678",Technical and Advisory Services,East and Central Africa,
DFID,DFID,21-Mar-12,ATOS CONSULTING LIMITED,"179,119",Technical and Advisory Services,East and Central Africa,
DFID,DFID,21-Mar-12,COFFEY INTERNATIONAL DEVELOPMENT LTD,"17,889",Technical and Advisory Services,East and Central Africa,
DFID,DFID,21-Mar-12,OXFORD POLICY MANAGEMENT,"125,360",Technical and Advisory Services,East and Central Africa,
DFID,DFID,21-Mar-12,MOTT MACDONALD LTD,"9,073",Technical and Advisory Services,East and Central Africa,
DFID,DFID,21-Mar-12,COFFEY INTERNATIONAL DEVELOPMENT LTD,"1,744",Technical and Advisory Services,East and Central Africa,
DFID,DFID,21-Mar-12,COFFEY INTERNATIONAL DEVELOPMENT LTD,"6,720",Technical and Advisory Services,East and Central Africa,
DFID,DFID,23-Mar-12,HTSPE LTD,"1,112",Technical and Advisory Services,East and Central Africa,
DFID,DFID,26-Mar-12,HAREWELLE INTERNATIONAL LIMITED,"1,650",Technical and Advisory Services,East and Central Africa,
DFID,DFID,21-Mar-12,CAROL BRADFORD,"9,900",Technical and Advisory Services,East and Central Africa,
DFID,DFID,22-Mar-12,SAVE THE CHILDREN,"18,398",Technical and Advisory Services,East and Central Africa,
DFID,DFID,27-Mar-12,KPMG EAST AFRICA LTD,"1,563,695",Technical and Advisory Services,East and Central Africa,
DFID,DFID,27-Mar-12,ADAM SMITH INTERNATIONAL  LTD,"85,196",Technical and Advisory Services,East and Central Africa,
DFID,DFID,27-Mar-12,ADAM SMITH INTERNATIONAL  LTD,"95,146",Technical and Advisory Services,East and Central Africa,
DFID,DFID,23-Mar-12,AVID Development,"4,086",Technical and Advisory Services,East and Central Africa,
DFID,DFID,30-Mar-12,THE INSTITUTE OF DEVELOPMENT STUDIE,"20,159",Technical and Advisory Services,East and Central Africa,
DFID,DFID,26-Mar-12,HTSPE LTD,"2,425",Technical and Advisory Services,East and Central Africa,
DFID,DFID,26-Mar-12,RS DREW LTD,"10,112",Technical and Advisory Services,East and Central Africa,
DFID,DFID,26-Mar-12,HTSPE LTD,"29,614",Technical and Advisory Services,East and Central Africa,
DFID,DFID,27-Mar-12,Susan Amlango Aletia,"2,666",Technical and Advisory Services,East and Central Africa,
DFID,DFID,27-Mar-12,Kairichi Consultancy Limited,"3,435",Technical and Advisory Services,East and Central Africa,
DFID,DFID,27-Mar-12,Andrew Nyabera Nyagwencha,"1,725",Technical and Advisory Services,East and Central Africa,
DFID,DFID,27-Mar-12,Carree Njeri Ndoka,"2,240",Technical and Advisory Services,East and Central Africa,
DFID,DFID,27-Mar-12,Pauline Akinyi Gogo,"2,352",Technical and Advisory Services,East and Central Africa,
DFID,DFID,27-Mar-12,MOTT MACDONALD LTD,"21,593",Technical and Advisory Services,East and Central Africa,
DFID,DFID,28-Mar-12,THE SPRINGFIELD CENTRE,"16,549",Technical and Advisory Services,East and Central Africa,
DFID,DFID,27-Mar-12,DAI Europe,"15,700",Technical and Advisory Services,East and Central Africa,
DFID,DFID,27-Mar-12,DAI Europe,"149,493",Technical and Advisory Services,East and Central Africa,
DFID,DFID,28-Mar-12,Yared Jackson Dondo,"4,909",Technical and Advisory Services,East and Central Africa,
DFID,DFID,28-Mar-12,Emebet Kebede Cherenet,855,Technical and Advisory Services,East and Central Africa,
DFID,DFID,28-Mar-12,Foreign & Commonwealth Office,524,Technical and Advisory Services,East and Central Africa,
DFID,DFID,28-Mar-12,dan whitaker,"11,000",Technical and Advisory Services,East and Central Africa,
DFID,DFID,29-Mar-12,INTRAC,"8,600",Technical and Advisory Services,East and Central Africa,
DFID,DFID,29-Mar-12,COFFEY INTERNATIONAL DEVELOPMENT LTD,"3,633",Technical and Advisory Services,East and Central Africa,
DFID,DFID,29-Mar-12,COFFEY INTERNATIONAL DEVELOPMENT LTD,"19,313",Technical and Advisory Services,East and Central Africa,
DFID,DFID,30-Mar-12,Globe Corporation BV,"20,008",Technical and Advisory Services,East and Central Africa,
DFID,DFID,30-Mar-12,Mennonite Economic Development Associates of Canada,"120,837",Technical and Advisory Services,East and Central Africa,
DFID,DFID,30-Mar-12,Mennonite Economic Development Associates of Canada,"204,627",Technical and Advisory Services,East and Central Africa,
DFID,DFID,02-Mar-12,MTN RWANDACELL,"1,130",Telephone Usage & services,East and Central Africa,
DFID,DFID,02-Mar-12,AFSAT Communications Uganda Limited,"1,647",Telephone Usage & services,East and Central Africa,
DFID,DFID,02-Mar-12,AFSAT Communications Uganda Limited,706,Telephone Usage & services,East and Central Africa,
DFID,DFID,14-Mar-12,VODACOM TANZANIA,"1,328",Telephone Usage & services,East and Central Africa,
DFID,DFID,16-Mar-12,MTN Uganda Ltd,544,Telephone Usage & services,East and Central Africa,
DFID,DFID,19-Mar-12,Ethio Telecom,765,Telephone Usage & services,East and Central Africa,
DFID,DFID,21-Mar-12,Recipient name withheld,"1,046",Telephone Usage & services,East and Central Africa,
DFID,DFID,21-Mar-12,MTN RWANDACELL,"1,095",Telephone Usage & services,East and Central Africa,
DFID,DFID,22-Mar-12,RWANDATEL SA,578,Telephone Usage & services,East and Central Africa,
DFID,DFID,22-Mar-12,AFSAT Communications Uganda Limited,590,Telephone Usage & services,East and Central Africa,
DFID,DFID,30-Mar-12,Foreign & Commonwealth Office,595,Telephone Usage & services,East and Central Africa,
DFID,DFID,08-Mar-12,RIFT VALLEY INSTITUTE,"2,539",Training - Course Fees,East and Central Africa,
DFID,DFID,13-Mar-12,MS- TRAINING CENTRE FOR DEVELOPMENT,760,Training - Course Fees,East and Central Africa,
DFID,DFID,19-Mar-12,NATIONAL SCHOOL OF GOVERNMENT,"1,350",Training - Course Fees,East and Central Africa,
DFID,DFID,22-Mar-12,THRESHOLDS,"1,620",Training - Course Fees,East and Central Africa,
DFID,DFID,22-Mar-12,NATIONAL SCHOOL OF GOVERNMENT,528,Training - Course Fees,East and Central Africa,
DFID,DFID,22-Mar-12,NATIONAL SCHOOL OF GOVERNMENT,"1,583",Training - Course Fees,East and Central Africa,
DFID,DFID,22-Mar-12,NATIONAL SCHOOL OF GOVERNMENT,"6,861",Training - Course Fees,East and Central Africa,
DFID,DFID,22-Mar-12,NATIONAL SCHOOL OF GOVERNMENT,528,Training - Course Fees,East and Central Africa,
DFID,DFID,28-Mar-12,NATIONAL SCHOOL OF GOVERNMENT,"1,570",Training - Course Fees,East and Central Africa,
DFID,DFID,30-Mar-12,Corporate Travel Provider,"1,945",Training - Travel & Subsistence,East and Central Africa,
DFID,DFID,30-Mar-12,Corporate Travel Provider,621,Training - Travel & Subsistence,East and Central Africa,
DFID,DFID,08-Mar-12,BCD Travel (USD),"1,253",Training - Travel & Subsistence,East and Central Africa,
DFID,DFID,06-Mar-12,The Express Travel Group,974,Training - Travel & Subsistence,East and Central Africa,
DFID,DFID,08-Mar-12,The Express Travel Group,"2,980",Training - Travel & Subsistence,East and Central Africa,
DFID,DFID,14-Mar-12,BCD Travel (USD),"1,264",Training - Travel & Subsistence,East and Central Africa,
DFID,DFID,15-Mar-12,Bon Voyage Travel Centre Ltd(USD),711,Training - Travel & Subsistence,East and Central Africa,
DFID,DFID,21-Mar-12,Tegen Guest Accommodation Hotel plc,"1,095",Training - Travel & Subsistence,East and Central Africa,
DFID,DFID,29-Mar-12,BCD Travel (USD),706,Training - Travel & Subsistence,East and Central Africa,
DFID,DFID,29-Mar-12,BCD Travel (KSH),573,Training - Travel & Subsistence,East and Central Africa,
DFID,DFID,29-Mar-12,BCD Travel (USD),"1,239",Training - Travel & Subsistence,East and Central Africa,
DFID,DFID,29-Mar-12,Harmony  Hotel,654,Training - Travel & Subsistence,East and Central Africa,
DFID,DFID,28-Mar-12,The Express Travel Group,851,Training - Travel & Subsistence,East and Central Africa,
DFID,DFID,19-Mar-12,Pilgrims Group,"2,365",Training Providers/Facilitation Services,East and Central Africa,
DFID,DFID,19-Mar-12,Pilgrims Group,"1,577",Training Providers/Facilitation Services,East and Central Africa,
DFID,DFID,19-Mar-12,Pilgrims Group,"1,802",Training Providers/Facilitation Services,East and Central Africa,
DFID,DFID,20-Mar-12,The George Washington University,821,Training Providers/Facilitation Services,East and Central Africa,
DFID,DFID,22-Mar-12,Pilgrims Group,"1,253",Training Providers/Facilitation Services,East and Central Africa,
DFID,DFID,15-Mar-12,Recipient name withheld,820,Travel - Subsistence,East and Central Africa,
DFID,DFID,20-Mar-12,Recipient name withheld,556,Travel - Subsistence,East and Central Africa,
DFID,DFID,27-Mar-12,Foreign & Commonwealth Office,708,Travel - Subsistence,East and Central Africa,
DFID,DFID,06-Mar-12,Recipient name withheld,512,Travel documentation costs,East and Central Africa,
DFID,DFID,16-Mar-12,IBRD (HSBC)  C/O THE WORLD BANK,"6,000,000",Aid Programme - Trust Funds contributions,East and Central Africa,
DFID,DFID,08-Mar-12,British Embassy,757,Vehicle Petrol & Oil,East and Central Africa,
DFID,DFID,08-Mar-12,British Embassy,714,Vehicle Petrol & Oil,East and Central Africa,
DFID,DFID,23-Mar-12,BRITISH HIGH COMMISSION KLA,"2,114",Vehicle Petrol & Oil,East and Central Africa,
DFID,DFID,23-Mar-12,BRITISH HIGH COMMISSION KLA,"4,103",Vehicle Petrol & Oil,East and Central Africa,
DFID,DFID,29-Mar-12,ETHIODER Pvt. Ltd.Co. Tour Operators,"1,405",Vehicle Petrol & Oil,East and Central Africa,
DFID,DFID,15-Mar-12,Quality Motors Limited,"1,574",Vehicle Purchase Costs,East and Central Africa,
DFID,DFID,08-Mar-12,Foreign & Commonwealth Office,714,Vehicle Repairs & Maintenance,East and Central Africa,
DFID,DFID,08-Mar-12,Foreign & Commonwealth Office,"2,854",Vehicle Repairs & Maintenance,East and Central Africa,
DFID,DFID,14-Mar-12,SOKOINE DRIVE SERVICE STATION LTD.,604,Vehicle Repairs & Maintenance,East and Central Africa,
DFID,DFID,21-Mar-12,Arrow Centre ( Uganda) Ltd.,902,Vehicle Repairs & Maintenance,East and Central Africa,
DFID,DFID,21-Mar-12,Arrow Centre ( Uganda) Ltd.,"1,603",Vehicle Repairs & Maintenance,East and Central Africa,
DFID,DFID,21-Mar-12,Arrow Centre ( Uganda) Ltd.,583,Vehicle Repairs & Maintenance,East and Central Africa,
DFID,DFID,21-Mar-12,Arrow Centre ( Uganda) Ltd.,"1,036",Vehicle Repairs & Maintenance,East and Central Africa,
DFID,DFID,21-Mar-12,Arrow Centre ( Uganda) Ltd.,583,Vehicle Repairs & Maintenance,East and Central Africa,
DFID,DFID,21-Mar-12,Arrow Centre ( Uganda) Ltd.,"1,036",Vehicle Repairs & Maintenance,East and Central Africa,
DFID,DFID,21-Mar-12,SSESANGA MOTOR SERVICES,646,Vehicle Repairs & Maintenance,East and Central Africa,
DFID,DFID,23-Mar-12,BRITISH HIGH COMMISSION KLA,561,Vehicle Repairs & Maintenance,East and Central Africa,
DFID,DFID,23-Mar-12,ETHIODER Pvt. Ltd.Co. Tour Operators,"1,413",Vehicle Repairs & Maintenance,East and Central Africa,
DFID,DFID,26-Mar-12,SOCIETE RWANDAISE DES PNEUMATIQUES,538,Vehicle Repairs & Maintenance,East and Central Africa,
DFID,DFID,27-Mar-12,Foreign & Commonwealth Office,"1,860",Vehicle Repairs & Maintenance,East and Central Africa,
DFID,DFID,02-Mar-12,INTERNATIONAL IDEA,"20,177",Aid Programme - Voluntary contributions,East and Central Africa,
DFID,DFID,07-Mar-12,UNEP,"208,662",Aid Programme - Voluntary contributions,East and Central Africa,
DFID,DFID,07-Mar-12,UNEP,"1,460,634",Aid Programme - Voluntary contributions,East and Central Africa,
DFID,DFID,06-Mar-12,UNDP CONTRIBUTIONS ACCOUNT,"1,000,000",Aid Programme - Voluntary contributions,East and Central Africa,
DFID,DFID,07-Mar-12,UNDP MULTI-PARTNER TRUST FUND OFFICE (USD) ACCOUNT,"650,000",Aid Programme - Voluntary contributions,East and Central Africa,
DFID,DFID,08-Mar-12,UNDP CONTRIBUTIONS ACCOUNT,"918,350",Aid Programme - Voluntary contributions,East and Central Africa,
DFID,DFID,16-Mar-12,The Food and Agriculture Organization Of The United Nations,"6,000,000",Aid Programme - Voluntary contributions,East and Central Africa,
DFID,DFID,22-Mar-12, UNHCR,"3,500,000",Aid Programme - Voluntary contributions,East and Central Africa,
DFID,DFID,19-Mar-12,UNOPS,"200,000",Aid Programme - Voluntary contributions,East and Central Africa,
DFID,DFID,26-Mar-12,THE INTERNATIONAL COMMITTEE OF THE RED CROSS (ICRC),"2,000,000",Aid Programme - Voluntary contributions,East and Central Africa,
DFID,DFID,30-Mar-12,REAL ASSET MANAGEMENT PLC,"3,835",Computer software maintenance,Finance and Corporate Performance Division,
DFID,DFID,30-Mar-12,Government Procurement Card,"1,023",Contract & Agency Staff,Finance and Corporate Performance Division,
DFID,DFID,30-Mar-12,Government Procurement Card,586,Contract & Agency Staff,Finance and Corporate Performance Division,
DFID,DFID,06-Mar-12,MICHAEL PAGE INTERNATIONAL RECRUITMENT LIMITED,"1,379",Contract & Agency Staff,Finance and Corporate Performance Division,
DFID,DFID,09-Mar-12,MICHAEL PAGE INTERNATIONAL RECRUITMENT LIMITED,"1,103",Contract & Agency Staff,Finance and Corporate Performance Division,
DFID,DFID,15-Mar-12,MANPOWER PLC,"2,265",Contract & Agency Staff,Finance and Corporate Performance Division,
DFID,DFID,14-Mar-12,Hays Specialist Recruitment Ltd,919,Contract & Agency Staff,Finance and Corporate Performance Division,
DFID,DFID,19-Mar-12,MICHAEL PAGE INTERNATIONAL RECRUITMENT LIMITED,"1,379",Contract & Agency Staff,Finance and Corporate Performance Division,
DFID,DFID,20-Mar-12,MICHAEL PAGE INTERNATIONAL RECRUITMENT LIMITED,"1,379",Contract & Agency Staff,Finance and Corporate Performance Division,
DFID,DFID,23-Mar-12,MICHAEL PAGE INTERNATIONAL RECRUITMENT LIMITED,"1,379",Contract & Agency Staff,Finance and Corporate Performance Division,
DFID,DFID,29-Mar-12,Hays Specialist Recruitment Ltd,882,Contract & Agency Staff,Finance and Corporate Performance Division,
DFID,DFID,26-Mar-12,TSoL,"1,796",Legal costs,Finance and Corporate Performance Division,
DFID,DFID,30-Mar-12,Government Procurement Card,520,Other Professional Development,Finance and Corporate Performance Division,
DFID,DFID,09-Mar-12,OXFORD POLICY MANAGEMENT,"2,550",Technical and Advisory Services,Finance and Corporate Performance Division,
DFID,DFID,22-Mar-12,OXFORD POLICY MANAGEMENT,"2,550",Technical and Advisory Services,Finance and Corporate Performance Division,
DFID,DFID,28-Mar-12,OXFORD POLICY MANAGEMENT,"2,550",Technical and Advisory Services,Finance and Corporate Performance Division,
DFID,DFID,01-Mar-12,BUSINESS ANALYST SOLUTIONS,"1,600",Training - Course Fees,Finance and Corporate Performance Division,
DFID,DFID,15-Mar-12,WORLD CAREERS NETWORK PLC,"7,148",Computer software maintenance,"Human Resources,Security & Facilities Division",
DFID,DFID,15-Mar-12,WORLD CAREERS NETWORK PLC,"7,148",Computer software maintenance,"Human Resources,Security & Facilities Division",
DFID,DFID,23-Mar-12,WORLD CAREERS NETWORK PLC,"7,148",Computer software maintenance,"Human Resources,Security & Facilities Division",
DFID,DFID,30-Mar-12,Government Procurement Card,647,Contract & Agency Staff,"Human Resources,Security & Facilities Division",
DFID,DFID,30-Mar-12,Government Procurement Card,758,Contract & Agency Staff,"Human Resources,Security & Facilities Division",
DFID,DFID,30-Mar-12,Government Procurement Card,570,Contract & Agency Staff,"Human Resources,Security & Facilities Division",
DFID,DFID,30-Mar-12,Government Procurement Card,570,Contract & Agency Staff,"Human Resources,Security & Facilities Division",
DFID,DFID,30-Mar-12,Government Procurement Card,508,Contract & Agency Staff,"Human Resources,Security & Facilities Division",
DFID,DFID,30-Mar-12,Government Procurement Card,601,Contract & Agency Staff,"Human Resources,Security & Facilities Division",
DFID,DFID,30-Mar-12,Government Procurement Card,698,Contract & Agency Staff,"Human Resources,Security & Facilities Division",
DFID,DFID,02-Mar-12,MICHAEL PAGE INTERNATIONAL RECRUITMENT LIMITED,"2,208",Contract & Agency Staff,"Human Resources,Security & Facilities Division",
DFID,DFID,02-Mar-12,MICHAEL PAGE INTERNATIONAL RECRUITMENT LIMITED,"2,328",Contract & Agency Staff,"Human Resources,Security & Facilities Division",
DFID,DFID,02-Mar-12,MICHAEL PAGE INTERNATIONAL RECRUITMENT LIMITED,"4,704",Contract & Agency Staff,"Human Resources,Security & Facilities Division",
DFID,DFID,06-Mar-12,EDF ENERGY,"14,908",Electricity,"Human Resources,Security & Facilities Division",
DFID,DFID,06-Mar-12,EDF ENERGY,"32,225",Electricity,"Human Resources,Security & Facilities Division",Electricity Costs for PS Feb 2012
DFID,DFID,14-Mar-12,FCO SERVICES,"1,086",FCO shared service charges,"Human Resources,Security & Facilities Division",
DFID,DFID,14-Mar-12,FCO SERVICES,917,FCO shared service charges,"Human Resources,Security & Facilities Division",
DFID,DFID,01-Mar-12,Lockers & Benches Limited,"1,399",Furniture & Fittings,"Human Resources,Security & Facilities Division",
DFID,DFID,23-Mar-12,A&A Business Supplies Ltd,"1,716",Furniture & Fittings,"Human Resources,Security & Facilities Division",
DFID,DFID,23-Mar-12,A&A Business Supplies Ltd,"1,373",Furniture & Fittings,"Human Resources,Security & Facilities Division",
DFID,DFID,06-Mar-12,CORONA ENERGY,"3,186",Gas,"Human Resources,Security & Facilities Division",
DFID,DFID,20-Mar-12,CORONA ENERGY,"4,210",Gas,"Human Resources,Security & Facilities Division",
DFID,DFID,20-Mar-12,CORONA ENERGY,"1,846",Gas,"Human Resources,Security & Facilities Division",
DFID,DFID,26-Mar-12,CORONA ENERGY,"1,491",Gas,"Human Resources,Security & Facilities Division",
DFID,DFID,21-Mar-12,CORONA ENERGY,"3,115",Gas,"Human Resources,Security & Facilities Division",
DFID,DFID,29-Mar-12,Sheraton Hotel,688,Hotels - Accommodation only,"Human Resources,Security & Facilities Division",
DFID,DFID,16-Mar-12,TSoL,"1,440",Legal costs,"Human Resources,Security & Facilities Division",
DFID,DFID,16-Mar-12,TSoL,"3,808",Legal costs,"Human Resources,Security & Facilities Division",
DFID,DFID,16-Mar-12,TSoL,524,Legal costs,"Human Resources,Security & Facilities Division",
DFID,DFID,16-Mar-12,TREASURY SOLICITORS CASH ACC,"13,223",Legal costs,"Human Resources,Security & Facilities Division",
DFID,DFID,16-Mar-12,TREASURY SOLICITORS CASH ACC,518,Legal costs,"Human Resources,Security & Facilities Division",
DFID,DFID,26-Mar-12,TSoL,"3,530",Legal costs,"Human Resources,Security & Facilities Division",
DFID,DFID,26-Mar-12,TSoL,895,Legal costs,"Human Resources,Security & Facilities Division",
DFID,DFID,13-Mar-12,NEOPOST LIMITED,677,Office Supplies,"Human Resources,Security & Facilities Division",
DFID,DFID,15-Mar-12,NEOPOST LIMITED,792,Office Supplies,"Human Resources,Security & Facilities Division",
DFID,DFID,19-Mar-12,ROBSON ASSOCIATES,"1,311,421",Operating Lease rental of buildings,"Human Resources,Security & Facilities Division",PS rent for the period 01/04/12 to 23/06/12
DFID,DFID,13-Mar-12,GDC Building Services Ltd,"1,325",Other Building Products,"Human Resources,Security & Facilities Division",
DFID,DFID,05-Mar-12,ROYAL MAIL,"3,960",Postage Costs,"Human Resources,Security & Facilities Division",
DFID,DFID,09-Mar-12,ROYAL MAIL,"3,360",Postage Costs,"Human Resources,Security & Facilities Division",
DFID,DFID,12-Mar-12,FCO SERVICES,"3,922",Postage Costs,"Human Resources,Security & Facilities Division",
DFID,DFID,06-Mar-12,THE WHITEHALL & INDUSTRY GROUP,"4,740",Professional member subscriptions,"Human Resources,Security & Facilities Division",
DFID,DFID,12-Mar-12,ECA INTERNATIONAL,"8,748",Professional member subscriptions,"Human Resources,Security & Facilities Division",
DFID,DFID,14-Mar-12,Penna Barkers,"1,571",Recruitment costs,"Human Resources,Security & Facilities Division",
DFID,DFID,22-Mar-12,Penna Barkers,724,Recruitment costs,"Human Resources,Security & Facilities Division",
DFID,DFID,26-Mar-12,MTB CONSULTING,"4,036",Recruitment costs,"Human Resources,Security & Facilities Division",
DFID,DFID,26-Mar-12,MTB CONSULTING,"1,018",Recruitment costs,"Human Resources,Security & Facilities Division",
DFID,DFID,29-Mar-12,Penna Barkers,"2,172",Recruitment costs,"Human Resources,Security & Facilities Division",
DFID,DFID,16-Mar-12,MITIE Technical Facilities Management Ltd,"11,917",Cleaning Costs,"Human Resources,Security & Facilities Division",
DFID,DFID,16-Mar-12,MITIE Technical Facilities Management Ltd,"20,292",Cleaning Costs,"Human Resources,Security & Facilities Division",
DFID,DFID,16-Mar-12,MITIE Technical Facilities Management Ltd,"9,452",Facilities Management payments,"Human Resources,Security & Facilities Division",
DFID,DFID,16-Mar-12,MITIE Technical Facilities Management Ltd,"16,094",Facilities Management payments,"Human Resources,Security & Facilities Division",
DFID,DFID,01-Mar-12,MITIE Technical Facilities Management Ltd,990,Other Building Costs,"Human Resources,Security & Facilities Division",
DFID,DFID,01-Mar-12,MITIE Technical Facilities Management Ltd,"2,426",Other Building Costs,"Human Resources,Security & Facilities Division",
DFID,DFID,02-Mar-12,MITIE Technical Facilities Management Ltd,"2,198",Other Building Costs,"Human Resources,Security & Facilities Division",
DFID,DFID,02-Mar-12,MITIE Technical Facilities Management Ltd,"2,766",Other Building Costs,"Human Resources,Security & Facilities Division",
DFID,DFID,02-Mar-12,MITIE Technical Facilities Management Ltd,"2,677",Other Building Costs,"Human Resources,Security & Facilities Division",
DFID,DFID,02-Mar-12,MITIE Technical Facilities Management Ltd,792,Other Building Costs,"Human Resources,Security & Facilities Division",
DFID,DFID,02-Mar-12,MITIE Technical Facilities Management Ltd,546,Other Building Costs,"Human Resources,Security & Facilities Division",
DFID,DFID,02-Mar-12,MITIE Technical Facilities Management Ltd,"1,254",Other Building Costs,"Human Resources,Security & Facilities Division",
DFID,DFID,02-Mar-12,Fullflow Group Limited ,720,Other Building Costs,"Human Resources,Security & Facilities Division",
DFID,DFID,12-Mar-12,HUNTERS CONTRACTS (SCOTLAND) LTD,"4,630",Other Building Costs,"Human Resources,Security & Facilities Division",
DFID,DFID,13-Mar-12,MITIE Technical Facilities Management Ltd,"2,913",Other Building Costs,"Human Resources,Security & Facilities Division",
DFID,DFID,13-Mar-12,MITIE Technical Facilities Management Ltd,"14,014",Other Building Costs,"Human Resources,Security & Facilities Division",
DFID,DFID,14-Mar-12,MITIE Technical Facilities Management Ltd,616,Other Building Costs,"Human Resources,Security & Facilities Division",
DFID,DFID,21-Mar-12,Weatherproofing Advisors Ltd,714,Other Building Costs,"Human Resources,Security & Facilities Division",
DFID,DFID,28-Mar-12,GP PLANTSCAPE LTD,"1,317",Other Building Costs,"Human Resources,Security & Facilities Division",
DFID,DFID,16-Mar-12,MITIE Technical Facilities Management Ltd,"4,790","Repairs, Maint, Alter - Property & Constrct. Services","Human Resources,Security & Facilities Division",
DFID,DFID,16-Mar-12,MITIE Technical Facilities Management Ltd,"8,156","Repairs, Maint, Alter - Property & Constrct. Services","Human Resources,Security & Facilities Division",
DFID,DFID,29-Mar-12,HUNTERS CONTRACTS (SCOTLAND) LTD,"6,181","Repairs, Maint, Alter - Property & Constrct. Services","Human Resources,Security & Facilities Division",
DFID,DFID,06-Mar-12,BYWATERS,"1,039","Repairs, Maint, Alter - Removal & waste disposal services","Human Resources,Security & Facilities Division",
DFID,DFID,05-Mar-12,BYWATERS,833,"Repairs, Maint, Alter - Removal & waste disposal services","Human Resources,Security & Facilities Division",
DFID,DFID,13-Mar-12,SHANKS WASTE MANAGMENT LIMITED,"1,036","Repairs, Maint, Alter - Removal & waste disposal services","Human Resources,Security & Facilities Division",
DFID,DFID,16-Mar-12,BYWATERS,"2,419","Repairs, Maint, Alter - Removal & waste disposal services","Human Resources,Security & Facilities Division",
DFID,DFID,30-Mar-12,Government Procurement Card,"1,089",Reproduction & Printing Materials,"Human Resources,Security & Facilities Division",
DFID,DFID,29-Mar-12,INCEPTION BUSINESS TECHNOLOGY LTD,"1,129",Reproduction & Printing Materials,"Human Resources,Security & Facilities Division",
DFID,DFID,30-Mar-12,Corporate Travel Provider,989,Air fares,"Human Resources,Security & Facilities Division",
DFID,DFID,09-Mar-12,Oliver Brown,666,Air fares,"Human Resources,Security & Facilities Division",
DFID,DFID,12-Mar-12,Saimon Overseas Ltd,652,Air fares,"Human Resources,Security & Facilities Division",
DFID,DFID,29-Mar-12,BCD Travel (USD),513,Air fares,"Human Resources,Security & Facilities Division",
DFID,DFID,02-Mar-12,MidlandHR,"75,114",Technical and Advisory Services,"Human Resources,Security & Facilities Division",
DFID,DFID,02-Mar-12,Healix International Limited (Fees),"13,952",Technical and Advisory Services,"Human Resources,Security & Facilities Division",
DFID,DFID,05-Mar-12,XAFINITY PAYMASTER,"5,807",Technical and Advisory Services,"Human Resources,Security & Facilities Division",
DFID,DFID,05-Mar-12,MidlandHR,"9,872",Technical and Advisory Services,"Human Resources,Security & Facilities Division",
DFID,DFID,16-Mar-12,MITIE Technical Facilities Management Ltd,639,Technical and Advisory Services,"Human Resources,Security & Facilities Division",
DFID,DFID,20-Mar-12,XAFINITY PAYMASTER,"5,807",Technical and Advisory Services,"Human Resources,Security & Facilities Division",
DFID,DFID,26-Mar-12,CABINET OFFICE,"8,914",Technical and Advisory Services,"Human Resources,Security & Facilities Division",
DFID,DFID,29-Mar-12,MidlandHR,"9,000",Technical and Advisory Services,"Human Resources,Security & Facilities Division",
DFID,DFID,30-Mar-12,Government Procurement Card,588,Training - Course Fees,"Human Resources,Security & Facilities Division",
DFID,DFID,30-Mar-12,Government Procurement Card,"1,259",Training - Course Fees,"Human Resources,Security & Facilities Division",
DFID,DFID,12-Mar-12,NATIONAL SCHOOL OF GOVERNMENT,"1,383",Training - Course Fees,"Human Resources,Security & Facilities Division",
DFID,DFID,16-Mar-12,NATIONAL SCHOOL OF GOVERNMENT,761,Training - Course Fees,"Human Resources,Security & Facilities Division",
DFID,DFID,21-Mar-12,NATIONAL SCHOOL OF GOVERNMENT,705,Training - Course Fees,"Human Resources,Security & Facilities Division",
DFID,DFID,21-Mar-12,NATIONAL SCHOOL OF GOVERNMENT,"1,210",Training - Course Fees,"Human Resources,Security & Facilities Division",
DFID,DFID,21-Mar-12,NATIONAL SCHOOL OF GOVERNMENT,"1,200",Training - Course Fees,"Human Resources,Security & Facilities Division",
DFID,DFID,21-Mar-12,NATIONAL SCHOOL OF GOVERNMENT,"2,400",Training - Course Fees,"Human Resources,Security & Facilities Division",
DFID,DFID,21-Mar-12,NATIONAL SCHOOL OF GOVERNMENT,"7,200",Training - Course Fees,"Human Resources,Security & Facilities Division",
DFID,DFID,22-Mar-12,CRANFIELD UNIVERSITY,"4,875",Training - Course Fees,"Human Resources,Security & Facilities Division",
DFID,DFID,21-Mar-12,XAFINITY PAYMASTER,"1,000",Training - Course Fees,"Human Resources,Security & Facilities Division",
DFID,DFID,22-Mar-12,NATIONAL SCHOOL OF GOVERNMENT,"4,926",Training - Course Fees,"Human Resources,Security & Facilities Division",
DFID,DFID,28-Mar-12,INSIGHTS LEARNING & DEVELOPMENT LTD,"2,000",Training - Course Fees,"Human Resources,Security & Facilities Division",
DFID,DFID,01-Mar-12,WOLTERS KLUWER UK LIMITED,"2,568",Training Providers/Facilitation Services,"Human Resources,Security & Facilities Division",
DFID,DFID,20-Mar-12,DBD CONSULTING,"2,290",Training Providers/Facilitation Services,"Human Resources,Security & Facilities Division",
DFID,DFID,15-Mar-12,BUSINESS STREAM,"9,999",Water charges,"Human Resources,Security & Facilities Division",
DFID,DFID,27-Mar-12,THAMES WATER UTILITIES LTD,"1,607",Water charges,"Human Resources,Security & Facilities Division",
DFID,DFID,29-Mar-12,RSM Tenon Limited,"7,550",Technical and Advisory Services,Internal Audit,
DFID,DFID,21-Mar-12,Foreign & Commonwealth Office,"8,796",Hotels - Accommodation only,Internal Audit,
DFID,DFID,19-Mar-12,TREASURY SOLICITORS CASH ACC,789,Legal costs,Internal Audit,
DFID,DFID,30-Mar-12,Corporate Travel Provider,672,Air fares,Internal Audit,
DFID,DFID,30-Mar-12,Corporate Travel Provider,"1,048",Air fares,Internal Audit,
DFID,DFID,30-Mar-12,Corporate Travel Provider,774,Air fares,Internal Audit,
DFID,DFID,30-Mar-12,Corporate Travel Provider,"1,048",Air fares,Internal Audit,
DFID,DFID,30-Mar-12,Corporate Travel Provider,745,Air fares,Internal Audit,
DFID,DFID,30-Mar-12,Corporate Travel Provider,749,Air fares,Internal Audit,
DFID,DFID,13-Mar-12,NATIONAL SCHOOL OF GOVERNMENT,"1,420",Training - Course Fees,Internal Audit,
DFID,DFID,30-Mar-12,Corporate Travel Provider,"1,024",Conference Travel & Subsistence,International Finance Division,
DFID,DFID,08-Mar-12,JIM TANBURN & ASSOCIATES LTD,603,"Conferences, Seminars & Meeting/Event Resource",International Finance Division,
DFID,DFID,20-Mar-12,European Bank for Reconstruction & Development,"25,000","Conferences, Seminars & Meeting/Event Resource",International Finance Division,DFID contribution to EBRD annual board meeting conference 
DFID,DFID,05-Mar-12,THE WHITEHALL & INDUSTRY GROUP,"1,000",Consultancy Services,International Finance Division,
DFID,DFID,30-Mar-12,Government Procurement Card,616,Contract & Agency Staff,International Finance Division,
DFID,DFID,05-Mar-12,IBRD (HSBC)  C/O THE WORLD BANK,"2,250,000",Aid Programme - Core contributions,International Finance Division,
DFID,DFID,06-Mar-12,IBRD (HSBC)  C/O THE WORLD BANK,"1,600,000",Aid Programme - Core contributions,International Finance Division,
DFID,DFID,23-Mar-12,IBRD HSBC T,"50,000,000",Aid Programme - Core contributions,International Finance Division,
DFID,DFID,27-Mar-12,SG HAMBROS BANK & TRUST LTD (USD),"28,000,000",Aid Programme - Core contributions,International Finance Division,
DFID,DFID,27-Mar-12,SG HAMBROS BANK & TRUST LTD (USD),"6,000,000",Aid Programme - Core contributions,International Finance Division,
DFID,DFID,29-Mar-12,Foreign & Commonwealth Office,"3,914",Electricity,International Finance Division,
DFID,DFID,30-Mar-12,Corporate Travel Provider,507,Hotels - Accommodation only,International Finance Division,
DFID,DFID,13-Mar-12,Recipient name withheld,640,Hotels - Accommodation only,International Finance Division,
DFID,DFID,16-Mar-12,Recipient name withheld,563,Hotels - Accommodation only,International Finance Division,
DFID,DFID,28-Mar-12,Foreign & Commonwealth Office,"7,053",Cleaning Costs,International Finance Division,
DFID,DFID,30-Mar-12,Corporate Travel Provider,"1,076",Air fares,International Finance Division,
DFID,DFID,30-Mar-12,Corporate Travel Provider,767,Air fares,International Finance Division,
DFID,DFID,30-Mar-12,Corporate Travel Provider,"3,384",Air fares,International Finance Division,
DFID,DFID,30-Mar-12,Corporate Travel Provider,794,Air fares,International Finance Division,
DFID,DFID,30-Mar-12,Corporate Travel Provider,645,Air fares,International Finance Division,
DFID,DFID,30-Mar-12,Corporate Travel Provider,"1,528",Air fares,International Finance Division,
DFID,DFID,30-Mar-12,Corporate Travel Provider,777,Air fares,International Finance Division,
DFID,DFID,30-Mar-12,Corporate Travel Provider,515,Air fares,International Finance Division,
DFID,DFID,21-Mar-12,Foreign & Commonwealth Office,"3,579",Air fares,International Finance Division,
DFID,DFID,21-Mar-12,Foreign & Commonwealth Office,639,Air fares,International Finance Division,
DFID,DFID,21-Mar-12,Foreign & Commonwealth Office,550,Air fares,International Finance Division,
DFID,DFID,05-Mar-12,Nathan Associates London Ltd,"34,584",Technical and Advisory Services,International Finance Division,
DFID,DFID,06-Mar-12,Herbert Smith LLP,"46,376",Technical and Advisory Services,International Finance Division,Legal advice on ACTIS Feb 2012 invoice
DFID,DFID,14-Mar-12,Nathan Associates London Ltd,"4,344",Technical and Advisory Services,International Finance Division,
DFID,DFID,14-Mar-12,Nathan Associates London Ltd,"120,668",Technical and Advisory Services,International Finance Division,
DFID,DFID,21-Mar-12,Foreign & Commonwealth Office,"12,497",Technical and Advisory Services,International Finance Division,
DFID,DFID,21-Mar-12,Foreign & Commonwealth Office,535,Technical and Advisory Services,International Finance Division,
DFID,DFID,21-Mar-12,HEALTH PARTNERS INTERNATIONAL,"36,267",Technical and Advisory Services,International Finance Division,
DFID,DFID,21-Mar-12,PRICEWATERHOUSECOOPERS,"118,944",Technical and Advisory Services,International Finance Division,
DFID,DFID,21-Mar-12,CHARITIES AID FOUNDATION,"11,200",Technical and Advisory Services,International Finance Division,
DFID,DFID,23-Mar-12,MAXWELL STAMP PLC,"9,388",Technical and Advisory Services,International Finance Division,
DFID,DFID,23-Mar-12,MAXWELL STAMP PLC,"85,356",Technical and Advisory Services,International Finance Division,
DFID,DFID,28-Mar-12,PRICEWATERHOUSECOOPERS,"114,043",Technical and Advisory Services,International Finance Division,
DFID,DFID,06-Mar-12,NATIONAL SCHOOL OF GOVERNMENT,"2,950",Training - Course Fees,International Finance Division,
DFID,DFID,16-Mar-12,Happy Computers Ltd,528,Training - Course Fees,International Finance Division,
DFID,DFID,20-Mar-12,NATIONAL SCHOOL OF GOVERNMENT,"2,950",Training - Course Fees,International Finance Division,
DFID,DFID,30-Mar-12,Genius Within Ltd,600,Training - Course Fees,International Finance Division,
DFID,DFID,28-Mar-12,NATIONAL SCHOOL OF GOVERNMENT,"2,950",Training - Course Fees,International Finance Division,
DFID,DFID,30-Mar-12,Corporate Travel Provider,839,Training - Travel & Subsistence,International Finance Division,
DFID,DFID,21-Mar-12,IFC,"7,500,000",Aid Programme - Trust Funds contributions,International Finance Division,
DFID,DFID,19-Mar-12,IBRD (HSBC)  C/O THE WORLD BANK,"2,000,000",Aid Programme - Trust Funds contributions,International Finance Division,
DFID,DFID,21-Mar-12,UNESCO,"58,758",Aid Programme - Accountable Grant Payments,International Relations Division,
DFID,DFID,28-Mar-12,United Nations Industrial Development Organization,"4,327,702",Aid Programme - Core contributions,International Relations Division,
DFID,DFID,21-Mar-12,Foreign & Commonwealth Office,651,Data Network - land lines,International Relations Division,
DFID,DFID,21-Mar-12,Foreign & Commonwealth Office,"2,239",FCO shared service charges,International Relations Division,
DFID,DFID,21-Mar-12,Foreign & Commonwealth Office,"6,182",FCO shared service charges,International Relations Division,
DFID,DFID,29-Mar-12,Foreign & Commonwealth Office,"6,255",FCO shared service charges,International Relations Division,
DFID,DFID,30-Mar-12,Corporate Travel Provider,527,Hotels - Accommodation only,International Relations Division,
DFID,DFID,30-Mar-12,Corporate Travel Provider,527,Hotels - Accommodation only,International Relations Division,
DFID,DFID,13-Mar-12,Recipient name withheld,691,Hotels - Accommodation only,International Relations Division,
DFID,DFID,19-Mar-12,Recipient name withheld,813,Hotels - Accommodation only,International Relations Division,
DFID,DFID,22-Mar-12,Foreign & Commonwealth Office,620,Hotels - Accommodation only,International Relations Division,
DFID,DFID,21-Mar-12,Supplier Name withheld,"2,822",House rentals,International Relations Division,
DFID,DFID,27-Mar-12,Supplier Name withheld,"1,629",House rentals,International Relations Division,
DFID,DFID,14-Mar-12,CSC,"625,000",Aid Programme - Programme Contribution,International Relations Division,
DFID,DFID,21-Mar-12,Foreign & Commonwealth Office,506,Recruitment costs,International Relations Division,
DFID,DFID,30-Mar-12,Corporate Travel Provider,509,Air fares,International Relations Division,
DFID,DFID,30-Mar-12,Corporate Travel Provider,"1,093",Air fares,International Relations Division,
DFID,DFID,30-Mar-12,Corporate Travel Provider,"1,158",Air fares,International Relations Division,
DFID,DFID,30-Mar-12,Corporate Travel Provider,877,Air fares,International Relations Division,
DFID,DFID,30-Mar-12,Corporate Travel Provider,"2,446",Air fares,International Relations Division,
DFID,DFID,30-Mar-12,Corporate Travel Provider,"1,379",Air fares,International Relations Division,
DFID,DFID,30-Mar-12,Corporate Travel Provider,"2,563",Air fares,International Relations Division,
DFID,DFID,30-Mar-12,Corporate Travel Provider,898,Air fares,International Relations Division,
DFID,DFID,30-Mar-12,Corporate Travel Provider,808,Air fares,International Relations Division,
DFID,DFID,30-Mar-12,Corporate Travel Provider,940,Air fares,International Relations Division,
DFID,DFID,22-Mar-12,Foreign & Commonwealth Office,644,Air fares,International Relations Division,
DFID,DFID,01-Mar-12,ART OF LIVING,"1,308",Technical and Advisory Services,International Relations Division,
DFID,DFID,01-Mar-12,REPIM,"17,708",Technical and Advisory Services,International Relations Division,
DFID,DFID,05-Mar-12,PUBLIC ADMINISTRATION INTERN,"3,726",Technical and Advisory Services,International Relations Division,
DFID,DFID,05-Mar-12,PUBLIC ADMINISTRATION INTERN,"97,237",Technical and Advisory Services,International Relations Division,
DFID,DFID,09-Mar-12,COFFEY INTERNATIONAL DEVELOPMENT LTD,"37,287",Technical and Advisory Services,International Relations Division,
DFID,DFID,14-Mar-12,RACHEL SMITH-GOVONI,"5,046",Technical and Advisory Services,International Relations Division,
DFID,DFID,16-Mar-12,heinrichtegtmeyer,"9,143",Technical and Advisory Services,International Relations Division,
DFID,DFID,20-Mar-12,PRICEWATERHOUSECOOPERS,"39,547",Technical and Advisory Services,International Relations Division,
DFID,DFID,27-Mar-12,Shundi Consulting,"31,118",Technical and Advisory Services,International Relations Division,
DFID,DFID,21-Mar-12,Foreign & Commonwealth Office,740,Technical and Advisory Services,International Relations Division,
DFID,DFID,21-Mar-12,Foreign & Commonwealth Office,"6,911",Technical and Advisory Services,International Relations Division,
DFID,DFID,22-Mar-12,Foreign & Commonwealth Office,"2,553",Technical and Advisory Services,International Relations Division,
DFID,DFID,22-Mar-12,Foreign & Commonwealth Office,613,Technical and Advisory Services,International Relations Division,
DFID,DFID,22-Mar-12,Foreign & Commonwealth Office,"2,377",Technical and Advisory Services,International Relations Division,
DFID,DFID,22-Mar-12,Foreign & Commonwealth Office,"1,271",Technical and Advisory Services,International Relations Division,
DFID,DFID,22-Mar-12,Foreign & Commonwealth Office,514,Technical and Advisory Services,International Relations Division,
DFID,DFID,27-Mar-12,COFFEY INTERNATIONAL DEVELOPMENT LTD,"33,165",Technical and Advisory Services,International Relations Division,
DFID,DFID,28-Mar-12,COFFEY INTERNATIONAL DEVELOPMENT LTD,"83,270",Technical and Advisory Services,International Relations Division,
DFID,DFID,29-Mar-12,Foreign & Commonwealth Office,509,Technical and Advisory Services,International Relations Division,
DFID,DFID,30-Mar-12,Government Procurement Card,714,Training - Course Fees,International Relations Division,
DFID,DFID,05-Mar-12,NATIONAL SCHOOL OF GOVERNMENT,523,Training - Course Fees,International Relations Division,
DFID,DFID,13-Mar-12,Government Knowledge Training Ltd,882,Training - Course Fees,International Relations Division,
DFID,DFID,19-Mar-12,INSIGHTS LEARNING & DEVELOPMENT LTD,572,Training - Course Fees,International Relations Division,
DFID,DFID,20-Mar-12,GATEWAY LANGUAGE SERVICES LTD,"1,093",Training - Course Fees,International Relations Division,
DFID,DFID,29-Mar-12,GOVNET COMMUNICATIONS,594,Training Providers/Facilitation Services,International Relations Division,
DFID,DFID,07-Mar-12,InterContinental Hotel,693,Other travel costs,International Relations Division,
DFID,DFID,14-Mar-12,BT BACS PAYMENTS,"1,425",other information and communication technologies,Joint Trade Policy Division,
DFID,DFID,30-Mar-12,Corporate Travel Provider,"1,105",Air fares,Joint Trade Policy Division,
DFID,DFID,30-Mar-12,Corporate Travel Provider,679,Air fares,Joint Trade Policy Division,
DFID,DFID,30-Mar-12,Corporate Travel Provider,720,Air fares,Joint Trade Policy Division,
DFID,DFID,05-Mar-12,IBRD HSBC T,"2,083,333",Aid Programme - Trust Funds contributions,Joint Trade Policy Division,
DFID,DFID,07-Mar-12,THE TIMBER TRADE FEDERATION,"7,430",Aid Programme - Accountable Grant Payments,Policy Division,
DFID,DFID,19-Mar-12,Center for International Forestry Research (CIFOR) (GBP),"32,299",Aid Programme - Accountable Grant Payments,Policy Division,
DFID,DFID,09-Mar-12,Center for International Forestry Research (CIFOR) (GBP),"70,000",Aid Programme - Accountable Grant Payments,Policy Division,
DFID,DFID,09-Mar-12,BOND,"100,182",Aid Programme - Accountable Grant Payments,Policy Division,
DFID,DFID,13-Mar-12,KPMG DEVELOPMENT SERVICE,"942,201",Aid Programme - Accountable Grant Payments,Policy Division,
DFID,DFID,15-Mar-12,Forest Trends,"89,712",Aid Programme - Accountable Grant Payments,Policy Division,
DFID,DFID,16-Mar-12,PATH CHECKING,"114,613",Aid Programme - Accountable Grant Payments,Policy Division,
DFID,DFID,16-Mar-12,KPMG DEVELOPMENT SERVICE,"276,530",Aid Programme - Accountable Grant Payments,Policy Division,
DFID,DFID,20-Mar-12,Guttmacher Institute,"212,646",Aid Programme - Accountable Grant Payments,Policy Division,
DFID,DFID,21-Mar-12,PATH CHECKING,"77,761",Aid Programme - Accountable Grant Payments,Policy Division,
DFID,DFID,21-Mar-12,PATH CHECKING,"26,604",Aid Programme - Accountable Grant Payments,Policy Division,
DFID,DFID,21-Mar-12,PATH CHECKING,"195,635",Aid Programme - Accountable Grant Payments,Policy Division,
DFID,DFID,21-Mar-12,IIED ,"24,999",Aid Programme - Accountable Grant Payments,Policy Division,
DFID,DFID,23-Mar-12,ICAR (UK),"122,500",Aid Programme - Accountable Grant Payments,Policy Division,
DFID,DFID,27-Mar-12,The Carter Center,"2,830,000",Aid Programme - Accountable Grant Payments,Policy Division,
DFID,DFID,26-Mar-12,NIKE FOUNDATION,"492,373",Aid Programme - Accountable Grant Payments,Policy Division,
DFID,DFID,23-Mar-12,IMPERIAL COLLEGE LONDON,"206,000",Aid Programme - Accountable Grant Payments,Policy Division,
DFID,DFID,28-Mar-12,The George Washington University,"167,064",Aid Programme - Accountable Grant Payments,Policy Division,
DFID,DFID,28-Mar-12,KPMG DEVELOPMENT SERVICE,"2,136,715",Aid Programme - Accountable Grant Payments,Policy Division,
DFID,DFID,28-Mar-12,KPMG DEVELOPMENT SERVICE,"342,829",Aid Programme - Accountable Grant Payments,Policy Division,
DFID,DFID,05-Mar-12,Triple Line Consulting Limited,"213,631",Aid Programme - Challenge Fund payments,Policy Division,
DFID,DFID,21-Mar-12,NATIONAL SCHOOL OF GOVERNMENT,"1,180","Conferences, Seminars & Meeting/Event Resource",Policy Division,
DFID,DFID,28-Mar-12,ROYAL COLLEGE OF OBSTETRICIANS & GYNAECOLOGISTS,"2,672","Conferences, Seminars & Meeting/Event Resource",Policy Division,
DFID,DFID,30-Mar-12, INTERPEACE,"98,263","Conferences, Seminars & Meeting/Event Resource",Policy Division,
DFID,DFID,15-Mar-12,OXFORD POLICY MANAGEMENT,"24,925",Technical and Advisory Services,Policy Division,
DFID,DFID,30-Mar-12,Government Procurement Card,645,Contract & Agency Staff,Policy Division,
DFID,DFID,30-Mar-12,Government Procurement Card,861,Contract & Agency Staff,Policy Division,
DFID,DFID,30-Mar-12,Government Procurement Card,631,Contract & Agency Staff,Policy Division,
DFID,DFID,30-Mar-12,Government Procurement Card,572,Contract & Agency Staff,Policy Division,
DFID,DFID,30-Mar-12,Government Procurement Card,535,Contract & Agency Staff,Policy Division,
DFID,DFID,13-Mar-12,SOCIAL DEVELOPMENT DIRECT LTD,"9,720",Contract & Agency Staff,Policy Division,
DFID,DFID,26-Mar-12,Crown Agents Bank,683,Contract & Agency Staff,Policy Division,
DFID,DFID,01-Mar-12, OECD,"140,000",Aid Programme - Core contributions,Policy Division,
DFID,DFID,14-Mar-12,IBRD HSBC T,"400,000",Aid Programme - Core contributions,Policy Division,
DFID,DFID,19-Mar-12,FAO,"1,099,104",Aid Programme - Core contributions,Policy Division,
DFID,DFID,28-Mar-12,UNDP (USD) ACCOUNT,"430,000",Aid Programme - Core contributions,Policy Division,
DFID,DFID,28-Mar-12,UNDP (USD) ACCOUNT,"230,000",Aid Programme - Core contributions,Policy Division,
DFID,DFID,20-Mar-12,Pilgrims Group,788,Hostile Environment Training,Policy Division,
DFID,DFID,30-Mar-12,Corporate Travel Provider,609,Hotels - Accommodation only,Policy Division,
DFID,DFID,30-Mar-12,Corporate Travel Provider,648,Hotels - Accommodation only,Policy Division,
DFID,DFID,02-Mar-12,Recipient name withheld,567,Hotels - Accommodation only,Policy Division,
DFID,DFID,07-Mar-12,Recipient name withheld,780,Hotels - Accommodation only,Policy Division,
DFID,DFID,07-Mar-12,Recipient name withheld,632,Hotels - Accommodation only,Policy Division,
DFID,DFID,07-Mar-12,Recipient name withheld,970,Hotels - Accommodation only,Policy Division,
DFID,DFID,15-Mar-12,Recipient name withheld,686,Hotels - Accommodation only,Policy Division,
DFID,DFID,19-Mar-12,Recipient name withheld,700,Hotels - Accommodation only,Policy Division,
DFID,DFID,21-Mar-12,Foreign & Commonwealth Office,730,Hotels - Accommodation only,Policy Division,
DFID,DFID,21-Mar-12,Recipient name withheld,538,Hotels - Accommodation only,Policy Division,
DFID,DFID,22-Mar-12,Foreign & Commonwealth Office,576,Hotels - Accommodation only,Policy Division,
DFID,DFID,25-Mar-12,Recipient name withheld,552,Hotels - Accommodation only,Policy Division,
DFID,DFID,27-Mar-12,Recipient name withheld,"1,537",Hotels - Accommodation only,Policy Division,
DFID,DFID,16-Mar-12,TSoL,"2,215",Legal costs,Policy Division,
DFID,DFID,05-Mar-12,Development Initiatives Poverty Research Ltd,"97,330",Aid Programme - Partnership Programme Arrangements,Policy Division,
DFID,DFID,21-Mar-12,COMIC RELIEF,"706,165",Aid Programme - Partnership Programme Arrangements,Policy Division,
DFID,DFID,30-Mar-12,Corporate Travel Provider,756,Air fares,Policy Division,
DFID,DFID,30-Mar-12,Corporate Travel Provider,559,Air fares,Policy Division,
DFID,DFID,30-Mar-12,Corporate Travel Provider,794,Air fares,Policy Division,
DFID,DFID,30-Mar-12,Corporate Travel Provider,"1,097",Air fares,Policy Division,
DFID,DFID,30-Mar-12,Corporate Travel Provider,931,Air fares,Policy Division,
DFID,DFID,30-Mar-12,Corporate Travel Provider,956,Air fares,Policy Division,
DFID,DFID,30-Mar-12,Corporate Travel Provider,956,Air fares,Policy Division,
DFID,DFID,30-Mar-12,Corporate Travel Provider,986,Air fares,Policy Division,
DFID,DFID,30-Mar-12,Corporate Travel Provider,718,Air fares,Policy Division,
DFID,DFID,30-Mar-12,Corporate Travel Provider,699,Air fares,Policy Division,
DFID,DFID,30-Mar-12,Corporate Travel Provider,790,Air fares,Policy Division,
DFID,DFID,30-Mar-12,Corporate Travel Provider,844,Air fares,Policy Division,
DFID,DFID,30-Mar-12,Corporate Travel Provider,797,Air fares,Policy Division,
DFID,DFID,30-Mar-12,Corporate Travel Provider,"1,012",Air fares,Policy Division,
DFID,DFID,30-Mar-12,Corporate Travel Provider,"1,432",Air fares,Policy Division,
DFID,DFID,30-Mar-12,Corporate Travel Provider,591,Air fares,Policy Division,
DFID,DFID,13-Mar-12,KUONI BUSINESS TRAVEL INDIA PVT LTD,696,Air fares,Policy Division,
DFID,DFID,16-Mar-12,Recipient name withheld,586,Air fares,Policy Division,
DFID,DFID,01-Mar-12,HAREWELLE INTERNATIONAL LIMITED,"13,750",Technical and Advisory Services,Policy Division,
DFID,DFID,01-Mar-12,HAREWELLE INTERNATIONAL LIMITED,"7,106",Technical and Advisory Services,Policy Division,
DFID,DFID,05-Mar-12,recipient withheld,"12,080",Technical and Advisory Services,Policy Division,
DFID,DFID,07-Mar-12,THE IDL GROUP,"38,467",Technical and Advisory Services,Policy Division,
DFID,DFID,07-Mar-12,THE IDL GROUP,"27,580",Technical and Advisory Services,Policy Division,
DFID,DFID,06-Mar-12,MICHAEL FLINT & PARTNERS,"41,938",Technical and Advisory Services,Policy Division,
DFID,DFID,07-Mar-12,KPMG LLP,"19,414",Technical and Advisory Services,Policy Division,
DFID,DFID,07-Mar-12,KPMG LLP,"24,981",Technical and Advisory Services,Policy Division,
DFID,DFID,09-Mar-12,Crown Agents Bank,"380,387",Technical and Advisory Services,Policy Division,
DFID,DFID,08-Mar-12,LONDON SCHOOL OF ECONOMICS AND POLITICAL SCIENCE,"138,679",Technical and Advisory Services,Policy Division,
DFID,DFID,08-Mar-12,LONDON SCHOOL OF ECONOMICS AND POLITICAL SCIENCE,"69,575",Technical and Advisory Services,Policy Division,
DFID,DFID,09-Mar-12,LONDON SCHOOL OF HYGIENE AND TR,"40,557",Technical and Advisory Services,Policy Division,
DFID,DFID,13-Mar-12,IMC Worldwide Ltd,"14,853",Technical and Advisory Services,Policy Division,
DFID,DFID,14-Mar-12,GBRW LIMITED,"1,643",Technical and Advisory Services,Policy Division,
DFID,DFID,14-Mar-12,AGULHAS DEVELOPMENT CONSULTANTS LTD,"3,744",Technical and Advisory Services,Policy Division,
DFID,DFID,15-Mar-12,ANDREW ROBY,"22,452",Technical and Advisory Services,Policy Division,
DFID,DFID,16-Mar-12,PRICEWATERHOUSECOOPERS,"130,938",Technical and Advisory Services,Policy Division,
DFID,DFID,16-Mar-12,HTSPE LTD,"4,386",Technical and Advisory Services,Policy Division,
DFID,DFID,15-Mar-12,ASSOCIATION OF COMMONWEALTH UNIVER,"7,270",Technical and Advisory Services,Policy Division,
DFID,DFID,16-Mar-12,WSP INTERNATIONAL,"21,840",Technical and Advisory Services,Policy Division,
DFID,DFID,20-Mar-12,KPMG Development Services,"39,335",Technical and Advisory Services,Policy Division,
DFID,DFID,20-Mar-12,BRITISH COUNCIL,"45,750",Technical and Advisory Services,Policy Division,
DFID,DFID,20-Mar-12,TROPICAL HEALTH EDUCATION TRUST,"59,608",Technical and Advisory Services,Policy Division,
DFID,DFID,22-Mar-12,HAREWELLE INTERNATIONAL LIMITED,"7,694",Technical and Advisory Services,Policy Division,
DFID,DFID,21-Mar-12,HAREWELLE INTERNATIONAL LIMITED,"6,546",Technical and Advisory Services,Policy Division,
DFID,DFID,23-Mar-12,PATH,"13,127",Technical and Advisory Services,Policy Division,
DFID,DFID,23-Mar-12,Triple Line Consulting Limited,"5,068",Technical and Advisory Services,Policy Division,
DFID,DFID,26-Mar-12,IMC Worldwide Ltd,"44,196",Technical and Advisory Services,Policy Division,
DFID,DFID,27-Mar-12,TROPICAL HEALTH EDUCATION TRUST,"131,350",Technical and Advisory Services,Policy Division,
DFID,DFID,27-Mar-12,TRIPLE LINE CONSULTING LTD,"66,099",Technical and Advisory Services,Policy Division,
DFID,DFID,28-Mar-12,COFFEY INTERNATIONAL DEVELOPMENT LTD,"45,994",Technical and Advisory Services,Policy Division,
DFID,DFID,28-Mar-12,Estate of Rosemary Stevenson,880,Technical and Advisory Services,Policy Division,
DFID,DFID,28-Mar-12,COFFEY INTERNATIONAL DEVELOPMENT LTD,"17,476",Technical and Advisory Services,Policy Division,
DFID,DFID,29-Mar-12,RSM Tenon Limited,"17,856",Technical and Advisory Services,Policy Division,
DFID,DFID,29-Mar-12,IMPERIAL COLLEGE LONDON,"398,652",Technical and Advisory Services,Policy Division,
DFID,DFID,20-Mar-12,INSIGHTS LEARNING & DEVELOPMENT LTD,"2,123",Training - Course Fees,Policy Division,
DFID,DFID,20-Mar-12,International Development UEA,"1,500",Training - Course Fees,Policy Division,
DFID,DFID,22-Mar-12,BIRKBECK UNIVERSITY OF LONDON,600,Training - Course Fees,Policy Division,
DFID,DFID,21-Mar-12,UNIVERSITY OF BIRMINGHAM,"2,750",Training - Course Fees,Policy Division,
DFID,DFID,14-Mar-12,Pilgrims Group,788,Training Providers/Facilitation Services,Policy Division,
DFID,DFID,16-Mar-12,THRESHOLDS LTD,"1,800",Training Providers/Facilitation Services,Policy Division,
DFID,DFID,21-Mar-12,Pilgrims Group,946,Training Providers/Facilitation Services,Policy Division,
DFID,DFID,21-Mar-12,Caroline Pulver,"1,662",Training Providers/Facilitation Services,Policy Division,
DFID,DFID,28-Mar-12,GOVNET COMMUNICATIONS,900,Training Providers/Facilitation Services,Policy Division,
DFID,DFID,29-Mar-12,NATIONAL SCHOOL OF GOVERNMENT,925,Training Providers/Facilitation Services,Policy Division,
DFID,DFID,07-Mar-12,IBRD HSBC T,"3,000,000",Aid Programme - Trust Funds contributions,Policy Division,
DFID,DFID,07-Mar-12,WHO (GENEVA),"140,000",Aid Programme - Voluntary contributions,Policy Division,
DFID,DFID,07-Mar-12,United Nations Forum on Forests,"413,693",Aid Programme - Voluntary contributions,Policy Division,
DFID,DFID,08-Mar-12,IBRD HSBC T,"22,000,000",Aid Programme - Voluntary contributions,Policy Division,
DFID,DFID,13-Mar-12,UNDP CONTRIBUTIONS GBP,"50,000",Aid Programme - Voluntary contributions,Policy Division,
DFID,DFID,13-Mar-12,IBRD (HSBC)  C/O THE WORLD BANK,"500,000",Aid Programme - Voluntary contributions,Policy Division,
DFID,DFID,16-Mar-12,UNCCD (United Nations Convention to Combat Desertification),"395,128",Aid Programme - Voluntary contributions,Policy Division,
DFID,DFID,16-Mar-12,IBRD HSBC T,"10,000,000",Aid Programme - Voluntary contributions,Policy Division,
DFID,DFID,23-Mar-12,WHO (GENEVA),"500,000",Aid Programme - Voluntary contributions,Policy Division,
DFID,DFID,22-Mar-12,WHO (GENEVA),"276,000",Aid Programme - Voluntary contributions,Policy Division,
DFID,DFID,21-Mar-12,UNDP CONTRIBUTIONS GBP,"450,000",Aid Programme - Voluntary contributions,Policy Division,
DFID,DFID,27-Mar-12,   THE WORLD BANK,"100,000",Aid Programme - Voluntary contributions,Policy Division,
DFID,DFID,06-Mar-12,GLOBAL DEVELOPMENT NETWORK (3ie),"37,945",Aid Programme - Accountable Grant Payments,Research and Evidence Division,
DFID,DFID,09-Mar-12,MIT,"27,335",Aid Programme - Accountable Grant Payments,Research and Evidence Division,
DFID,DFID,05-Mar-12,AATF,"661,129",Aid Programme - Accountable Grant Payments,Research and Evidence Division,
DFID,DFID,08-Mar-12,AFRICAN EVALUATION ASSOCIATION,"38,846",Aid Programme - Accountable Grant Payments,Research and Evidence Division,
DFID,DFID,15-Mar-12,WELLCOME TRUST,"1,660",Aid Programme - Accountable Grant Payments,Research and Evidence Division,
DFID,DFID,15-Mar-12,WELLCOME TRUST,"16,141",Aid Programme - Accountable Grant Payments,Research and Evidence Division,
DFID,DFID,13-Mar-12,SCIDEV.NET,"150,000",Aid Programme - Accountable Grant Payments,Research and Evidence Division,
DFID,DFID,21-Mar-12,OVERSEAS DEVELOPMENT INSTITUTE,"221,575",Aid Programme - Accountable Grant Payments,Research and Evidence Division,
DFID,DFID,22-Mar-12,World Federation of Science Journalists (CAD),"89,138",Aid Programme - Accountable Grant Payments,Research and Evidence Division,
DFID,DFID,23-Mar-12,WORLD RESOURCES INSTITUTE,"5,920",Aid Programme - Accountable Grant Payments,Research and Evidence Division,
DFID,DFID,27-Mar-12,Foreign & Commonwealth Office,"19,669",Aid Programme - Accountable Grant Payments,Research and Evidence Division,
DFID,DFID,30-Mar-12,Shell Foundation,"55,032",Aid Programme - Accountable Grant Payments,Research and Evidence Division,
DFID,DFID,12-Mar-12,Hotel Himalaya Pvt Ltd,"1,751","Conferences, Seminars & Meeting/Event Resource",Research and Evidence Division,
DFID,DFID,14-Mar-12,KUONI BUSINESS TRAVEL INDIA PVT LTD,"3,595","Conferences, Seminars & Meeting/Event Resource",Research and Evidence Division,
DFID,DFID,14-Mar-12,KUONI BUSINESS TRAVEL INDIA PVT LTD,"2,841","Conferences, Seminars & Meeting/Event Resource",Research and Evidence Division,
DFID,DFID,21-Mar-12,Foreign & Commonwealth Office,737,"Conferences, Seminars & Meeting/Event Resource",Research and Evidence Division,
DFID,DFID,27-Mar-12,BRAC - CDM,"12,449","Conferences, Seminars & Meeting/Event Resource",Research and Evidence Division,
DFID,DFID,27-Mar-12,Foreign & Commonwealth Office,"1,007","Conferences, Seminars & Meeting/Event Resource",Research and Evidence Division,
DFID,DFID,29-Mar-12,University Of Strathclyde,"11,550","Conferences, Seminars & Meeting/Event Resource",Research and Evidence Division,
DFID,DFID,23-Mar-12,Swiss Tropical and Public Health Institute,"19,475",Consultancy Services,Research and Evidence Division,
DFID,DFID,30-Mar-12,Government Procurement Card,675,Contract & Agency Staff,Research and Evidence Division,
DFID,DFID,30-Mar-12,Government Procurement Card,589,Contract & Agency Staff,Research and Evidence Division,
DFID,DFID,30-Mar-12,Government Procurement Card,813,Contract & Agency Staff,Research and Evidence Division,
DFID,DFID,30-Mar-12,Government Procurement Card,589,Contract & Agency Staff,Research and Evidence Division,
DFID,DFID,30-Mar-12,Government Procurement Card,818,Contract & Agency Staff,Research and Evidence Division,
DFID,DFID,30-Mar-12,Government Procurement Card,824,Contract & Agency Staff,Research and Evidence Division,
DFID,DFID,01-Mar-12,WHO Human Reproduction Programme,"700,000",Aid Programme - Core contributions,Research and Evidence Division,
DFID,DFID,02-Mar-12,The World Bank (EFO),"50,000",Aid Programme - Core contributions,Research and Evidence Division,
DFID,DFID,08-Mar-12,Drugs for Neglected Diseases Initiative,"2,250,000",Aid Programme - Core contributions,Research and Evidence Division,
DFID,DFID,07-Mar-12,CARLETON UNIVERSITY,"49,987",Aid Programme - Core contributions,Research and Evidence Division,
DFID,DFID,09-Mar-12,CORAF/WECARD,"2,500,000",Aid Programme - Core contributions,Research and Evidence Division,
DFID,DFID,08-Mar-12,WHO Human Reproduction Programme,"2,750,000",Aid Programme - Core contributions,Research and Evidence Division,
DFID,DFID,09-Mar-12,The Foundation for Innovative Diagnostics (FIND),"1,200,000",Aid Programme - Core contributions,Research and Evidence Division,
DFID,DFID,16-Mar-12,USDA-ARS,"1,035,460",Aid Programme - Core contributions,Research and Evidence Division,
DFID,DFID,13-Mar-12,Medicines for Malaria Venture,"6,800,000",Aid Programme - Core contributions,Research and Evidence Division,
DFID,DFID,13-Mar-12,The Global Alliance for TB Drug Development,"4,800,000",Aid Programme - Core contributions,Research and Evidence Division,
DFID,DFID,13-Mar-12,WHO (GENEVA),"1,500,000",Aid Programme - Core contributions,Research and Evidence Division,
DFID,DFID,16-Mar-12,INTERNATIONAL AIDS VACCINE INITIATIV,"3,000,000",Aid Programme - Core contributions,Research and Evidence Division,
DFID,DFID,30-Mar-12,The World Bank (EFO),"75,000",Aid Programme - Core contributions,Research and Evidence Division,
DFID,DFID,23-Mar-12,AERAS Global TB Vaccine Foundation,"800,000",Aid Programme - Core contributions,Research and Evidence Division,
DFID,DFID,20-Mar-12,MEDICAL RESEARCH COUNCIL,"6,000,000",Aid Programme - Core contributions,Research and Evidence Division,
DFID,DFID,23-Mar-12,PATH CHECKING,"1,067,279",Aid Programme - Core contributions,Research and Evidence Division,
DFID,DFID,27-Mar-12,SWISS AGENCY FOR DEVELOPMENT AND COOPERATION (SDC),"353,787",Aid Programme - Core contributions,Research and Evidence Division,
DFID,DFID,21-Mar-12,GALVmed,"306,982",Aid Programme - Core contributions,Research and Evidence Division,
DFID,DFID,26-Mar-12,PATH CHECKING,"353,722",Aid Programme - Core contributions,Research and Evidence Division,
DFID,DFID,30-Mar-12,Institute for OneWorld Health,"350,000",Aid Programme - Core contributions,Research and Evidence Division,
DFID,DFID,29-Mar-12,WELLCOME TRUST,"30,692",Aid Programme - Core contributions,Research and Evidence Division,
DFID,DFID,01-Mar-12,Pilgrims Group,"1,503",Hostile Environment Training,Research and Evidence Division,
DFID,DFID,21-Mar-12,Pilgrims Group,788,Hostile Environment Training,Research and Evidence Division,
DFID,DFID,21-Mar-12,Pilgrims Group,"2,505",Hostile Environment Training,Research and Evidence Division,
DFID,DFID,21-Mar-12,Pilgrims Group,"1,253",Hostile Environment Training,Research and Evidence Division,
DFID,DFID,21-Mar-12,Pilgrims Group,788,Hostile Environment Training,Research and Evidence Division,
DFID,DFID,21-Mar-12,Pilgrims Group,788,Hostile Environment Training,Research and Evidence Division,
DFID,DFID,21-Mar-12,Pilgrims Group,946,Hostile Environment Training,Research and Evidence Division,
DFID,DFID,07-Mar-12,Recipient name withheld,959,Hotels - Accommodation only,Research and Evidence Division,
DFID,DFID,07-Mar-12,InterContinental Hotel,798,Hotels - Accommodation only,Research and Evidence Division,
DFID,DFID,12-Mar-12,Recipient name withheld,587,Hotels - Accommodation only,Research and Evidence Division,
DFID,DFID,13-Mar-12,Recipient name withheld,539,Hotels - Accommodation only,Research and Evidence Division,
DFID,DFID,29-Mar-12,Recipient name withheld,802,Hotels - Accommodation only,Research and Evidence Division,
DFID,DFID,14-Mar-12,WHO (GENEVA),"50,000",Aid Programme - Joint programme contribution,Research and Evidence Division,
DFID,DFID,23-Mar-12,MET OFFICE,"267,938",Aid Programme - Joint programme contribution,Research and Evidence Division,
DFID,DFID,30-Mar-12,United Nations Environment Programme (UNEP),"250,000",Aid Programme - Joint programme contribution,Research and Evidence Division,
DFID,DFID,30-Mar-12,Netherlands Organisation for Scientific Research WOTRO Science for Global Development,"200,000",Aid Programme - Joint programme contribution,Research and Evidence Division,
DFID,DFID,02-Mar-12,VODAFONE CORPORATE,"4,130",Mobile telephones & accessories,Research and Evidence Division,
DFID,DFID,02-Mar-12,VODAFONE CORPORATE,504,Mobile telephones & accessories,Research and Evidence Division,
DFID,DFID,28-Mar-12,WELLCOME TRUST,"22,442",Aid Programme - Pooled/Basket funding,Research and Evidence Division,
DFID,DFID,06-Mar-12,MET OFFICE,"40,000",Aid Programme - Programme Contribution,Research and Evidence Division,
DFID,DFID,05-Mar-12,UNIVERSITY OF LEEDS,"192,210",Research & Development costs,Research and Evidence Division,
DFID,DFID,02-Mar-12,ITAD LTD,"44,537",Research & Development costs,Research and Evidence Division,
DFID,DFID,06-Mar-12,Crown Agents Bank - Internatioanal,"97,974",Research & Development costs,Research and Evidence Division,
DFID,DFID,06-Mar-12,IFPRI,"96,774",Research & Development costs,Research and Evidence Division,
DFID,DFID,19-Mar-12,IFPRI,"8,665",Research & Development costs,Research and Evidence Division,
DFID,DFID,23-Mar-12,COFFEY INTERNATIONAL DEVELOPMENT LTD,"48,205",Research & Development costs,Research and Evidence Division,
DFID,DFID,15-Mar-12,GALVmed,"206,939",Research & Development costs,Research and Evidence Division,
DFID,DFID,19-Mar-12,LEONARD CHESHIRE DISABILITY,"48,840",Research & Development costs,Research and Evidence Division,
DFID,DFID,19-Mar-12,ECONOMIC & SOCIAL REASEARCH COUNCIL,"621,600",Research & Development costs,Research and Evidence Division,
DFID,DFID,19-Mar-12,ECONOMIC & SOCIAL REASEARCH COUNCIL,"25,900",Research & Development costs,Research and Evidence Division,
DFID,DFID,19-Mar-12,LONDON SCHOOL OF HYGIENE AND TR,"438,553",Research & Development costs,Research and Evidence Division,
DFID,DFID,21-Mar-12,International Food PolicyResearch Institute (IFRI,"88,824",Research & Development costs,Research and Evidence Division,
DFID,DFID,26-Mar-12,University of Cape Town (UCT),"182,861",Research & Development costs,Research and Evidence Division,
DFID,DFID,23-Mar-12,OVERSEAS DEVELOPMENT INSTITUTE,"33,500",Research & Development costs,Research and Evidence Division,
DFID,DFID,28-Mar-12,ECONOMIC & SOCIAL REASEARCH COUNCIL,"34,698",Research & Development costs,Research and Evidence Division,
DFID,DFID,23-Mar-12,Department of Management Studies Indian Institute of Technology Madras,"9,902",Research & Development costs,Research and Evidence Division,
DFID,DFID,27-Mar-12,Population Council,"37,483",Research & Development costs,Research and Evidence Division,
DFID,DFID,28-Mar-12,UNIVERSITY OF LONDON INSTIT,"14,521",Research & Development costs,Research and Evidence Division,
DFID,DFID,29-Mar-12,Research into Results Ltd,"3,457,475",Research & Development costs,Research and Evidence Division,
DFID,DFID,30-Mar-12,ECONOMIC & SOCIAL REASEARCH COUNCIL,"23,340",Research & Development costs,Research and Evidence Division,
DFID,DFID,30-Mar-12,ECONOMIC & SOCIAL REASEARCH COUNCIL,"60,335",Research & Development costs,Research and Evidence Division,
DFID,DFID,30-Mar-12,ECONOMIC & SOCIAL REASEARCH COUNCIL,"473,255",Research & Development costs,Research and Evidence Division,
DFID,DFID,30-Mar-12,Corporate Travel Provider,756,Air fares,Research and Evidence Division,
DFID,DFID,30-Mar-12,Corporate Travel Provider,664,Air fares,Research and Evidence Division,
DFID,DFID,30-Mar-12,Corporate Travel Provider,756,Air fares,Research and Evidence Division,
DFID,DFID,30-Mar-12,Corporate Travel Provider,"1,492",Air fares,Research and Evidence Division,
DFID,DFID,30-Mar-12,Corporate Travel Provider,"1,042",Air fares,Research and Evidence Division,
DFID,DFID,30-Mar-12,Corporate Travel Provider,989,Air fares,Research and Evidence Division,
DFID,DFID,30-Mar-12,Corporate Travel Provider,"1,492",Air fares,Research and Evidence Division,
DFID,DFID,30-Mar-12,Corporate Travel Provider,603,Air fares,Research and Evidence Division,
DFID,DFID,30-Mar-12,Corporate Travel Provider,"1,042",Air fares,Research and Evidence Division,
DFID,DFID,30-Mar-12,Corporate Travel Provider,691,Air fares,Research and Evidence Division,
DFID,DFID,30-Mar-12,Corporate Travel Provider,667,Air fares,Research and Evidence Division,
DFID,DFID,30-Mar-12,Corporate Travel Provider,789,Air fares,Research and Evidence Division,
DFID,DFID,30-Mar-12,Corporate Travel Provider,797,Air fares,Research and Evidence Division,
DFID,DFID,30-Mar-12,Corporate Travel Provider,754,Air fares,Research and Evidence Division,
DFID,DFID,30-Mar-12,Corporate Travel Provider,920,Air fares,Research and Evidence Division,
DFID,DFID,30-Mar-12,Corporate Travel Provider,610,Air fares,Research and Evidence Division,
DFID,DFID,30-Mar-12,Corporate Travel Provider,656,Air fares,Research and Evidence Division,
DFID,DFID,30-Mar-12,Corporate Travel Provider,591,Air fares,Research and Evidence Division,
DFID,DFID,30-Mar-12,Corporate Travel Provider,"1,207",Air fares,Research and Evidence Division,
DFID,DFID,30-Mar-12,Corporate Travel Provider,888,Air fares,Research and Evidence Division,
DFID,DFID,30-Mar-12,Corporate Travel Provider,"1,015",Air fares,Research and Evidence Division,
DFID,DFID,30-Mar-12,Corporate Travel Provider,"1,118",Air fares,Research and Evidence Division,
DFID,DFID,30-Mar-12,Corporate Travel Provider,776,Air fares,Research and Evidence Division,
DFID,DFID,30-Mar-12,Corporate Travel Provider,741,Air fares,Research and Evidence Division,
DFID,DFID,30-Mar-12,Corporate Travel Provider,"2,360",Air fares,Research and Evidence Division,
DFID,DFID,08-Mar-12,Foreign & Commonwealth Office,766,Air fares,Research and Evidence Division,
DFID,DFID,21-Mar-12,Foreign & Commonwealth Office,"1,281",Air fares,Research and Evidence Division,
DFID,DFID,23-Mar-12,KUONI BUSINESS TRAVEL INDIA PVT LTD,"1,743",Air fares,Research and Evidence Division,
DFID,DFID,29-Mar-12,BCD Travel (USD),865,Air fares,Research and Evidence Division,
DFID,DFID,28-Mar-12,Foreign & Commonwealth Office,"2,321",Air fares,Research and Evidence Division,
DFID,DFID,23-Mar-12,ECONOMIST INTELLIGENCE UNIT LTD,"6,740",Subscriptions,Research and Evidence Division,
DFID,DFID,23-Mar-12,NATURE PUBLISHING GROUP,"2,767",Subscriptions,Research and Evidence Division,
DFID,DFID,27-Mar-12,Tufts University,"8,718",Technical and Advisory Services,Research and Evidence Division,
DFID,DFID,01-Mar-12,AFRICAN CENTRE FOR TECHNOLOGY STUDIES,"205,901",Technical and Advisory Services,Research and Evidence Division,
DFID,DFID,02-Mar-12,Isabel Vogel Independent Consultant,"3,430",Technical and Advisory Services,Research and Evidence Division,
DFID,DFID,13-Mar-12,Paul D Fishstein,"34,776",Technical and Advisory Services,Research and Evidence Division,
DFID,DFID,08-Mar-12,UNIVERSITY OF LEEDS,"20,563",Technical and Advisory Services,Research and Evidence Division,
DFID,DFID,14-Mar-12,LONDON SCHOOL OF HYGIENE AND TR,"515,622",Technical and Advisory Services,Research and Evidence Division,
DFID,DFID,15-Mar-12, Overseas Development Institute,"6,063",Technical and Advisory Services,Research and Evidence Division,
DFID,DFID,16-Mar-12,PRICEWATERHOUSECOOPERS,"1,110,112",Technical and Advisory Services,Research and Evidence Division,
DFID,DFID,16-Mar-12,ROYAL TROPICAL INSTITUTE,"24,635",Technical and Advisory Services,Research and Evidence Division,
DFID,DFID,21-Mar-12,CAB INTERNATIONAL,"89,982",Technical and Advisory Services,Research and Evidence Division,
DFID,DFID,21-Mar-12,QUEEN MARGARET UNIVERSITY,"88,000",Technical and Advisory Services,Research and Evidence Division,
DFID,DFID,20-Mar-12,Isabel Vogel Independent Consultant,"8,820",Technical and Advisory Services,Research and Evidence Division,
DFID,DFID,22-Mar-12,ATTENDA LIMITED,568,Technical and Advisory Services,Research and Evidence Division,
DFID,DFID,21-Mar-12,HTSPE LTD,"11,741",Technical and Advisory Services,Research and Evidence Division,
DFID,DFID,22-Mar-12,IOD PARC,"17,113",Technical and Advisory Services,Research and Evidence Division,
DFID,DFID,21-Mar-12,ELESCO Consulting Ltd,"3,802",Technical and Advisory Services,Research and Evidence Division,
DFID,DFID,21-Mar-12,Roger Drew,"10,200",Technical and Advisory Services,Research and Evidence Division,
DFID,DFID,23-Mar-12,MOTT MACDONALD LTD,"50,000",Technical and Advisory Services,Research and Evidence Division,
DFID,DFID,23-Mar-12,HTSPE LTD,"1,754",Technical and Advisory Services,Research and Evidence Division,
DFID,DFID,30-Mar-12,Society for Technology and Action for Rural Advancement,"55,822",Technical and Advisory Services,Research and Evidence Division,
DFID,DFID,27-Mar-12,CHRISTOPHER ADAM,"6,291",Technical and Advisory Services,Research and Evidence Division,
DFID,DFID,30-Mar-12,Harvard Pilgrim Health Care,"43,264",Technical and Advisory Services,Research and Evidence Division,
DFID,DFID,30-Mar-12,THE UK EVALUATION SOCIETY,"4,800",Technical and Advisory Services,Research and Evidence Division,
DFID,DFID,27-Mar-12,Foreign & Commonwealth Office,503,Telephone Usage & services,Research and Evidence Division,
DFID,DFID,30-Mar-12,Government Procurement Card,650,Training - Course Fees,Research and Evidence Division,
DFID,DFID,01-Mar-12,SCHOOL OF ORIENTAL & AFRICAN STUDIES,"7,530",Training - Course Fees,Research and Evidence Division,
DFID,DFID,02-Mar-12,DODS,"1,920",Training - Course Fees,Research and Evidence Division,
DFID,DFID,06-Mar-12,THE INSTITUTE FOR FISCAL STUDIES,770,Training - Course Fees,Research and Evidence Division,
DFID,DFID,14-Mar-12,Wize Noric AB,"6,534",Subscriptions,Research and Evidence Division,
DFID,DFID,14-Mar-12,Wize Noric AB,"4,500",Subscriptions,Research and Evidence Division,
DFID,DFID,14-Mar-12,United Nations Publications,"2,912",Subscriptions,Research and Evidence Division,
DFID,DFID,14-Mar-12,Massachusetts Medical Society,"1,921",Training - Course Fees,Research and Evidence Division,
DFID,DFID,15-Mar-12,INTERNATIONAL TEACHING SEMINARS,"2,975",Training - Course Fees,Research and Evidence Division,
DFID,DFID,15-Mar-12,Pilgrims Group,946,Training - Course Fees,Research and Evidence Division,
DFID,DFID,23-Mar-12,Pilgrims Group,"1,038",Training - Course Fees,Research and Evidence Division,
DFID,DFID,23-Mar-12,Pilgrims Group,"1,035",Training - Course Fees,Research and Evidence Division,
DFID,DFID,21-Mar-12,Pilgrims Group,"2,072",Training - Course Fees,Research and Evidence Division,
DFID,DFID,20-Mar-12,Pilgrims Group,"3,785",Training - Course Fees,Research and Evidence Division,
DFID,DFID,20-Mar-12,Pilgrims Group,"3,875",Training - Course Fees,Research and Evidence Division,
DFID,DFID,20-Mar-12,Maplecroft,"33,000",Subscriptions,Research and Evidence Division,E-library Subscriptions 2012 
DFID,DFID,21-Mar-12,Pilgrims Group,"3,006",Training - Course Fees,Research and Evidence Division,
DFID,DFID,21-Mar-12,THE POLICY PRACTICE LTD,"21,810",Training - Course Fees,Research and Evidence Division,
DFID,DFID,21-Mar-12,Pilgrims Group,"2,365",Training - Course Fees,Research and Evidence Division,
DFID,DFID,22-Mar-12,Pilgrims Group,"3,154",Training - Course Fees,Research and Evidence Division,
DFID,DFID,22-Mar-12,ACTIONAID.,"4,500",Training - Course Fees,Research and Evidence Division,
DFID,DFID,23-Mar-12,Pedro Vicente,561,Training - Travel & Subsistence,Research and Evidence Division,
DFID,DFID,14-Mar-12,Paris School of Economics,"2,507",Training Providers/Facilitation Services,Research and Evidence Division,
DFID,DFID,29-Mar-12,SRA SCOTLAND,"1,000",Training Providers/Facilitation Services,Research and Evidence Division,
DFID,DFID,02-Mar-12,IBRD HSBC T,"3,500,000",Aid Programme - Trust Funds contributions,Research and Evidence Division,
DFID,DFID,27-Mar-12,Luis Crouch,626,Other travel costs,Research and Evidence Division,
DFID,DFID,27-Mar-12,Luis Crouch,"1,310",Other travel costs,Research and Evidence Division,
DFID,DFID,29-Mar-12,Recipient name withheld,770,Other travel costs,Research and Evidence Division,
DFID,DFID,09-Mar-12,FAO,"2,000,000",Aid Programme - Voluntary contributions,Research and Evidence Division,
DFID,DFID,22-Mar-12,International Monetary Fund (GBP),"1,500,000",Aid Programme - Voluntary contributions,Research and Evidence Division,
DFID,DFID,02-Mar-12,HUMAN SECURITY RESEARCH GROUP,"79,817",Aid Programme - Accountable Grant Payments,Security & Humanitarian and Middle East Division,
DFID,DFID,07-Mar-12,Acid Survivors Trust International,"69,391",Aid Programme - Accountable Grant Payments,Security & Humanitarian and Middle East Division,
DFID,DFID,12-Mar-12,CARE INTERNATIONAL,"74,825",Aid Programme - Accountable Grant Payments,Security & Humanitarian and Middle East Division,
DFID,DFID,14-Mar-12,Development Initiatives Poverty Research Ltd,"38,234",Aid Programme - Accountable Grant Payments,Security & Humanitarian and Middle East Division,
DFID,DFID,29-Mar-12,HARVARD UNIVERSITY (OFFICE FOR SPONSERED PROGRAMS),"35,154",Aid Programme - Accountable Grant Payments,Security & Humanitarian and Middle East Division,
DFID,DFID,30-Mar-12,Government Procurement Card,"1,365",Computer Consumables,Security & Humanitarian and Middle East Division,
DFID,DFID,09-Mar-12,Alfred Watkins,"4,095",Technical and Advisory Services,Security & Humanitarian and Middle East Division,
DFID,DFID,19-Mar-12,James Hanna LLC,"6,164",Technical and Advisory Services,Security & Humanitarian and Middle East Division,
DFID,DFID,30-Mar-12,Government Procurement Card,670,Contract & Agency Staff,Security & Humanitarian and Middle East Division,
DFID,DFID,30-Mar-12,Government Procurement Card,670,Contract & Agency Staff,Security & Humanitarian and Middle East Division,
DFID,DFID,13-Mar-12,IBRD (HSBC)  C/O THE WORLD BANK,"2,000,000",Aid Programme - Core contributions,Security & Humanitarian and Middle East Division,
DFID,DFID,20-Mar-12,United Nations General Trust Fund Account,"800,000",Aid Programme - Core contributions,Security & Humanitarian and Middle East Division,
DFID,DFID,22-Mar-12,THE INTERNATIONAL COMMITTEE OF THE RED CROSS (ICRC),"10,000,000",Aid Programme - Core contributions,Security & Humanitarian and Middle East Division,
DFID,DFID,22-Mar-12,UN RELIEF AND WORKS AGENCY,"7,500,000",Aid Programme - Core contributions,Security & Humanitarian and Middle East Division,
DFID,DFID,22-Mar-12,BRITISH RED CROSS,"3,000,000",Aid Programme - Core contributions,Security & Humanitarian and Middle East Division,
DFID,DFID,19-Mar-12,Pilgrims Group,"1,253",Hostile Environment Training,Security & Humanitarian and Middle East Division,
DFID,DFID,14-Mar-12,GroundTruth Consulting,"66,816",Hostile Environment Training,Security & Humanitarian and Middle East Division,Hostile Environment training for DFID staff - Feb 2012
DFID,DFID,20-Mar-12,Pilgrims Group,788,Hostile Environment Training,Security & Humanitarian and Middle East Division,
DFID,DFID,21-Mar-12,Pilgrims Group,"1,503",Hostile Environment Training,Security & Humanitarian and Middle East Division,
DFID,DFID,30-Mar-12,Corporate Travel Provider,752,Hotels - Accommodation only,Security & Humanitarian and Middle East Division,
DFID,DFID,30-Mar-12,Corporate Travel Provider,752,Hotels - Accommodation only,Security & Humanitarian and Middle East Division,
DFID,DFID,30-Mar-12,Corporate Travel Provider,630,Hotels - Accommodation only,Security & Humanitarian and Middle East Division,
DFID,DFID,30-Mar-12,Corporate Travel Provider,752,Hotels - Accommodation only,Security & Humanitarian and Middle East Division,
DFID,DFID,30-Mar-12,Corporate Travel Provider,752,Hotels - Accommodation only,Security & Humanitarian and Middle East Division,
DFID,DFID,30-Mar-12,Corporate Travel Provider,630,Hotels - Accommodation only,Security & Humanitarian and Middle East Division,
DFID,DFID,30-Mar-12,Corporate Travel Provider,752,Hotels - Accommodation only,Security & Humanitarian and Middle East Division,
DFID,DFID,30-Mar-12,Corporate Travel Provider,752,Hotels - Accommodation only,Security & Humanitarian and Middle East Division,
DFID,DFID,30-Mar-12,Corporate Travel Provider,630,Hotels - Accommodation only,Security & Humanitarian and Middle East Division,
DFID,DFID,30-Mar-12,Corporate Travel Provider,630,Hotels - Accommodation only,Security & Humanitarian and Middle East Division,
DFID,DFID,30-Mar-12,Corporate Travel Provider,752,Hotels - Accommodation only,Security & Humanitarian and Middle East Division,
DFID,DFID,30-Mar-12,Corporate Travel Provider,507,Hotels - Accommodation only,Security & Humanitarian and Middle East Division,
DFID,DFID,30-Mar-12,Corporate Travel Provider,507,Hotels - Accommodation only,Security & Humanitarian and Middle East Division,
DFID,DFID,30-Mar-12,Corporate Travel Provider,752,Hotels - Accommodation only,Security & Humanitarian and Middle East Division,
DFID,DFID,30-Mar-12,Corporate Travel Provider,752,Hotels - Accommodation only,Security & Humanitarian and Middle East Division,
DFID,DFID,30-Mar-12,Corporate Travel Provider,869,Hotels - Accommodation only,Security & Humanitarian and Middle East Division,
DFID,DFID,01-Mar-12,Recipient name withheld,687,Hotels - Accommodation only,Security & Humanitarian and Middle East Division,
DFID,DFID,09-Mar-12,Foreign & Commonwealth Office,500,Hotels - Accommodation only,Security & Humanitarian and Middle East Division,
DFID,DFID,21-Mar-12,Recipient name withheld,708,Hotels - Accommodation only,Security & Humanitarian and Middle East Division,
DFID,DFID,27-Mar-12,Supplier Name withheld,"3,404",House rentals,Security & Humanitarian and Middle East Division,
DFID,DFID,30-Mar-12,Supplier Name withheld,600,oil and utilities,Security & Humanitarian and Middle East Division,
DFID,DFID,30-Mar-12,Supplier Name withheld,"1,039",oil and utilities,Security & Humanitarian and Middle East Division,
DFID,DFID,30-Mar-12,Supplier Name withheld,"1,899",oil and utilities,Security & Humanitarian and Middle East Division,
DFID,DFID,30-Mar-12,Supplier Name withheld,"1,075",oil and utilities,Security & Humanitarian and Middle East Division,
DFID,DFID,06-Mar-12,MINES ADVISORY GROUP,"216,048",Aid Programme - Humanitarian Material Relief Assistance and Services,Security & Humanitarian and Middle East Division,
DFID,DFID,30-Mar-12,MINISTRY OF DEFENCE,"83,245",Legal advice,Security & Humanitarian and Middle East Division,Legal fees
DFID,DFID,02-Mar-12,CROWN RELOCATIONS  UK,"14,121",Other Admin Costs,Security & Humanitarian and Middle East Division,
DFID,DFID,30-Mar-12,Cabinet Office RM Shared Services,"92,752",Other Admin Costs,Security & Humanitarian and Middle East Division,DFID CONTRIBUTION TO IRAQ INQUIRY
DFID,DFID,21-Mar-12,MICHAEL SCHULTZ,"11,280",Research & Development costs,Security & Humanitarian and Middle East Division,
DFID,DFID,30-Mar-12,Corporate Travel Provider,753,Air fares,Security & Humanitarian and Middle East Division,
DFID,DFID,30-Mar-12,Corporate Travel Provider,879,Air fares,Security & Humanitarian and Middle East Division,
DFID,DFID,30-Mar-12,Corporate Travel Provider,588,Air fares,Security & Humanitarian and Middle East Division,
DFID,DFID,30-Mar-12,Corporate Travel Provider,530,Air fares,Security & Humanitarian and Middle East Division,
DFID,DFID,30-Mar-12,Corporate Travel Provider,566,Air fares,Security & Humanitarian and Middle East Division,
DFID,DFID,30-Mar-12,Corporate Travel Provider,792,Air fares,Security & Humanitarian and Middle East Division,
DFID,DFID,30-Mar-12,Corporate Travel Provider,901,Air fares,Security & Humanitarian and Middle East Division,
DFID,DFID,30-Mar-12,Corporate Travel Provider,"1,036",Air fares,Security & Humanitarian and Middle East Division,
DFID,DFID,30-Mar-12,Corporate Travel Provider,765,Air fares,Security & Humanitarian and Middle East Division,
DFID,DFID,30-Mar-12,Corporate Travel Provider,"1,072",Air fares,Security & Humanitarian and Middle East Division,
DFID,DFID,30-Mar-12,Corporate Travel Provider,998,Air fares,Security & Humanitarian and Middle East Division,
DFID,DFID,30-Mar-12,Corporate Travel Provider,598,Air fares,Security & Humanitarian and Middle East Division,
DFID,DFID,29-Mar-12,BCD Travel (USD),579,Air fares,Security & Humanitarian and Middle East Division,
DFID,DFID,05-Mar-12,MINES ADVISORY GROUP,"23,821",Technical and Advisory Services,Security & Humanitarian and Middle East Division,
DFID,DFID,05-Mar-12,MINES ADVISORY GROUP,"28,315",Technical and Advisory Services,Security & Humanitarian and Middle East Division,
DFID,DFID,05-Mar-12,MINES ADVISORY GROUP,"44,214",Technical and Advisory Services,Security & Humanitarian and Middle East Division,
DFID,DFID,05-Mar-12,MINES ADVISORY GROUP,"25,976",Technical and Advisory Services,Security & Humanitarian and Middle East Division,
DFID,DFID,06-Mar-12,MINES ADVISORY GROUP,"61,542",Technical and Advisory Services,Security & Humanitarian and Middle East Division,
DFID,DFID,05-Mar-12,MINES ADVISORY GROUP,"34,201",Technical and Advisory Services,Security & Humanitarian and Middle East Division,
DFID,DFID,09-Mar-12,Foreign & Commonwealth Office,"1,036",Technical and Advisory Services,Security & Humanitarian and Middle East Division,
DFID,DFID,09-Mar-12,Foreign & Commonwealth Office,907,Technical and Advisory Services,Security & Humanitarian and Middle East Division,
DFID,DFID,09-Mar-12,Foreign & Commonwealth Office,"1,295",Technical and Advisory Services,Security & Humanitarian and Middle East Division,
DFID,DFID,21-Mar-12,ADAM SMITH INTERNATIONAL  LTD,"47,704",Technical and Advisory Services,Security & Humanitarian and Middle East Division,
DFID,DFID,30-Mar-12,Courtenay Cabto Venton GBP,"7,500",Technical and Advisory Services,Security & Humanitarian and Middle East Division,
DFID,DFID,29-Mar-12,TURNER & TOWNSEND,"23,015",Technical and Advisory Services,Security & Humanitarian and Middle East Division,
DFID,DFID,28-Mar-12,DAI EUROPE LIMITED,"189,073",Technical and Advisory Services,Security & Humanitarian and Middle East Division,
DFID,DFID,28-Mar-12,DAI EUROPE LIMITED,"59,303",Technical and Advisory Services,Security & Humanitarian and Middle East Division,
DFID,DFID,21-Mar-12,Foreign & Commonwealth Office,"1,220",Telephone Usage & services,Security & Humanitarian and Middle East Division,
DFID,DFID,21-Mar-12,Foreign & Commonwealth Office,679,Training - Course Fees,Security & Humanitarian and Middle East Division,
DFID,DFID,21-Mar-12,Foreign & Commonwealth Office,679,Training - Course Fees,Security & Humanitarian and Middle East Division,
DFID,DFID,21-Mar-12,Foreign & Commonwealth Office,679,Training - Course Fees,Security & Humanitarian and Middle East Division,
DFID,DFID,26-Mar-12,Pilgrims Group,"1,253",Training - Course Fees,Security & Humanitarian and Middle East Division,
DFID,DFID,29-Mar-12,NATIONAL SCHOOL OF GOVERNMENT,"1,998",Training - Course Fees,Security & Humanitarian and Middle East Division,
DFID,DFID,30-Mar-12,Government Procurement Card,793,Training Providers/Facilitation Services,Security & Humanitarian and Middle East Division,
DFID,DFID,07-Mar-12,RedR UK,879,Training Providers/Facilitation Services,Security & Humanitarian and Middle East Division,
DFID,DFID,08-Mar-12,UNIVERSITY OF BIRMINGHAM,"51,010",Training Providers/Facilitation Services,Security & Humanitarian and Middle East Division,
DFID,DFID,13-Mar-12,LEARNING TREE INTERNATIONAL,"4,740",Training Providers/Facilitation Services,Security & Humanitarian and Middle East Division,
DFID,DFID,14-Mar-12,FIREBRAND TRAINING LTD,"1,850",Training Providers/Facilitation Services,Security & Humanitarian and Middle East Division,
DFID,DFID,21-Mar-12,Foreign & Commonwealth Office,"1,064",Travel - Subsistence,Security & Humanitarian and Middle East Division,
DFID,DFID,21-Mar-12,Foreign & Commonwealth Office,807,Travel - Subsistence,Security & Humanitarian and Middle East Division,
DFID,DFID,28-Mar-12,Foreign & Commonwealth Office,976,Travel - Subsistence,Security & Humanitarian and Middle East Division,
DFID,DFID,30-Mar-12,Foreign & Commonwealth Office,"1,276",Travel - Subsistence,Security & Humanitarian and Middle East Division,
DFID,DFID,30-Mar-12,Foreign & Commonwealth Office,"1,360",Travel - Subsistence,Security & Humanitarian and Middle East Division,
DFID,DFID,16-Mar-12,UNDP CONTRIBUTIONS GBP,"3,500,000",Aid Programme - Trust Funds contributions,Security & Humanitarian and Middle East Division,
DFID,DFID,29-Mar-12,European Bank for Reconstruction and Development (SEMED),"2,000,000",Aid Programme - Trust Funds contributions,Security & Humanitarian and Middle East Division,
DFID,DFID,28-Mar-12,IBRD (HSBC)  C/O THE WORLD BANK,"602,000",Aid Programme - Trust Funds contributions,Security & Humanitarian and Middle East Division,
DFID,DFID,21-Mar-12,AIR PARTNER PLC,"67,810",Vehicle Repairs & Maintenance,Security & Humanitarian and Middle East Division,
DFID,DFID,27-Mar-12,Foreign & Commonwealth Office,806,Vehicle Repairs & Maintenance,Security & Humanitarian and Middle East Division,
DFID,DFID,15-Mar-12,UN OCHA,"1,000,000",Aid Programme - Voluntary contributions,Security & Humanitarian and Middle East Division,
DFID,DFID,20-Mar-12,THE INTERNATIONAL COMMITTEE OF THE RED CROSS (ICRC),"3,600,000",Aid Programme - Voluntary contributions,Security & Humanitarian and Middle East Division,
DFID,DFID,19-Mar-12,UN OCHA,"32,600",Aid Programme - Voluntary contributions,Security & Humanitarian and Middle East Division,
DFID,DFID,26-Mar-12,WFP CONTRIBUTIONS UNIT,"5,000,000",Aid Programme - Voluntary contributions,Security & Humanitarian and Middle East Division,
DFID,DFID,21-Mar-12, UNHCR,"9,500,000",Aid Programme - Voluntary contributions,Security & Humanitarian and Middle East Division,
DFID,DFID,22-Mar-12,IBRD HSBC T,"1,488,000",Aid Programme - Voluntary contributions,Security & Humanitarian and Middle East Division,
DFID,DFID,21-Mar-12,UN WOMEN,"500,000",Aid Programme - Voluntary contributions,Security & Humanitarian and Middle East Division,
DFID,DFID,27-Mar-12,United Nations General Trust Fund Account,"20,000,000",Aid Programme - Voluntary contributions,Security & Humanitarian and Middle East Division,
DFID,DFID,29-Mar-12,UNDP CONTRIBUTIONS GBP,"100,000",Aid Programme - Voluntary contributions,Security & Humanitarian and Middle East Division,
DFID,DFID,02-Mar-12,CENTRAL HALL WESTMINSTER LTD,"5,821","Conferences, Seminars & Meeting/Event Resource",Top Management Group,
DFID,DFID,07-Mar-12,The Royal Society,"2,630","Conferences, Seminars & Meeting/Event Resource",Top Management Group,
DFID,DFID,30-Mar-12,Government Procurement Card,964,Contract & Agency Staff,Top Management Group,
DFID,DFID,30-Mar-12,Government Procurement Card,768,Contract & Agency Staff,Top Management Group,
DFID,DFID,30-Mar-12,Government Procurement Card,875,Contract & Agency Staff,Top Management Group,
DFID,DFID,29-Mar-12,FCO SERVICES,"17,471",Government Car Scheme UK,Top Management Group,
DFID,DFID,29-Mar-12,FCO SERVICES,"17,471",Government Car Scheme UK,Top Management Group,
DFID,DFID,29-Mar-12,TSoL,"1,176",Legal costs,Top Management Group,
DFID,DFID,30-Mar-12,Corporate Travel Provider,"1,544",Air fares,Top Management Group,
DFID,DFID,30-Mar-12,Corporate Travel Provider,"1,365",Air fares,Top Management Group,
DFID,DFID,30-Mar-12,Corporate Travel Provider,711,Air fares,Top Management Group,
DFID,DFID,30-Mar-12,Corporate Travel Provider,753,Air fares,Top Management Group,
DFID,DFID,30-Mar-12,Corporate Travel Provider,784,Air fares,Top Management Group,
DFID,DFID,30-Mar-12,Corporate Travel Provider,"1,735",Air fares,Top Management Group,
DFID,DFID,30-Mar-12,Corporate Travel Provider,"1,138",Air fares,Top Management Group,
DFID,DFID,30-Mar-12,Corporate Travel Provider,"1,138",Air fares,Top Management Group,
DFID,DFID,30-Mar-12,Corporate Travel Provider,"1,365",Air fares,Top Management Group,
DFID,DFID,30-Mar-12,Corporate Travel Provider,753,Air fares,Top Management Group,
DFID,DFID,30-Mar-12,Corporate Travel Provider,753,Air fares,Top Management Group,
DFID,DFID,30-Mar-12,Corporate Travel Provider,719,Air fares,Top Management Group,
DFID,DFID,30-Mar-12,Corporate Travel Provider,"2,227",Air fares,Top Management Group,
DFID,DFID,30-Mar-12,Corporate Travel Provider,753,Air fares,Top Management Group,
DFID,DFID,30-Mar-12,Corporate Travel Provider,553,Air fares,Top Management Group,
DFID,DFID,30-Mar-12,Corporate Travel Provider,"3,635",Air fares,Top Management Group,
DFID,DFID,30-Mar-12,Corporate Travel Provider,"3,596",Air fares,Top Management Group,
DFID,DFID,30-Mar-12,Corporate Travel Provider,830,Air fares,Top Management Group,
DFID,DFID,30-Mar-12,Corporate Travel Provider,"3,556",Air fares,Top Management Group,
DFID,DFID,30-Mar-12,Corporate Travel Provider,"1,748",Air fares,Top Management Group,
DFID,DFID,30-Mar-12,Corporate Travel Provider,553,Air fares,Top Management Group,
DFID,DFID,30-Mar-12,Corporate Travel Provider,"3,596",Air fares,Top Management Group,
DFID,DFID,30-Mar-12,Corporate Travel Provider,754,Air fares,Top Management Group,
DFID,DFID,30-Mar-12,Corporate Travel Provider,"3,596",Air fares,Top Management Group,
DFID,DFID,30-Mar-12,Corporate Travel Provider,754,Air fares,Top Management Group,
DFID,DFID,30-Mar-12,Corporate Travel Provider,"1,841",Air fares,Top Management Group,
DFID,DFID,30-Mar-12,Corporate Travel Provider,"4,296",Air fares,Top Management Group,
DFID,DFID,30-Mar-12,Corporate Travel Provider,"2,910",Air fares,Top Management Group,
DFID,DFID,30-Mar-12,Corporate Travel Provider,"4,296",Air fares,Top Management Group,
DFID,DFID,30-Mar-12,Corporate Travel Provider,754,Air fares,Top Management Group,
DFID,DFID,30-Mar-12,Corporate Travel Provider,553,Air fares,Top Management Group,
DFID,DFID,30-Mar-12,Corporate Travel Provider,562,Air fares,Top Management Group,
DFID,DFID,30-Mar-12,Corporate Travel Provider,562,Air fares,Top Management Group,
DFID,DFID,02-Mar-12,THE STATIONERY OFFICE LIMITED,770,Subscriptions,Top Management Group,
DFID,DFID,26-Mar-12,THE STATIONERY OFFICE LIMITED,601,Subscriptions,Top Management Group,
DFID,DFID,19-Mar-12,INSIGHTS LEARNING & DEVELOPMENT LTD,653,Training - Course Fees,Top Management Group,
DFID,DFID,01-Mar-12,MEDECINS SANS FRONTIERES,"573,157",Aid Programme - Accountable Grant Payments,West and Southern Africa,
DFID,DFID,08-Mar-12,Action Against Hunger - USA,"45,239",Aid Programme - Accountable Grant Payments,West and Southern Africa,
DFID,DFID,01-Mar-12,Mzuzu Diocese,"86,529",Aid Programme - Accountable Grant Payments,West and Southern Africa,
DFID,DFID,02-Mar-12,PLAN INTERNATIONAL UK,"109,842",Aid Programme - Accountable Grant Payments,West and Southern Africa,
DFID,DFID,01-Mar-12,Recipient name withheld,"1,015",Aid Programme - Accountable Grant Payments,West and Southern Africa,
DFID,DFID,06-Mar-12,OVERSEAS DEVELOPMENT INSTITUTE,"9,020",Aid Programme - Accountable Grant Payments,West and Southern Africa,
DFID,DFID,06-Mar-12,POLICY AND LEGAL ADVOCACY CENTRE,"767,051",Aid Programme - Accountable Grant Payments,West and Southern Africa,
DFID,DFID,07-Mar-12,University of Cape Town,"408,886",Aid Programme - Accountable Grant Payments,West and Southern Africa,
DFID,DFID,08-Mar-12,IIED ,"2,047",Aid Programme - Accountable Grant Payments,West and Southern Africa,
DFID,DFID,13-Mar-12,CHRISTIAN AID,"217,281",Aid Programme - Accountable Grant Payments,West and Southern Africa,
DFID,DFID,12-Mar-12,British Council,"14,351",Aid Programme - Accountable Grant Payments,West and Southern Africa,
DFID,DFID,14-Mar-12,POPULATION SERVICES INTER,"1,600,000",Aid Programme - Accountable Grant Payments,West and Southern Africa,
DFID,DFID,14-Mar-12,INSTITUTE OF ECONOMICS AND SOCIAL STUDIES,"23,582",Aid Programme - Accountable Grant Payments,West and Southern Africa,
DFID,DFID,15-Mar-12,Human Sciences Research Council.,"625,000",Aid Programme - Accountable Grant Payments,West and Southern Africa,
DFID,DFID,15-Mar-12,Human Sciences Research Council.,"625,000",Aid Programme - Accountable Grant Payments,West and Southern Africa,
DFID,DFID,15-Mar-12,PLAN MALAWI- CBM PROJECT,"135,504",Aid Programme - Accountable Grant Payments,West and Southern Africa,
DFID,DFID,15-Mar-12,Valencia Hotels,"3,187",Aid Programme - Accountable Grant Payments,West and Southern Africa,
DFID,DFID,21-Mar-12,Farmers Union of Malawi,"49,960",Aid Programme - Accountable Grant Payments,West and Southern Africa,
DFID,DFID,20-Mar-12,SAVE THE CHILDREN UK,"82,640",Aid Programme - Accountable Grant Payments,West and Southern Africa,
DFID,DFID,21-Mar-12,Policy Monitoring and Research Centre,"23,502",Aid Programme - Accountable Grant Payments,West and Southern Africa,
DFID,DFID,28-Mar-12,Human Sciences Research Council.,"625,000",Aid Programme - Accountable Grant Payments,West and Southern Africa,
DFID,DFID,23-Mar-12,OXFAM,"173,003",Aid Programme - Accountable Grant Payments,West and Southern Africa,
DFID,DFID,27-Mar-12,SAIIA,"84,240",Aid Programme - Accountable Grant Payments,West and Southern Africa,
DFID,DFID,29-Mar-12,ALAFA,"939,840",Aid Programme - Accountable Grant Payments,West and Southern Africa,
DFID,DFID,16-Mar-12,Deloitte,"18,364",Auditors Assurance Service,West and Southern Africa,
DFID,DFID,13-Mar-12,Ernst & Young Certified Public Accountants,"3,375",Auditors Assurance Service,West and Southern Africa,
DFID,DFID,13-Mar-12,Deloitte,"6,202",Auditors Assurance Service,West and Southern Africa,
DFID,DFID,30-Mar-12,Government Procurement Card,"1,464",Computer Consumables,West and Southern Africa,
DFID,DFID,05-Mar-12,MTN Nigeria Communications Ltd,"8,120",Computer hardware maintenance,West and Southern Africa,
DFID,DFID,05-Mar-12,MTN Nigeria Communications Ltd,"9,924",Computer hardware maintenance,West and Southern Africa,
DFID,DFID,30-Mar-12,Corporate Travel Provider,630,Conference Travel & Subsistence,West and Southern Africa,
DFID,DFID,14-Mar-12,Institute for Policy Alternatives,665,"Conferences, Seminars & Meeting/Event Resource",West and Southern Africa,
DFID,DFID,06-Mar-12,Masazi Development Associates,"10,011",Technical and Advisory Services,West and Southern Africa,
DFID,DFID,12-Mar-12,Labyrinth Environment & Development Consulting,"3,851",Consultancy Services,West and Southern Africa,
DFID,DFID,20-Mar-12,MPICO Ltd,"3,748",Consultancy Services,West and Southern Africa,
DFID,DFID,22-Mar-12,Labyrinth Environment & Development Consulting,"3,811",Consultancy Services,West and Southern Africa,
DFID,DFID,28-Mar-12,MANPOWER PLC,"3,826",Contract & Agency Staff,West and Southern Africa,
DFID,DFID,12-Mar-12, UNFPA,"3,000,000",Aid Programme - Core contributions,West and Southern Africa,
DFID,DFID,06-Mar-12,FCO SERVICES,"1,866",Courier & Bag Services,West and Southern Africa,
DFID,DFID,22-Mar-12,British  High Commission Abuja,"2,748",Courier & Bag Services,West and Southern Africa,
DFID,DFID,22-Mar-12,British  High Commission Abuja,"2,249",Courier & Bag Services,West and Southern Africa,
DFID,DFID,13-Mar-12,GLOBETECH ZAMBIA,"3,500",Data Network - land lines,West and Southern Africa,
DFID,DFID,28-Mar-12,MICRO COM Sprl,"5,949",Data Network - land lines,West and Southern Africa,
DFID,DFID,13-Mar-12,ZESA,"3,003",Electricity,West and Southern Africa,
DFID,DFID,28-Mar-12,ESCOM,739,Electricity,West and Southern Africa,
DFID,DFID,30-Mar-12,Foreign & Commonwealth Office,613,Electricity,West and Southern Africa,
DFID,DFID,30-Mar-12,Foreign & Commonwealth Office,664,Electricity,West and Southern Africa,
DFID,DFID,14-Mar-12,plumbs ltd,"1,625",Furniture & Fittings,West and Southern Africa,
DFID,DFID,08-Mar-12,plumbs ltd,"6,300",Furniture & Fittings,West and Southern Africa,
DFID,DFID,08-Mar-12,Dalmann - Hardwood Furniture Mozambi,"2,994",Furniture & Fittings,West and Southern Africa,
DFID,DFID,08-Mar-12,Dalmann - Hardwood Furniture Mozambi,"3,063",Furniture & Fittings,West and Southern Africa,
DFID,DFID,14-Mar-12,KOIZA INTERNATIONAL LTD,"1,035",Furniture & Fittings,West and Southern Africa,
DFID,DFID,14-Mar-12,KOIZA INTERNATIONAL LTD,"4,040",Furniture & Fittings,West and Southern Africa,
DFID,DFID,14-Mar-12,KOIZA INTERNATIONAL LTD,"40,875",Furniture & Fittings,West and Southern Africa,
DFID,DFID,13-Mar-12,Dream Home,"1,036",Furniture & Fittings,West and Southern Africa,
DFID,DFID,15-Mar-12,Akbanies,"1,431",Furniture & Fittings,West and Southern Africa,
DFID,DFID,20-Mar-12,British High Commission (FCO),"6,073",Furniture & Fittings,West and Southern Africa,
DFID,DFID,20-Mar-12,Akbanies,953,Furniture & Fittings,West and Southern Africa,
DFID,DFID,21-Mar-12,KOIZA INTERNATIONAL LTD,"33,680",Furniture & Fittings,West and Southern Africa,
DFID,DFID,21-Mar-12,Foreign & Commonwealth Office,"1,562",Furniture & Fittings,West and Southern Africa,
DFID,DFID,23-Mar-12,CHARLES KENDALL & PARTNERS LIMITED (PROCUREMENT),"8,071",Furniture & Fittings,West and Southern Africa,
DFID,DFID,23-Mar-12,CHARLES KENDALL & PARTNERS LIMITED (PROCUREMENT),"1,032",Furniture & Fittings,West and Southern Africa,
DFID,DFID,23-Mar-12,CHARLES KENDALL & PARTNERS LIMITED (PROCUREMENT),"1,952",Furniture & Fittings,West and Southern Africa,
